Workbook

Sheet A
A1: Emissions and Efficiency Calculator
A4: Design Number | D4: Havyard 923 | H4: LOA | K4: =Data!E3 -> 125 | L4: m
A5: Project Number | D5: 17-144 | H5: Breadth | K5: =Data!H3 -> 20 | L5: m
A6: Vessel Name | D6: TBN | H6: Depth to main deck | K6: fill in | L6: m
A7: Vessel Type | D7: Passenger Vessel | H7: Draft | K7: =Data!I3 -> 0 | L7: m
A8: Owner | D8: Havila Kystruten | H8: Main Engine | K8: ='B2'!$C$32 -> 7306.203704 | L8: kW
A9: Operation Area | D9: Norwegian Coast | H9: Shaft generator | K9: fill in | L9: kW
H10: Power supply | K10: fill in
H11: Year built | K11: fill in
A12: Date printed | D12: =TODAY() -> 2018-05-31 | H12: Loading Capacity | K12: =Data!B3 -> 700 | L12: persons
A13: Verson | D13: 1
A14: Made by | D14: JKO | G14: Date: | H14: 2018-05-27
A15: Verified by | G15: Date:
A16: Approced by | G16: Date:
A18: SHEET A | D18: FRONT PAGE
A19: SHEET B1 | D19: VARIABLES | H19: Simple
A20: SHEET B2 | D20: VARIABLES | H20: Predefined variables (advanced setup)
A21: SHEET C | D21: RESULTS
A22: SHEET D | D22: SHIP DESIGN
A23: SHEET E | D23: ROUTE STUDIES
A24: SHEET F | D24: ENGINE SETUP
A25: SHEET G | D25: COST AND ASSEMBLY
A26: This report is an energy analysis of the ship design specified above. Theoretical models and simulations are used to produce the current results. The model is ment to be a tool to evaluate different energy systems for a ship design. It contains data for efficiencies, losses, emissions, costs and more. The tool is not to be used as documentation of real-time performance, but for guidance for customer and end-user. The model was produced as a masterthesis at UiB august 2017-june 2018. No data in the report are representative for Havyard Group ASA's designs. To get the latest update, please send an email to jorgen.kopperstad@gmail.com © UIB 2018
A59: This document / specification is the property of COMPANY NAME, and must not be copied or the contents thereof or any information received in conjunction therewith must not be imparted to any unauthorised third party. It must not be used for any other project than for which it was originally ordered. The receipt of the drawing / specification implies that the conditions mentioned herein are accepted.

Sheet B1
A1: Project | B1: =A!D5 -> 17-144 | C1: B. VARIABLES - Simple Setup
A2: Ship name | B2: =A!D6 -> TBN
A4: Ship Design
D5: Unit
A6: Passengers | D6: n | H6: Max Battery Size | L6: kWh
H7: Sea margin level
H8: Capability level
A9: Route Study
B11: Harbour | D11: Shore Charging [kW] | F11: Time in port [min] | H11: Transit to this port [min] | K11: Distance to this port [nm]
A12: Port 1 | B12: Bergen | D12: 1400 | F12: 480
A13: Port 2 | B13: Florø | F13: 15 | H13: 360 | K13: 88
A14: Port 3 | B14: Måløy | F14: 15 | H14: 150 | K14: 28
A15: Port 4 | B15: Torvik | F15: 15 | H15: 180 | K15: 39
A16: Port 5 | B16: Ålesund | F16: 180 | H16: 75 | K16: 15
A17: Port 6 | B17: Molde | F17: 30 | H17: 180 | K17: 35
A18: Port 7 | B18: Kristiansund | F18: 45 | H18: 225 | K18: 48
A19: Port 8 | B19: Trondheim | D19: 1400 | F19: 360 | H19: 420 | K19: 91
A20: Port 9 | B20: Rørvik | F20: 30 | H20: 525 | K20: 125
A21: Port 10 | B21: Brønnøysund | F21: 15 | H21: 210 | K21: 46
A22: Port 11 | B22: Sandnessjøen | F22: 30 | H22: 165 | K22: 36
A23: Port 12 | B23: Nesna | F23: 5 | H23: 70 | K23: 15
A24: Port 13 | B24: Ørnes | F24: 15 | H24: 225 | K24: 51
A25: Port 14 | B25: Bodø | D25: 1400 | F25: 150 | H25: 180 | K25: 39
A26: Port 15 | B26: Stamsund | F26: 30 | H26: 240 | K26: 55
A27: Port 16 | B27: Svolvær | F27: 60 | H27: 90 | K27: 20
A28: Port 17 | B28: Stokmarknes | F28: 15 | H28: 180 | K28: 35
A29: Port 18 | B29: Sortland | F29: 15 | H29: 90 | K29: 15
A30: Port 19 | B30: Risøyhamn | F30: 15 | H30: 75 | K30: 18
A31: Port 20 | B31: Harstad | F31: 60 | H31: 135 | K31: 27
A32: Port 21 | B32: Finnsnes | F32: 30 | H32: 195 | K32: 44
A33: Port 22 | B33: Tromsø | D33: 1400 | F33: 255 | H33: 165 | K33: 37
A34: Port 23 | B34: Skjervøy | F34: 15 | H34: 240 | K34: 53
A35: Port 24 | B35: Øksfjord | F35: 15 | H35: 195 | K35: 45
A36: Port 25 | B36: Hammerfest | F36: 45 | H36: 180 | K36: 41
A37: Port 26 | B37: Havøysund | F37: 30 | H37: 165 | K37: 37
A38: Port 27 | B38: Honningsvåg | D38: 1400 | F38: 210 | H38: 120 | K38: 28
A39: Port 28 | B39: Kjøllefjord | F39: 15 | H39: 135 | K39: 29
A40: Port 29 | B40: Mehamn | F40: 15 | H40: 120 | K40: 26
A41: Port 30 | B41: Berlevåg | F41: 15 | H41: 150 | K41: 36
A42: Port 31 | B42: Båtsfjord | F42: 30 | H42: 90 | K42: 23
A43: Port 32 | B43: Vardø | F43: 15 | H43: 180 | K43: 39
A44: Port 33 | B44: Vadsø | F44: 30 | H44: 195 | K44: 42
A45: Port 34 | B45: Kirkenes | F45: 210 | H45: 105 | K45: 24

Sheet B2
A1: Project | B1: =A!D5 -> 17-144 | C1: B2. VARIABLES - Predefined variables/functions
A2: Ship name | B2: =A!D6 -> TBN
A4: Ship Design
A5: Ship Power Speed Curve setting | F5: 2
D6: constant | E6: x | F6: x2 | G6: x3 | H6: x4 | I6: x5 | J6: x6
A7: Ship-Power Curve | D7: =Data!H31 -> -9.094947018e-13 | E7: =Data!G31 -> 3.519851304e-13 | F7: =Data!F31 -> -3.149713572e-14 | G7: =Data!E31 -> 1.037037037
D9: LOA | E9: LPP | F9: LWL | G9: Breadth | H9: Draft | I9: Deadwgt. | J9: Lightwgt | K9: Ballast | L9: Service Area
B10: Dimensions | D10: =Data!E3 -> 125 | E10: =Data!F3 -> na | F10: =Data!G3 -> na | G10: =Data!H3 -> 20 | H10: =Data!I3 -> 0 | I10: =Data!K3 -> na | J10: =Data!L3 -> na | K10: =Data!J3 -> na | L10: =Data!A19 -> 2
C12: Harbour | D12: Entering harbour | F12: Leaving Harbour | H12: Acceleration | J12: Passive retardation | L12: Active retardation
A13: Operational Loads | C13: =Data!M3 -> 0 | E13: =Data!N3 -> 1500 | G13: =Data!O3 -> 1500 | I13: =Data!P3 -> 4000 | K13: =Data!Q3 -> 1000 | M13: =Data!R3 -> 1500
A16: Route Studies
H17: =1-H18 -> 0.88
A18: Average Speed | C18: =Data!N86 -> 13.86630768 | D18: knots | E18: Sea Service Area Margin | H18: =IF(L10=1,'E '!F59,IF(L10=2,'E '!F60,IF(L10=3,'E '!F61,IF(L10=4,'E '!F62,""))))/100 -> 0.12 | I18: Design speed | K18: 15 | L18: knots | U18: =60*60 -> 3600 | V18: s/t
C20: Time [s] | D20: kW | E20: kWh
A21: Leaving Harbour | C21: 60 | D21: =E13 -> 1500 | E21: =D21*(C21/(60*60)) -> 25
A22: Acceleration | C22: 240 | D22: =I13 -> 4000 | E22: =D22*(C22/(60*60)) -> 266.6666667 | O22: s=1/2 at^2
A23: Passive Retardation | C23: 120 | D23: =K13 -> 1000 | E23: =D23*(C23/(60*60)) -> 33.33333333
A24: Active retardation | C24: 240 | D24: =M13 -> 1500 | E24: =D24*(C24/(60*60)) -> 100
A25: Entering Harbour | C25: 240 | D25: =E13 -> 1500 | E25: =D25*(C25/(60*60)) -> 100 | O25: entering harbour | Q25: leaving harbour | S25: Acceleration | U25: Passive retardation | W25: active retardation
N26: =SUM(O26:W26) -> 2.643388529 | O26: =2*(D22/3600) -> 2.222222222 | Q26: =2*(F22/3600) -> 0 | S26: =(0.5*0.05*(H22^2))/1852 -> 0 | U26: =700/1852 -> 0.3779697624 | W26: =80/1852 -> 0.04319654428
A27: Design Capability | D27: =IF(Data!A20=1,'E '!C59,IF(Data!A20=2,'E '!C60,IF(Data!A20=3,'E '!C61,IF(Data!A20=4,'E '!C62,""))))/100 -> 0.2 | N27: =SUM(O27:W27) -> 0.9767218623 | O27: =2*(D23/3600) -> 0.5555555556 | Q27: =2*(F23/3600) -> 0 | S27: =(0.5*0.05*(H23^2))/1852 -> 0 | U27: =700/1852 -> 0.3779697624 | W27: =80/1852 -> 0.04319654428
A28: Design max speed | E28: knots | N28: =SUM(O28:W28) -> 0.8333333333 | O28: =2*(D24/3600) -> 0.8333333333 | Q28: =2*(F24/3600) -> 0 | S28: =(0.5*0.05*(H24^2))/1852 -> 0 | U28: =IF(J24>0,(700/1852),"") ->  | W28: =IF(L24>0,(80/1852),"") -> 
N29: =SUM(O29:W29) -> 0.8333333333 | O29: =2*(D25/3600) -> 0.8333333333 | Q29: =2*(F25/3600) -> 0 | S29: =(0.5*0.05*(H25^2))/1852 -> 0 | U29: =IF(J25>0,(700/1852),"") ->  | W29: =IF(L25>0,(80/1852),"") -> 
A30: Engine Setup | N30: =SUM(O30:W30) -> 0 | O30: =2*(D26/3600) -> 0 | Q30: =2*(F26/3600) -> 0 | S30: =(0.5*0.05*(H26^2))/1852 -> 0 | U30: =IF(J26>0,(700/1852),"") ->  | W30: =IF(L26>0,(80/1852),"") -> 
A32: Max Power | C32: =Data!G28 -> 7306.203704 | D32: kW | I32: Battery lifetime | K32: 10 | L32: years
A33: Design Speed Power | C33: =Data!C3 -> 3500 | D33: kW | I33: Hotel Load | K33: =Data!D3 -> 750 | L33: kW
B35: Generator | D35: Drives/Converter | F35: DC/DC Converters | H35: Switchboard | J35: El-motors | K35: Gear | L35: Cabling | M35: Open
A36: Losses | B36: 0.05 | D36: 0.05 | F36: 0.05 | H36: 0.03 | J36: 0.059 | K36: 0.05 | L36: 0.03 | M36: 0
D38: Emissions
D39: CO2 per kg fuel, kg | F39: Nox per kWh, g | H39: CO per kWh, g | J39: PM per kWh, g | L39: SO per kWh, g
A40: Diesel Variable RPM | E40: 3.17 | G40: 7.85 | I40: 5 | K40: 0.5 | M40: 1
A41: Diesel Constant RPM | E41: 3.17 | G41: 7.85 | I41: 5 | K41: 0.5 | M41: 1
A42: LNG Constant RPM | E42: 2.756 | G42: 1.5 | I42: 0.05 | K42: 0.005 | M42: 0.01

Sheet C
A1: Project | B1: =A!D5 -> 17-144 | C1: C. RESULTS
A2: Ship name | B2: =A!D6 -> TBN
A4: Emissions per tour
E5: CO2 [t] | F5: NOx [kg] | G5: PM [kg] | H5: SO [kg] | I5: CO [kg] | J5: Carbon Footprint [t] | L5: In addition comes the emissions from producing the engine. These are not included in the calculations
A6: Diesel variable RPM | E6: =Data!AY110/1000 -> 335.5580411 | F6: =Data!AZ110/1000 -> 3661.643137 | G6: =Data!BB110/1000 -> 233.2256775 | H6: =Data!BC110/1000 -> 466.451355 | I6: =Data!BA110/1000 -> 2332.256775 | K6: =((F!$E$54*E16)/1000000)+E6 -> 377.6054749
A7: Diesel Constant RPM | E7: =Data!AY153/1000 -> 344.8754226 | F7: =Data!AZ153/1000 -> 3661.643137 | G7: =Data!BB153/1000 -> 233.2256775 | H7: =Data!BC153/1000 -> 466.451355 | I7: =Data!BA153/1000 -> 2332.256775 | K7: =((F!$E$54*E17)/1000000)+E7 -> 388.0903802
A8: Diesel Constant RPM (Diesel-Electric) | E8: =Data!AU189/1000 -> 390.6566139 | F8: =Data!AV189/1000 -> 4203.109719 | G8: =Data!AX189/1000 -> 267.7139948 | H8: =Data!AY189/1000 -> 535.4279897 | I8: =Data!AW189/1000 -> 2614.900709 | K8: =(((F!$E$54*E18)/1000000)+E8)+((I18*F!E56)/1000000) -> 441.3057291
A9: LNG Constant RPM | E9: =Data!AY235/1000 -> 235.8432218 | F9: =Data!AZ235/1000 -> 826.3386371 | G9: =Data!BB235/1000 -> 2.754462124 | H9: =Data!BC235/1000 -> 5.508924247 | I9: =Data!BA235/1000 -> 27.54462124 | K9: =((F!$E$55*E19)/1000000)+E9 -> 270.7439111
A10: LNG Constant RPM (LNG-Electric) | E10: =Data!AU271/1000 -> 230.4466998 | F10: =Data!AV271/1000 -> 803.1419845 | G10: =Data!AX271/1000 -> 2.677139948 | H10: =Data!AY271/1000 -> 5.354279897 | I10: =Data!AW271/1000 -> 36.31097477 | K10: =(((F!$E$55*E20)/1000000)+E10)+((I20*F!E56)/1000000) -> 266.2462978
A11: Hydrogen | K11: =(((F21/0.6)*F!E56)/1000000)+((I21*F!E56)/1000000) -> 95.90898466
A12: Batteries | E12: Na | F12: Na | G12: Na | H12: Na | I12: Na | K12: =(I22*F!E56)/1000000 -> 27.93873603
A14: Consumptions per tour
E15: Fuel [kg] | F15: Energy, fuel [kWh] | H15: Energy, electricity [kWh] | K15: Used [kWh] | L15: Incl WTWE [kWh]
A16: Diesel variable RPM | E16: =Data!AW110 -> 105854.2716 | F16: =Data!AV110 -> 1267075.632 | K16: =H16+F16 -> 1267075.632 | L16: =IF((H16+F16)*F!$G$54=0,"NA",(H16+F16)*F!$G$54) -> NA
A17: Diesel Constant RPM | E17: =Data!AW153 -> 108793.5087 | F17: =Data!AV153 -> 1302258.299 | K17: =H17+F17 -> 1302258.299 | L17: =IF((H17+F17)*F!$G$54=0,"NA",(H17+F17)*F!$G$54) -> NA
A18: Diesel Constant RPM (Diesel-Electric) | E18: =Data!AS189 -> 123235.5249 | F18: =Data!AR189-Data!BG209 -> 1475129.233 | I18: =Data!BG209+Data!E210 -> 33950 | K18: =F18+I18 -> 1509079.233 | L18: =IF((H18+F18)*F!$G$54=0,"NA",(H18+F18)*F!$G$54) -> NA
A19: LNG Constant RPM | E19: =Data!AW235 -> 85574.46365 | F19: =Data!AV235 -> 1189701.907 | K19: =F19+I19 -> 1189701.907 | L19: =IF((H19+F19)*F!$G$55=0,"NA",(H19+F19)*F!$G$55) -> NA
A20: LNG Constant RPM (LNG-Electric) | E20: =Data!AS271 -> 83616.36424 | F20: =Data!AR271 -> 1162895.526 | I20: =SUM(Data!E256:E289)+Data!BG291 -> 33950 | K20: =F20+I20 -> 1196845.526 | L20: =IF((H20+F20)*F!$G$55=0,"NA",(H20+F20)*F!$G$55) -> NA
A21: Hydrogen | E21: =Data!AD372+Data!AO350+Data!AZ371 -> 27848.30678 | F21: =Data!AN350+Data!AY371+Data!AC372 -> 1130627.662 | I21: =Data!S372+Data!BG291 -> 33800.25625 | K21: =F21+I21 -> 1164427.918 | L21: =IF((H21+F21)*F!$G$56=0,"NA",(H21+F21)*F!$G$56*0.6) -> NA
A22: Batteries | E22: Na | I22: =Data!AJ332 -> 558774.7207 | K22: =F22+I22 -> 558774.7207 | L22: =IF((H22+F22)*F!$G$56=0,"NA",(H22+F22)*F!$G$56) -> NA
A24: Lifetime Costs estimation
C25: Diesel Var. | D25: Diesel const | F25: Diesel-Battery | H25: LNG Const | J25: LNG-Battery | L25: Batteries | M25: Hydrogen
C26: =G!C28 -> 492.534092 | E26: =G!E28 -> 505.6414055 | G26: =G!G28 -> 626.7483033 | I26: =G!I28 -> 553.4389998 | K26: =G!K28 -> 674.5458976 | L26: =G!M28 -> 1971.395252 | M26: =G!O28 -> 38.75163659
A27: Battery setup
E28: Shore Charging | G28: kWh | H28: Left for next | I28: Necessary to next harbour [kW]
C29: ='B1'!B12 -> Bergen | F29: ='B1'!D12 -> 1400 | G29: =Data!Y297 -> 4027.812514 | H29: =IF(Data!AB298="Not enough kWh","No left",Data!AB298) -> No left | K29: =IF(Data!AB298="Not enough kWh",(Data!AA298/Data!D297)+Data!V297,"Sufficient!") -> 5427.522407
C30: ='B1'!B13 -> Florø | F30: ='B1'!D13 -> 0 | G30: =Data!Y298 -> 0 | H30: =IF(Data!AB299="Not enough kWh","No left",Data!AB299) -> No left | K30: =IF(Data!AB299="Not enough kWh",Data!AA299/Data!D298,"Sufficient!") -> 36792.74775
C31: ='B1'!B14 -> Måløy | F31: ='B1'!D14 -> 0 | G31: =Data!Y299 -> 0 | H31: =IF(Data!AB300="Not enough kWh","No left",Data!AB300) -> No left | K31: =IF(Data!AB300="Not enough kWh",Data!AA300/Data!D299,"Sufficient!") -> 59253.5916
C32: ='B1'!B15 -> Torvik | F32: ='B1'!D15 -> 0 | G32: =Data!Y300 -> 0 | H32: =IF(Data!AB301="Not enough kWh","No left",Data!AB301) -> No left | K32: =IF(Data!AB301="Not enough kWh",Data!AA301/Data!D300,"Sufficient!") -> 26296.21756
C33: ='B1'!B16 -> Ålesund | F33: ='B1'!D16 -> 0 | G33: =Data!Y301 -> 0 | H33: =IF(Data!AB302="Not enough kWh","No left",Data!AB302) -> No left | K33: =IF(Data!AB302="Not enough kWh",Data!AA302/Data!D301,"Sufficient!") -> 3870.262599
C34: ='B1'!B17 -> Molde | F34: ='B1'!D17 -> 0 | G34: =Data!Y302 -> 0 | H34: =IF(Data!AB303="Not enough kWh","No left",Data!AB303) -> No left | K34: =IF(Data!AB303="Not enough kWh",Data!AA303/Data!D302,"Sufficient!") -> 34464.61632
C35: ='B1'!B18 -> Kristiansund | F35: ='B1'!D18 -> 0 | G35: =Data!Y303 -> 0 | H35: =IF(Data!AB304="Not enough kWh","No left",Data!AB304) -> No left | K35: =IF(Data!AB304="Not enough kWh",Data!AA304/Data!D303,"Sufficient!") -> 41601.93296
C36: ='B1'!B19 -> Trondheim | F36: ='B1'!D19 -> 1400 | G36: =Data!Y304 -> 3020.859385 | H36: =IF(Data!AB305="Not enough kWh","No left",Data!AB305) -> No left | K36: =IF(Data!AB305="Not enough kWh",Data!AA305/Data!D304,"Sufficient!") -> 8041.203983
C37: ='B1'!B20 -> Rørvik | F37: ='B1'!D20 -> 0 | G37: =Data!Y305 -> 0 | H37: =IF(Data!AB306="Not enough kWh","No left",Data!AB306) -> No left | K37: =IF(Data!AB306="Not enough kWh",Data!AA306/Data!D305,"Sufficient!") -> 34573.90847
C38: ='B1'!B21 -> Brønnøysund | F38: ='B1'!D21 -> 0 | G38: =Data!Y306 -> 0 | H38: =IF(Data!AB307="Not enough kWh","No left",Data!AB307) -> No left | K38: =IF(Data!AB307="Not enough kWh",Data!AA307/Data!D306,"Sufficient!") -> 56117.86719
C39: ='B1'!B22 -> Sandnessjøen | F39: ='B1'!D22 -> 0 | G39: =Data!Y307 -> 0 | H39: =IF(Data!AB308="Not enough kWh","No left",Data!AB308) -> No left | K39: =IF(Data!AB308="Not enough kWh",Data!AA308/Data!D307,"Sufficient!") -> 14879.13426
C40: ='B1'!B23 -> Nesna | F40: ='B1'!D23 -> 0 | G40: =Data!Y308 -> 0 | H40: =IF(Data!AB309="Not enough kWh","No left",Data!AB309) -> No left | K40: =IF(Data!AB309="Not enough kWh",Data!AA309/Data!D308,"Sufficient!") -> 238761.5638
C41: ='B1'!B24 -> Ørnes | F41: ='B1'!D24 -> 0 | G41: =Data!Y309 -> 0 | H41: =IF(Data!AB310="Not enough kWh","No left",Data!AB310) -> No left | K41: =IF(Data!AB310="Not enough kWh",Data!AA310/Data!D309,"Sufficient!") -> 59253.5916
C42: ='B1'!B25 -> Bodø | F42: ='B1'!D25 -> 1400 | G42: =Data!Y310 -> 1258.69141 | H42: =IF(Data!AB311="Not enough kWh","No left",Data!AB311) -> No left | K42: =IF(Data!AB311="Not enough kWh",Data!AA311/Data!D310,"Sufficient!") -> 8640.586256
C43: ='B1'!B26 -> Stamsund | F43: ='B1'!D26 -> 0 | G43: =Data!Y311 -> 0 | H43: =IF(Data!AB312="Not enough kWh","No left",Data!AB312) -> No left | K43: =IF(Data!AB312="Not enough kWh",Data!AA312/Data!D311,"Sufficient!") -> 18830.04345
C44: ='B1'!B27 -> Svolvær | F44: ='B1'!D27 -> 0 | G44: =Data!Y312 -> 0 | H44: =IF(Data!AB313="Not enough kWh","No left",Data!AB313) -> No left | K44: =IF(Data!AB313="Not enough kWh",Data!AA313/Data!D312,"Sufficient!") -> 11610.7878
C45: ='B1'!B28 -> Stokmarknes | F45: ='B1'!D28 -> 0 | G45: =Data!Y313 -> 0 | H45: =IF(Data!AB314="Not enough kWh","No left",Data!AB314) -> No left | K45: =IF(Data!AB314="Not enough kWh",Data!AA314/Data!D313,"Sufficient!") -> 20337.91917
C46: ='B1'!B29 -> Sortland | F46: ='B1'!D29 -> 0 | G46: =Data!Y314 -> 0 | H46: =IF(Data!AB315="Not enough kWh","No left",Data!AB315) -> No left | K46: =IF(Data!AB315="Not enough kWh",Data!AA315/Data!D314,"Sufficient!") -> 34136.39018
C47: ='B1'!B30 -> Risøyhamn | F47: ='B1'!D30 -> 0 | G47: =Data!Y315 -> 0 | H47: =IF(Data!AB316="Not enough kWh","No left",Data!AB316) -> No left | K47: =IF(Data!AB316="Not enough kWh",Data!AA316/Data!D315,"Sufficient!") -> 39275.0577
C48: ='B1'!B31 -> Harstad | F48: ='B1'!D31 -> 0 | G48: =Data!Y316 -> 0 | H48: =IF(Data!AB317="Not enough kWh","No left",Data!AB317) -> No left | K48: =IF(Data!AB317="Not enough kWh",Data!AA317/Data!D316,"Sufficient!") -> 17436.44573
C49: ='B1'!B32 -> Finnsnes | F49: ='B1'!D32 -> 0 | G49: =Data!Y317 -> 0 | H49: =IF(Data!AB318="Not enough kWh","No left",Data!AB318) -> No left | K49: =IF(Data!AB318="Not enough kWh",Data!AA318/Data!D317,"Sufficient!") -> 29955.97049
C50: ='B1'!B33 -> Tromsø | F50: ='B1'!D33 -> 1400 | G50: =Data!Y318 -> 2139.775398 | H50: =IF(Data!AB319="Not enough kWh","No left",Data!AB319) -> No left | K50: =IF(Data!AB319="Not enough kWh",Data!AA319/Data!D318,"Sufficient!") -> 4649.012105
C51: ='B1'!B34 -> Skjervøy | F51: ='B1'!D34 -> 0 | G51: =Data!Y319 -> 0 | H51: =IF(Data!AB320="Not enough kWh","No left",Data!AB320) -> No left | K51: =IF(Data!AB320="Not enough kWh",Data!AA320/Data!D319,"Sufficient!") -> 73666.50792
C52: ='B1'!B35 -> Øksfjord | F52: ='B1'!D35 -> 0 | G52: =Data!Y320 -> 0 | H52: =IF(Data!AB321="Not enough kWh","No left",Data!AB321) -> No left | K52: =IF(Data!AB321="Not enough kWh",Data!AA321/Data!D320,"Sufficient!") -> 66784.13508
C53: ='B1'!B36 -> Hammerfest | F53: ='B1'!D36 -> 0 | G53: =Data!Y321 -> 0 | H53: =IF(Data!AB322="Not enough kWh","No left",Data!AB322) -> No left | K53: =IF(Data!AB322="Not enough kWh",Data!AA322/Data!D321,"Sufficient!") -> 19970.64699
C54: ='B1'!B37 -> Havøysund | F54: ='B1'!D37 -> 0 | G54: =Data!Y322 -> 0 | H54: =IF(Data!AB323="Not enough kWh","No left",Data!AB323) -> No left | K54: =IF(Data!AB323="Not enough kWh",Data!AA323/Data!D322,"Sufficient!") -> 25854.65528
C55: ='B1'!B38 -> Honningsvåg | F55: ='B1'!D38 -> 1400 | G55: =Data!Y323 -> 1762.167975 | H55: =IF(Data!AB324="Not enough kWh","No left",Data!AB324) -> No left | K55: =IF(Data!AB324="Not enough kWh",Data!AA324/Data!D323,"Sufficient!") -> 3301.179554
C56: ='B1'!B39 -> Kjøllefjord | F56: ='B1'!D39 -> 0 | G56: =Data!Y324 -> 0 | H56: =IF(Data!AB325="Not enough kWh","No left",Data!AB325) -> No left | K56: =IF(Data!AB325="Not enough kWh",Data!AA325/Data!D324,"Sufficient!") -> 43183.216
C57: ='B1'!B40 -> Mehamn | F57: ='B1'!D40 -> 0 | G57: =Data!Y325 -> 0 | H57: =IF(Data!AB326="Not enough kWh","No left",Data!AB326) -> No left | K57: =IF(Data!AB326="Not enough kWh",Data!AA326/Data!D325,"Sufficient!") -> 65675.67851
C58: ='B1'!B41 -> Berlevåg | F58: ='B1'!D41 -> 0 | G58: =Data!Y326 -> 0 | H58: =IF(Data!AB327="Not enough kWh","No left",Data!AB327) -> No left | K58: =IF(Data!AB327="Not enough kWh",Data!AA327/Data!D326,"Sufficient!") -> 46022.29211
C59: ='B1'!B42 -> Båtsfjord | F59: ='B1'!D42 -> 0 | G59: =Data!Y327 -> 0 | H59: =IF(Data!AB328="Not enough kWh","No left",Data!AB328) -> No left | K59: =IF(Data!AB328="Not enough kWh",Data!AA328/Data!D327,"Sufficient!") -> 29626.7958
C60: ='B1'!B43 -> Vardø | F60: ='B1'!D43 -> 0 | G60: =Data!Y328 -> 0 | H60: =IF(Data!AB329="Not enough kWh","No left",Data!AB329) -> No left | K60: =IF(Data!AB329="Not enough kWh",Data!AA329/Data!D328,"Sufficient!") -> 62442.00989
C61: ='B1'!B44 -> Vadsø | F61: ='B1'!D44 -> 0 | G61: =Data!Y329 -> 0 | H61: =IF(Data!AB330="Not enough kWh","No left",Data!AB330) -> No left | K61: =IF(Data!AB330="Not enough kWh",Data!AA330/Data!D329,"Sufficient!") -> 22349.81642
C62: ='B1'!B45 -> Kirkenes | F62: na | G62: na | H62: na | K62: na

Sheet D
A1: Project | B1: =A!D5 -> 17-144 | C1: D. SHIP DESIGN - Ferry
A2: Ship name | B2: =A!D6 -> TBN
A4: Power-speed Curve
A24: Main Dimensions
A27: Dimensions | D27: LOA | E27: LPP | F27: LWL | G27: Breadth | H27: Draught | I27: Deadwgt. | J27: Lightwgt | K27: Ballast | L27: Service Area
D28: =Data!E3 -> 125 | E28: =Data!F3 -> na | F28: =Data!G3 -> na | G28: =Data!H3 -> 20 | H28: =Data!I3 -> 0 | I28: =Data!K3 -> na | J28: =Data!L3 -> na | K28: =Data!J3 -> na | L28: ='B2'!L10:M10 -> 2

Sheet E
A1: Project | B1: =A!D5 -> 17-144 | C1: E. ROUTE STUDIES
A2: Ship name | B2: =A!D6 -> TBN
A4: Input from simple setup - route studies
A6: Number of design routes per year | E6: =365/(Data!AU153/25) -> 60.63122924 | P6: =D6 -> 0 | Q6: =P6/60 -> 0
P7: =D7 -> 0 | Q7: =P7/60 -> 0
B8: Distance from port to port | P8: 0 | Q8: 0 | S8: hotel power
P9: 0 | Q9: 0 | S9: =100/0.97 -> 103.0927835
P10: 0 | Q10: 0
P11: 0 | Q11: 0
P12: 0 | Q12: 0
P13: 0 | Q13: 0
Q14: =SUM(Q6:Q13) -> 0
B32: Time from port to port
A56: Capabilites and Sea Margin
B57: Capabilites | E57: Sea Margin
B58: Level | C58: % | E58: Level | F58: %
B59: 1 | C59: 20 | E59: 1 | F59: 5
B60: 2 | C60: 40 | E60: 2 | F60: 12
B61: 3 | C61: 70 | E61: 3 | F61: 18
B62: 4 | C62: 100 | E62: 4 | F62: 40

Sheet F
A1: Project | B1: ='B1'!B1 -> 17-144 | C1: F. ENGINE SETUP
A2: Ship name | B2: ='B1'!B2 -> TBN | C2: 1 | K2: 1
A4: Efficiency, propulsion
C5: Diesel Var. | D5: Diesel const | F5: Diesel-Battery | H5: LNG Const | J5: LNG-Battery | L5: Batteries | M5: Hydrogen
A6: Generator | C6: 2 | E6: 2 | G6: 1 | I6: 1 | K6: 1 | L6: 2 | M6: 2
A7: Drives/Converter | C7: 2 | E7: 2 | G7: 1 | I7: 1 | K7: 1 | L7: 1 | M7: 1
A8: Cabling | C8: 2 | E8: 2 | G8: 1 | I8: 1 | K8: 1 | L8: 1 | M8: 1
A9: Switchboard | C9: 2 | E9: 2 | G9: 1 | I9: 1 | K9: 1 | L9: 1 | M9: 1
A10: El-motors | C10: 2 | E10: 2 | G10: 1 | I10: 1 | K10: 1 | L10: 1 | M10: 1
A11: DC/DC converters | C11: 2 | E11: 2 | G11: 2 | I11: 2 | K11: 2 | L11: 2 | M11: 1
A12: Gear | C12: 1 | E12: 1 | G12: 1 | I12: 1 | K12: 1 | L12: 1 | M12: 1
A14: Overall | C14: =Data!J19 -> 0.95 | E14: =Data!K19 -> 0.95 | G14: =Data!L19 -> 0.7591085934 | I14: =Data!N19 -> 0.7591085934 | K14: =Data!P19 -> 0.7591085934 | L14: =Data!R19 -> 0.7990616772 | M14: =Data!T19 -> 0.7591085934
A16: Efficiency, electricity production
C17: Diesel Var. | D17: Diesel const | F17: Diesel-Battery | H17: LNG Const | J17: LNG-Battery | L17: Batteries | M17: Hydrogen
A18: Generator | C18: 1 | E18: 1 | G18: 1 | I18: 1 | K18: 1 | L18: 1 | M18: 1
A19: Drives/converter | C19: 1 | E19: 1 | G19: 1 | I19: 1 | K19: 1 | L19: 1 | M19: 1
A20: Cabling | C20: 1 | E20: 1 | G20: 1 | I20: 1 | K20: 1 | L20: 1 | M20: 1
A21: Switchboard | C21: 1 | E21: 1 | G21: 1 | I21: 1 | K21: 1 | L21: 1 | M21: 1
A22: DC/DC Converters | C22: 2 | E22: 2 | G22: 2 | I22: 2 | K22: 2 | L22: 2 | M22: 1
A23: ='B2'!M35 -> Open | C23: 2 | E23: 2 | G23: 2 | I23: 2 | K23: 2 | L23: 2 | M23: 2
B25: Overall | C25: =Data!J30 -> 0.84916225 | E25: =Data!K30 -> 0.84916225 | G25: =Data!L30 -> 0.84916225 | I25: =Data!N30 -> 0.84916225 | K25: =Data!P30 -> 0.84916225 | L25: =Data!R30 -> 0.84916225 | M25: =Data!T30 -> 0.8067041375
A27: Efficiency, fossile fuels
C28: Const | D28: x | E28: x2 | F28: x3 | G28: x4 | H28: x5 | I28: x6
A29: Diesel Variable RPM | C29: 0.3099 | D29: 0.58 | E29: -4.0844 | F29: 15.441 | G29: -29.665 | H29: 27.841 | I29: -10.15
A30: Diesel Constant RPM | C30: 0.1667 | D30: 1.1482 | E30: -3.1976 | F30: 5.072 | G30: -4.1771 | H30: 1.3626
A31: LNG | C31: 0.1406 | D31: 1.7576 | E31: -3.8877 | F31: 4.0406 | G31: -1.5559
A33: Efficiency, electricity production, Hydrogen
A35: Max power | C35: =Data!H343 -> 6720 | E35: Number of cells | G35: =Data!I342 -> 56 | I35: 0.54 | J35: until | K35: =Data!H344*G35 -> 1960 | L35: kW
A36: Hours of operation | C36: 25000 | D36: h | E36: Peak Efficiency kW | G36: 35
A37: Design lifetime | C37: =ROUNDUP(C36/Data!Q69,0) -> 4 | D37: years | F37: Weight | G37: =G35*360 -> 20160 | H37: kg
A38: Design Stack Size | C38: 120 | D38: kW | F38: Cost cells | G38: =(C35*G!G55)/1000000 -> 87.36 | H38: MNOK
A39: From max efficiency to mac performance
A40: const | B40: x | C40: x2 | D40: x3 | E40: x4
A41: 0.44 | B41: 0.84 | C41: -2.54 | D41: 2.96 | E41: -1.25
A42: Efficiency, electricity production, Batteries
E43: Cost | G43: =G44*700*7.8/1000000 -> 27.48982041 | H43: MNOK
E44: Design Capacity | G44: =Data!H311 -> 5034.765642 | H44: kWh
A45: Cycluses | C45: =Data!H308 -> 3031.561462 | E45: Number of stacks | G45: =G44/135.6 -> 37.12954013 | H45: Stacks
A46: Allowed discharge | C46: =Data!H309 -> 80% | D46: % | E46: Weight of stacks | G46: =G45*1762 -> 65422.24971 | H46: kg
A48: Power | B48: =0.5*G44 -> 2517.382821 | C48: =1*G44 -> 5034.765642 | D48: =1.5*G44 -> 7552.148463 | E48: =2*G44 -> 10069.53128 | F48: =2.5*G44 -> 12586.9141 | G48: =3*G44 -> 15104.29693 | I48: Minutes in harbour for charging | L48: =MIN(Data!D297:D330)*60 -> 5 | M48: min
A49: Losses | B49: 0.0095 | C49: 0.0175 | D49: 0.0255 | E49: 0.035 | F49: 0.043 | G49: 0.0525 | L49: =MAX(Data!D297:D330)*60 -> 480 | M49: max
G50: Is batteries possible with the current setup? | L50: =IF(Data!AA332="Not possible","No","Yes") -> No
A51: Carbon footprint and well to wheel efficiency fromproduction
D52: CO2-equivalents | F52: Well to wheel efficiency
D53: per kg fuel, g | F53: %
A54: Diesel variable rpm | E54: 397.22
A55: LNG | E55: 407.84
A56: Electricity, Norwegian mix | E56: 50

Sheet G
A1: Project | B1: =A!D5 -> 17-144 | C1: G. COST AND ASSEMBLY
A2: Ship name | B2: =A!D6 -> TBN
A4: Price development and investments
B5: Disel Variable RPM | D5: Diesel Constan RPM | F5: Diesel Electric | H5: LNG | J5: LNG Electric | L5: Hydrogen | N5: Batteries
B6: CAPEX | C6: OPEX | D6: CAPEX | E6: OPEX | F6: CAPEX | G6: OPEX | H6: CAPEX | I6: OPEX | J6: CAPEX | K6: OPEX | L6: CAPEX | M6: OPEX | N6: CAPEX | O6: OPEX
A7: 1 | B7: =(('B2'!$C$32)*$G$53)/1000000 -> 21.91861111 | C7: =(('B2'!$C$32*$M$53)+($D$53*'C '!$F$16*'E '!$E$6))/1000000 -> 44.55812478 | D7: =(('B2'!$C$32)*$G$53)/1000000 -> 21.91861111 | E7: =(('B2'!$C$32*$M$53)+($D$53*'C '!$F$17*'E '!$E$6))/1000000 -> 45.79536245 | F7: =(((('B2'!$C$32)*$G$53)/1000000)+N("Batteries")+((Data!H186*G56)/1000000)) -> 57.40861111 | G7: =(('B2'!$C$32*$M$53)+($M$56*Data!$H$180)+($D$53*(Data!$AR$189-Data!$E$210)*'E '!$E$6)+($D$56*Data!$E$210*'E '!$E$6))/1000000 -> 52.50458792 | H7: =(('B2'!$C$32)*$G$54)/1000000 -> 73.06203704 | I7: =(('B2'!$C$32*$M$54)+($D$54*'C '!$F$17*'E '!$E$6))/1000000 -> 45.79536245 | J7: =(((('B2'!$C$32)*$G$54)/1000000)+N("Batteries")+((Data!H268*G56)/1000000)) -> 108.552037 | K7: =(('B2'!$C$32*$M$53)+($M$56*Data!$H$180)+($D$53*(Data!$AR$189-Data!$E$210)*'E '!$E$6)+($D$56*Data!$E$210*'E '!$E$6))/1000000 -> 52.50458792 | L7: =((((((G55*F!C35)/1000000))+N("Batteries")+((Data!R349*G56)/1000000)))) -> 122.85 | M7: =((F!$C$35*$M$55)+($M$56*Data!$R$349)+($D$55*Data!$H$359*'E '!$E$6)+($D$56*Data!$H$360*'E '!$E$6))/1000000 -> 157.2594985 | N7: =((F!G44)*$G$56)/1000000 -> 27.48982041 | O7: =((F!$G$44*$M$56)+($D$56*'C '!$F$22*'E '!$E$6))/1000000 -> 0
A8: 2 | B8: =IF($I$53>19,0,IF($I$53=1,$B$7,0)) -> 0 | C8: =(('B2'!$C$32*$M$53)+($D$53*'C '!$F$16*'E '!$E$6))/1000000 -> 44.55812478 | D8: =IF($I$53>19,0,IF($I$53=1,$B$7,0)) -> 0 | E8: =(('B2'!$C$32*$M$53)+($D$53*'C '!$F$17*'E '!$E$6))/1000000 -> 45.79536245 | F8: =IF($I$53>19,0,IF($I$53=1,((('B2'!$C$32)*$G$53)/1000000),0))+N("Batteries")+IF($I$56>19,0,IF($I$56=1,((Data!H186*G56)/1000000))) -> 0 | G8: =(('B2'!$C$32*$M$53)+($M$56*Data!$H$180)+($D$53*(Data!$AR$189-Data!$E$210)*'E '!$E$6)+($D$56*Data!$E$210*'E '!$E$6))/1000000 -> 52.50458792 | H8: =IF($I$54>19,0,IF($I$54=1,$H$7,0)) -> 0 | I8: =(('B2'!$C$32*$M$54)+($D$54*'C '!$F$17*'E '!$E$6))/1000000 -> 45.79536245 | J8: =IF($I$54>19,0,IF($I$53=1,((('B2'!$C$32)*$G$54)/1000000),0))+N("Batteries")+IF($I$56>19,0,IF($I$56=1,((Data!H268*G56)/1000000))) -> 0 | K8: =(('B2'!$C$32*$M$53)+($M$56*Data!$H$180)+($D$53*(Data!$AR$189-Data!$E$210)*'E '!$E$6)+($D$56*Data!$E$210*'E '!$E$6))/1000000 -> 52.50458792 | L8: =IF($I$55>19,0,IF($I$55=1,(((G55*F!C35)/1000000)),0)+N("Batteries")+IF($I$56>19,0,IF($I$56=1,((Data!R349*G56)/1000000)))) -> 0 | M8: =((F!$C$35*$M$55)+($M$56*Data!$R$349)+($D$55*Data!$H$359*'E '!$E$6)+($D$56*Data!$H$360*'E '!$E$6))/1000000 -> 157.2594985 | N8: =IF($I$56>19,0,IF($I$56=1,$N$7,0)) -> 0 | O8: =((F!$G$44*$M$56)+($D$56*'C '!$F$22*'E '!$E$6))/1000000 -> 0
A9: 3 | B9: =IF($I$53>19,0,IF($I$53=1,$B$7,IF($I$53=2,$B$7,0))) -> 0 | C9: =(('B2'!$C$32*$M$53)+($D$53*'C '!$F$16*'E '!$E$6))/1000000 -> 44.55812478 | D9: =IF($I$53>19,0,IF($I$53=1,$B$7,IF($I$53=2,$B$7,0))) -> 0 | E9: =(('B2'!$C$32*$M$53)+($D$53*'C '!$F$17*'E '!$E$6))/1000000 -> 45.79536245 | F9: =IF($I$53>19,0,IF($I$53=1,((('B2'!$C$32)*$G$53)/1000000),IF($I$53=2,((('B2'!$C$32)*$G$53)/1000000),0)))+N("Batteries")+IF($I$56>19,0,IF($I$56=1,((Data!H186*G56)/1000000),IF($I$56=2,((Data!H186*G56)/1000000),0))) -> 0 | G9: =(('B2'!$C$32*$M$53)+($M$56*Data!$H$180)+($D$53*(Data!$AR$189-Data!$E$210)*'E '!$E$6)+($D$56*Data!$E$210*'E '!$E$6))/1000000 -> 52.50458792 | H9: =IF($I$54>19,0,IF($I$54=1,$H$7,IF($I$54=2,$H$7,0))) -> 0 | I9: =(('B2'!$C$32*$M$54)+($D$54*'C '!$F$17*'E '!$E$6))/1000000 -> 45.79536245 | J9: =IF($I$54>19,0,IF($I$54=1,((('B2'!$C$32)*$G$54)/1000000),IF($I$54=2,((('B2'!$C$32)*$G$54)/1000000),0)))+N("Batteries")+IF($I$56>19,0,IF($I$56=1,((Data!H268*G56)/1000000),IF($I$56=2,((Data!H268*G56)/1000000),0))) -> 0 | K9: =(('B2'!$C$32*$M$53)+($M$56*Data!$H$180)+($D$53*(Data!$AR$189-Data!$E$210)*'E '!$E$6)+($D$56*Data!$E$210*'E '!$E$6))/1000000 -> 52.50458792 | L9: =IF($I$55>19,0,IF($I$55=1,((G55*F!C35)/1000000),IF($I$55=2,((G55*F!C35)/1000000),0)))+N("Batteries")+IF($I$56>19,0,IF($I$56=1,((Data!R349*G56)/1000000),IF($I$56=2,((Data!R349*G56)/1000000),0))) -> 0 | M9: =((F!$C$35*$M$55)+($M$56*Data!$R$349)+($D$55*Data!$H$359*'E '!$E$6)+($D$56*Data!$H$360*'E '!$E$6))/1000000 -> 157.2594985 | N9: =IF($I$56>19,0,IF($I$56=1,$N$7,IF($I$56=2,$N$7,0))) -> 0 | O9: =((F!$G$44*$M$56)+($D$56*'C '!$F$22*'E '!$E$6))/1000000 -> 0
A10: 4 | B10: =IF($I$53>19,0,IF($I$53=1,$B$7,IF($I$53=3,$B$7,0))) -> 0 | C10: =(('B2'!$C$32*$M$53)+($D$53*'C '!$F$16*'E '!$E$6))/1000000 -> 44.55812478 | D10: =IF($I$53>19,0,IF($I$53=1,$B$7,IF($I$53=3,$B$7,0))) -> 0 | E10: =(('B2'!$C$32*$M$53)+($D$53*'C '!$F$17*'E '!$E$6))/1000000 -> 45.79536245 | F10: =IF($I$53>19,0,IF($I$53=1,((('B2'!$C$32)*$G$53)/1000000),IF($I$53=3,((('B2'!$C$32)*$G$53)/1000000),0)))+N("Batteries")+IF($I$56>19,0,IF($I$56=1,((Data!H186*G56)/1000000),IF($I$56=3,((Data!H186*G56)/1000000),0))) -> 0 | G10: =(('B2'!$C$32*$M$53)+($M$56*Data!$H$180)+($D$53*(Data!$AR$189-Data!$E$210)*'E '!$E$6)+($D$56*Data!$E$210*'E '!$E$6))/1000000 -> 52.50458792 | H10: =IF($I$54>19,0,IF($I$54=1,$H$7,IF($I$54=3,$H$7,0))) -> 0 | I10: =(('B2'!$C$32*$M$54)+($D$54*'C '!$F$17*'E '!$E$6))/1000000 -> 45.79536245 | J10: =IF($I$54>19,0,IF($I$54=1,((('B2'!$C$32)*$G$54)/1000000),IF($I$54=3,((('B2'!$C$32)*$G$54)/1000000),0)))+N("Batteries")+IF($I$56>19,0,IF($I$56=1,((Data!H268*G56)/1000000),IF($I$56=3,((Data!H268*G56)/1000000),0))) -> 0 | K10: =(('B2'!$C$32*$M$53)+($M$56*Data!$H$180)+($D$53*(Data!$AR$189-Data!$E$210)*'E '!$E$6)+($D$56*Data!$E$210*'E '!$E$6))/1000000 -> 52.50458792 | L10: =IF($I$55>19,0,IF($I$55=1,((G55*F!C35)/1000000),IF($I$55=3,((G55*F!C35)/1000000),0)))+N("Batteries")+IF($I$56>19,0,IF($I$56=1,((Data!R349*G56)/1000000),IF($I$56=3,((Data!R349*G56)/1000000),0))) -> 0 | M10: =((F!$C$35*$M$55)+($M$56*Data!$R$349)+($D$55*Data!$H$359*'E '!$E$6)+($D$56*Data!$H$360*'E '!$E$6))/1000000 -> 157.2594985 | N10: =IF($I$56>19,0,IF($I$56=1,$N$7,IF($I$56=3,$N$7,0))) -> 0 | O10: =((F!$G$44*$M$56)+($D$56*'C '!$F$22*'E '!$E$6))/1000000 -> 0
A11: 5 | B11: =IF($I$53>19,0,IF($I$53=1,$B$7,IF($I$53=4,$B$7,IF($I$53=2,$B$7,0)))) -> 0 | C11: =(('B2'!$C$32*$M$53)+($D$53*'C '!$F$16*'E '!$E$6))/1000000 -> 44.55812478 | D11: =IF($I$53>19,0,IF($I$53=1,$B$7,IF($I$53=4,$B$7,IF($I$53=2,$B$7,0)))) -> 0 | E11: =(('B2'!$C$32*$M$53)+($D$53*'C '!$F$17*'E '!$E$6))/1000000 -> 45.79536245 | F11: =IF($I$53>19,0,IF($I$53=1,((('B2'!$C$32)*$G$53)/1000000),IF($I$53=4,((('B2'!$C$32)*$G$53)/1000000),IF($I$53=2,((('B2'!$C$32)*$G$53)/1000000),0))))+N("Batteries")+IF($I$56>19,0,IF($I$56=1,((Data!H186*G56)/1000000),IF($I$56=4,((Data!H186*G56)/1000000),IF($I$56=2,((Data!H186*G56)/1000000),0)))) -> 0 | G11: =(('B2'!$C$32*$M$53)+($M$56*Data!$H$180)+($D$53*(Data!$AR$189-Data!$E$210)*'E '!$E$6)+($D$56*Data!$E$210*'E '!$E$6))/1000000 -> 52.50458792 | H11: =IF($I$54>19,0,IF($I$54=1,$H$7,IF($I$54=4,$H$7,IF($I$54=2,$H$7,0)))) -> 0 | I11: =(('B2'!$C$32*$M$54)+($D$54*'C '!$F$17*'E '!$E$6))/1000000 -> 45.79536245 | J11: =IF($I$54>19,0,IF($I$54=1,((('B2'!$C$32)*$G$54)/1000000),IF($I$54=4,((('B2'!$C$32)*$G$54)/1000000),IF($I$54=2,((('B2'!$C$32)*$G$54)/1000000),0))))+N("Batteries")+IF($I$56>19,0,IF($I$56=1,((Data!H268*G56)/1000000),IF($I$56=4,((Data!H268*G56)/1000000),IF($I$56=2,((Data!H268*G56)/1000000),0)))) -> 0 | K11: =(('B2'!$C$32*$M$53)+($M$56*Data!$H$180)+($D$53*(Data!$AR$189-Data!$E$210)*'E '!$E$6)+($D$56*Data!$E$210*'E '!$E$6))/1000000 -> 52.50458792 | L11: =IF($I$55>19,0,IF($I$55=1,((G55*F!C35)/1000000),IF($I$55=4,((G55*F!C35)/1000000),IF($I$55=2,((G55*F!C35)/1000000),0))))+N("Batteries")+IF($I$56>19,0,IF($I$56=1,((Data!R349*G56)/1000000),IF($I$56=4,((Data!R349*G56)/1000000),IF($I$56=2,((Data!R349*G56)/1000000),0)))) -> 87.36 | M11: =((F!$C$35*$M$55)+($M$56*Data!$R$349)+($D$55*Data!$H$359*'E '!$E$6)+($D$56*Data!$H$360*'E '!$E$6))/1000000 -> 157.2594985 | N11: =IF($I$56>19,0,IF($I$56=1,$N$7,IF($I$56=4,$N$7,IF($I$56=2,$N$7,0)))) -> 0 | O11: =((F!$G$44*$M$56)+($D$56*'C '!$F$22*'E '!$E$6))/1000000 -> 0
A12: 6 | B12: =IF($I$53>19,0,IF($I$53=1,$B$7,IF($I$53=5,$B$7,0))) -> 0 | C12: =(('B2'!$C$32*$M$53)+($D$53*'C '!$F$16*'E '!$E$6))/1000000 -> 44.55812478 | D12: =IF($I$53>19,0,IF($I$53=1,$B$7,IF($I$53=5,$B$7,0))) -> 0 | E12: =(('B2'!$C$32*$M$53)+($D$53*'C '!$F$17*'E '!$E$6))/1000000 -> 45.79536245 | F12: =IF($I$53>19,0,IF($I$53=1,((('B2'!$C$32)*$G$53)/1000000),IF($I$53=5,((('B2'!$C$32)*$G$53)/1000000),0)))+N("Batteries")+IF($I$56>19,0,IF($I$56=1,((Data!H186*G56)/1000000),IF($I$56=5,((Data!H186*G56)/1000000),0))) -> 0 | G12: =(('B2'!$C$32*$M$53)+($M$56*Data!$H$180)+($D$53*(Data!$AR$189-Data!$E$210)*'E '!$E$6)+($D$56*Data!$E$210*'E '!$E$6))/1000000 -> 52.50458792 | H12: =IF($I$54>19,0,IF($I$54=1,$H$7,IF($I$54=5,$H$7,0))) -> 0 | I12: =(('B2'!$C$32*$M$54)+($D$54*'C '!$F$17*'E '!$E$6))/1000000 -> 45.79536245 | J12: =IF($I$54>19,0,IF($I$54=1,((('B2'!$C$32)*$G$54)/1000000),IF($I$54=5,((('B2'!$C$32)*$G$54)/1000000),0)))+N("Batteries")+IF($I$56>19,0,IF($I$56=1,((Data!H268*G56)/1000000),IF($I$56=5,((Data!H268*G56)/1000000),0))) -> 0 | K12: =(('B2'!$C$32*$M$53)+($M$56*Data!$H$180)+($D$53*(Data!$AR$189-Data!$E$210)*'E '!$E$6)+($D$56*Data!$E$210*'E '!$E$6))/1000000 -> 52.50458792 | L12: =IF($I$55>19,0,IF($I$55=1,((G55*F!C35)/1000000),IF($I$55=5,((G55*F!C35)/1000000),0)))+N("Batteries")+IF($I$56>19,0,IF($I$56=1,((Data!R349*G56)/1000000),IF($I$56=5,((Data!R349*G56)/1000000),0))) -> 0 | M12: =((F!$C$35*$M$55)+($M$56*Data!$R$349)+($D$55*Data!$H$359*'E '!$E$6)+($D$56*Data!$H$360*'E '!$E$6))/1000000 -> 157.2594985 | N12: =IF($I$56>19,0,IF($I$56=1,$N$7,IF($I$56=5,$N$7,0))) -> 0 | O12: =((F!$G$44*$M$56)+($D$56*'C '!$F$22*'E '!$E$6))/1000000 -> 0
A13: 7 | B13: =IF($I$53>19,0,IF($I$53=1,$B$7,IF($I$53=2,$B$7,IF($I$53=6,$B$7,IF($I$53=3,$B$7,0))))) -> 0 | C13: =(('B2'!$C$32*$M$53)+($D$53*'C '!$F$16*'E '!$E$6))/1000000 -> 44.55812478 | D13: =IF($I$53>19,0,IF($I$53=1,$B$7,IF($I$53=2,$B$7,IF($I$53=6,$B$7,IF($I$53=3,$B$7,0))))) -> 0 | E13: =(('B2'!$C$32*$M$53)+($D$53*'C '!$F$17*'E '!$E$6))/1000000 -> 45.79536245 | F13: =IF($I$53>19,0,IF($I$53=1,((('B2'!$C$32)*$G$53)/1000000),IF($I$53=2,((('B2'!$C$32)*$G$53)/1000000),IF($I$53=6,((('B2'!$C$32)*$G$53)/1000000),IF($I$53=3,((('B2'!$C$32)*$G$53)/1000000),0)))))+N("Batteries")+IF($I$56>19,0,IF($I$56=1,((Data!H186*G56)/1000000),IF($I$56=2,((Data!H186*G56)/1000000),IF($I$56=6,((Data!H186*G56)/1000000),IF($I$56=3,((Data!H186*G56)/1000000),0))))) -> 0 | G13: =(('B2'!$C$32*$M$53)+($M$56*Data!$H$180)+($D$53*(Data!$AR$189-Data!$E$210)*'E '!$E$6)+($D$56*Data!$E$210*'E '!$E$6))/1000000 -> 52.50458792 | H13: =IF($I$54>19,0,IF($I$54=1,$H$7,IF($I$54=2,$H$7,IF($I$54=6,$H$7,IF($I$54=3,$H$7,0))))) -> 0 | I13: =(('B2'!$C$32*$M$54)+($D$54*'C '!$F$17*'E '!$E$6))/1000000 -> 45.79536245 | J13: =IF($I$54>19,0,IF($I$54=1,((('B2'!$C$32)*$G$54)/1000000),IF($I$54=2,((('B2'!$C$32)*$G$54)/1000000),IF($I$54=6,((('B2'!$C$32)*$G$54)/1000000),IF($I$54=3,((('B2'!$C$32)*$G$54)/1000000),0)))))+N("Batteries")+IF($I$56>19,0,IF($I$56=1,((Data!H268*G56)/1000000),IF($I$56=2,((Data!H268*G56)/1000000),IF($I$56=6,((Data!H268*G56)/1000000),IF($I$56=3,((Data!H268*G56)/1000000),0))))) -> 0 | K13: =(('B2'!$C$32*$M$53)+($M$56*Data!$H$180)+($D$53*(Data!$AR$189-Data!$E$210)*'E '!$E$6)+($D$56*Data!$E$210*'E '!$E$6))/1000000 -> 52.50458792 | L13: =IF($I$55>19,0,IF($I$55=1,((G55*F!C35)/1000000),IF($I$55=2,((G55*F!C35)/1000000),IF($I$55=6,((G55*F!C35)/1000000),IF($I$55=3,((G55*F!C35)/1000000),0)))))+N("Batteries")+IF($I$56>19,0,IF($I$56=1,((Data!R349*G56)/1000000),IF($I$56=2,((Data!R349*G56)/1000000),IF($I$56=6,((Data!R349*G56)/1000000),IF($I$56=3,((Data!R349*G56)/1000000),0))))) -> 0 | M13: =((F!$C$35*$M$55)+($M$56*Data!$R$349)+($D$55*Data!$H$359*'E '!$E$6)+($D$56*Data!$H$360*'E '!$E$6))/1000000 -> 157.2594985 | N13: =IF($I$56>19,0,IF($I$56=1,$N$7,IF($I$56=2,$N$7,IF($I$56=6,$N$7,IF($I$56=3,$N$7,0))))) -> 0 | O13: =((F!$G$44*$M$56)+($D$56*'C '!$F$22*'E '!$E$6))/1000000 -> 0
A14: 8 | B14: =IF($I$53>19,0,IF($I$53=1,$B$7,IF($I$53=7,$B$7,0))) -> 0 | C14: =(('B2'!$C$32*$M$53)+($D$53*'C '!$F$16*'E '!$E$6))/1000000 -> 44.55812478 | D14: =IF($I$53>19,0,IF($I$53=1,$B$7,IF($I$53=7,$B$7,0))) -> 0 | E14: =(('B2'!$C$32*$M$53)+($D$53*'C '!$F$17*'E '!$E$6))/1000000 -> 45.79536245 | F14: =IF($I$53>19,0,IF($I$53=1,((('B2'!$C$32)*$G$53)/1000000),IF($I$53=7,((('B2'!$C$32)*$G$53)/1000000),0)))+N("Batteries")+IF($I$56>19,0,IF($I$56=1,((Data!H186*G56)/1000000),IF($I$56=7,((Data!H186*G56)/1000000),0))) -> 0 | G14: =(('B2'!$C$32*$M$53)+($M$56*Data!$H$180)+($D$53*(Data!$AR$189-Data!$E$210)*'E '!$E$6)+($D$56*Data!$E$210*'E '!$E$6))/1000000 -> 52.50458792 | H14: =IF($I$54>19,0,IF($I$54=1,$H$7,IF($I$54=7,$H$7,0))) -> 0 | I14: =(('B2'!$C$32*$M$54)+($D$54*'C '!$F$17*'E '!$E$6))/1000000 -> 45.79536245 | J14: =IF($I$54>19,0,IF($I$54=1,((('B2'!$C$32)*$G$54)/1000000),IF($I$54=7,((('B2'!$C$32)*$G$54)/1000000),0)))+N("Batteries")+IF($I$56>19,0,IF($I$56=1,((Data!H268*G56)/1000000),IF($I$56=7,((Data!H268*G56)/1000000),0))) -> 0 | K14: =(('B2'!$C$32*$M$53)+($M$56*Data!$H$180)+($D$53*(Data!$AR$189-Data!$E$210)*'E '!$E$6)+($D$56*Data!$E$210*'E '!$E$6))/1000000 -> 52.50458792 | L14: =IF($I$55>19,0,IF($I$55=1,((G55*F!C35)/1000000),IF($I$55=7,((G55*F!C35)/1000000),0)))+N("Batteries")+IF($I$56>19,0,IF($I$56=1,((Data!R349*G56)/1000000),IF($I$56=7,((Data!R349*G56)/1000000),0))) -> 0 | M14: =((F!$C$35*$M$55)+($M$56*Data!$R$349)+($D$55*Data!$H$359*'E '!$E$6)+($D$56*Data!$H$360*'E '!$E$6))/1000000 -> 157.2594985 | N14: =IF($I$56>19,0,IF($I$56=1,$N$7,IF($I$56=7,$N$7,0))) -> 0 | O14: =((F!$G$44*$M$56)+($D$56*'C '!$F$22*'E '!$E$6))/1000000 -> 0
A15: 9 | B15: =IF($I$53>19,0,IF($I$53=1,$B$7,IF($I$53=8,$B$7,IF($I$53=4,$B$7,IF($I$53=2,$B$7,0))))) -> 0 | C15: =(('B2'!$C$32*$M$53)+($D$53*'C '!$F$16*'E '!$E$6))/1000000 -> 44.55812478 | D15: =IF($I$53>19,0,IF($I$53=1,$B$7,IF($I$53=8,$B$7,IF($I$53=4,$B$7,IF($I$53=2,$B$7,0))))) -> 0 | E15: =(('B2'!$C$32*$M$53)+($D$53*'C '!$F$17*'E '!$E$6))/1000000 -> 45.79536245 | F15: =IF($I$53>19,0,IF($I$53=1,((('B2'!$C$32)*$G$53)/1000000),IF($I$53=8,((('B2'!$C$32)*$G$53)/1000000),IF($I$53=4,((('B2'!$C$32)*$G$53)/1000000),IF($I$53=2,((('B2'!$C$32)*$G$53)/1000000),0)))))+N("Batteries")+IF($I$56>19,0,IF($I$56=1,((Data!H186*G56)/1000000),IF($I$56=8,((Data!H186*G56)/1000000),IF($I$56=4,((Data!H186*G56)/1000000),IF($I$56=2,((Data!H186*G56)/1000000),0))))) -> 0 | G15: =(('B2'!$C$32*$M$53)+($M$56*Data!$H$180)+($D$53*(Data!$AR$189-Data!$E$210)*'E '!$E$6)+($D$56*Data!$E$210*'E '!$E$6))/1000000 -> 52.50458792 | H15: =IF($I$54>19,0,IF($I$54=1,$H$7,IF($I$54=8,$H$7,IF($I$54=4,$H$7,IF($I$54=2,$H$7,0))))) -> 0 | I15: =(('B2'!$C$32*$M$54)+($D$54*'C '!$F$17*'E '!$E$6))/1000000 -> 45.79536245 | J15: =IF($I$54>19,0,IF($I$54=1,((('B2'!$C$32)*$G$54)/1000000),IF($I$54=8,((('B2'!$C$32)*$G$54)/1000000),IF($I$54=4,((('B2'!$C$32)*$G$54)/1000000),IF($I$54=2,((('B2'!$C$32)*$G$54)/1000000),0)))))+N("Batteries")+IF($I$56>19,0,IF($I$56=1,((Data!H268*G56)/1000000),IF($I$56=8,((Data!H268*G56)/1000000),IF($I$56=4,((Data!H268*G56)/1000000),IF($I$56=2,((Data!H268*G56)/1000000),0))))) -> 0 | K15: =(('B2'!$C$32*$M$53)+($M$56*Data!$H$180)+($D$53*(Data!$AR$189-Data!$E$210)*'E '!$E$6)+($D$56*Data!$E$210*'E '!$E$6))/1000000 -> 52.50458792 | L15: =IF($I$55>19,0,IF($I$55=1,((G55*F!C35)/1000000),IF($I$55=8,((G55*F!C35)/1000000),IF($I$55=4,((G55*F!C35)/1000000),IF($I$55=2,((G55*F!C35)/1000000),0)))))+N("Batteries")+IF($I$56>19,0,IF($I$56=1,((Data!R349*G56)/1000000),IF($I$56=8,((Data!R349*G56)/1000000),IF($I$56=4,((Data!R349*G56)/1000000),IF($I$56=2,((Data!R349*G56)/1000000),0))))) -> 87.36 | M15: =((F!$C$35*$M$55)+($M$56*Data!$R$349)+($D$55*Data!$H$359*'E '!$E$6)+($D$56*Data!$H$360*'E '!$E$6))/1000000 -> 157.2594985 | N15: =IF($I$56>19,0,IF($I$56=1,$N$7,IF($I$56=8,$N$7,IF($I$56=4,$N$7,IF($I$56=2,$N$7,0))))) -> 0 | O15: =((F!$G$44*$M$56)+($D$56*'C '!$F$22*'E '!$E$6))/1000000 -> 0
A16: 10 | B16: =IF($I$53>19,0,IF($I$53=1,$B$7,IF($I$53=9,$B$7,IF($I$53=3,$B$7,0)))) -> 0 | C16: =(('B2'!$C$32*$M$53)+($D$53*'C '!$F$16*'E '!$E$6))/1000000 -> 44.55812478 | D16: =IF($I$53>19,0,IF($I$53=1,$B$7,IF($I$53=9,$B$7,IF($I$53=3,$B$7,0)))) -> 0 | E16: =(('B2'!$C$32*$M$53)+($D$53*'C '!$F$17*'E '!$E$6))/1000000 -> 45.79536245 | F16: =IF($I$53>19,0,IF($I$53=1,((('B2'!$C$32)*$G$53)/1000000),IF($I$53=9,((('B2'!$C$32)*$G$53)/1000000),IF($I$53=3,((('B2'!$C$32)*$G$53)/1000000),0))))+N("Batteries")+IF($I$56>19,0,IF($I$56=1,((Data!H186*G56)/1000000),IF($I$56=9,((Data!H186*G56)/1000000),IF($I$56=3,((Data!H186*G56)/1000000),0)))) -> 0 | G16: =(('B2'!$C$32*$M$53)+($M$56*Data!$H$180)+($D$53*(Data!$AR$189-Data!$E$210)*'E '!$E$6)+($D$56*Data!$E$210*'E '!$E$6))/1000000 -> 52.50458792 | H16: =IF($I$54>19,0,IF($I$54=1,$H$7,IF($I$54=9,$H$7,IF($I$54=3,$H$7,0)))) -> 0 | I16: =(('B2'!$C$32*$M$54)+($D$54*'C '!$F$17*'E '!$E$6))/1000000 -> 45.79536245 | J16: =IF($I$54>19,0,IF($I$54=1,((('B2'!$C$32)*$G$54)/1000000),IF($I$54=9,((('B2'!$C$32)*$G$54)/1000000),IF($I$54=3,((('B2'!$C$32)*$G$54)/1000000),0))))+N("Batteries")+IF($I$56>19,0,IF($I$56=1,((Data!H268*G56)/1000000),IF($I$56=9,((Data!H268*G56)/1000000),IF($I$56=3,((Data!H268*G56)/1000000),0)))) -> 0 | K16: =(('B2'!$C$32*$M$53)+($M$56*Data!$H$180)+($D$53*(Data!$AR$189-Data!$E$210)*'E '!$E$6)+($D$56*Data!$E$210*'E '!$E$6))/1000000 -> 52.50458792 | L16: =IF($I$55>19,0,IF($I$55=1,((G55*F!C35)/1000000),IF($I$55=9,((G55*F!C35)/1000000),IF($I$55=3,((G55*F!C35)/1000000),0))))+N("Batteries")+IF($I$56>19,0,IF($I$56=1,((Data!R349*G56)/1000000),IF($I$56=9,((Data!R349*G56)/1000000),IF($I$56=3,((Data!R349*G56)/1000000),0)))) -> 0 | M16: =((F!$C$35*$M$55)+($M$56*Data!$R$349)+($D$55*Data!$H$359*'E '!$E$6)+($D$56*Data!$H$360*'E '!$E$6))/1000000 -> 157.2594985 | N16: =IF($I$56>19,0,IF($I$56=1,$N$7,IF($I$56=9,$N$7,IF($I$56=3,$N$7,0)))) -> 0 | O16: =((F!$G$44*$M$56)+($D$56*'C '!$F$22*'E '!$E$6))/1000000 -> 0
A17: 11 | B17: =IF($I$53>19,0,IF($I$53=1,$B$7,IF($I$53=10,$B$7,IF($I$53=5,$B$7,IF($I$53=2,$B$7,0))))) -> 0 | C17: =(('B2'!$C$32*$M$53)+($D$53*'C '!$F$16*'E '!$E$6))/1000000 -> 44.55812478 | D17: =IF($I$53>19,0,IF($I$53=1,$B$7,IF($I$53=10,$B$7,IF($I$53=5,$B$7,IF($I$53=2,$B$7,0))))) -> 0 | E17: =(('B2'!$C$32*$M$53)+($D$53*'C '!$F$17*'E '!$E$6))/1000000 -> 45.79536245 | F17: =IF($I$53>19,0,IF($I$53=1,((('B2'!$C$32)*$G$53)/1000000),IF($I$53=10,((('B2'!$C$32)*$G$53)/1000000),IF($I$53=5,((('B2'!$C$32)*$G$53)/1000000),IF($I$53=2,((('B2'!$C$32)*$G$53)/1000000),0)))))+N("Batteries")+IF($I$56>19,0,IF($I$56=1,((Data!H186*G56)/1000000),IF($I$56=10,((Data!H186*G56)/1000000),IF($I$56=5,((Data!H186*G56)/1000000),IF($I$56=2,((Data!H186*G56)/1000000),0))))) -> 35.49 | G17: =(('B2'!$C$32*$M$53)+($M$56*Data!$H$180)+($D$53*(Data!$AR$189-Data!$E$210)*'E '!$E$6)+($D$56*Data!$E$210*'E '!$E$6))/1000000 -> 52.50458792 | H17: =IF($I$54>19,0,IF($I$54=1,$H$7,IF($I$54=10,$H$7,IF($I$54=5,$H$7,IF($I$54=2,$H$7,0))))) -> 0 | I17: =(('B2'!$C$32*$M$54)+($D$54*'C '!$F$17*'E '!$E$6))/1000000 -> 45.79536245 | J17: =IF($I$54>19,0,IF($I$54=1,((('B2'!$C$32)*$G$54)/1000000),IF($I$54=10,((('B2'!$C$32)*$G$54)/1000000),IF($I$54=5,((('B2'!$C$32)*$G$54)/1000000),IF($I$54=2,((('B2'!$C$32)*$G$54)/1000000),0)))))+N("Batteries")+IF($I$56>19,0,IF($I$56=1,((Data!H268*G56)/1000000),IF($I$56=10,((Data!H268*G56)/1000000),IF($I$56=5,((Data!H268*G56)/1000000),IF($I$56=2,((Data!H268*G56)/1000000),0))))) -> 35.49 | K17: =(('B2'!$C$32*$M$53)+($M$56*Data!$H$180)+($D$53*(Data!$AR$189-Data!$E$210)*'E '!$E$6)+($D$56*Data!$E$210*'E '!$E$6))/1000000 -> 52.50458792 | L17: =IF($I$55>19,0,IF($I$55=1,((G55*F!C35)/1000000),IF($I$55=10,((G55*F!C35)/1000000),IF($I$55=5,((G55*F!C35)/1000000),IF($I$55=2,((G55*F!C35)/1000000),0)))))+N("Batteries")+IF($I$56>19,0,IF($I$56=1,((Data!R349*G56)/1000000),IF($I$56=10,((Data!R349*G56)/1000000),IF($I$56=5,((Data!R349*G56)/1000000),IF($I$56=2,((Data!R349*G56)/1000000),0))))) -> 35.49 | M17: =((F!$C$35*$M$55)+($M$56*Data!$R$349)+($D$55*Data!$H$359*'E '!$E$6)+($D$56*Data!$H$360*'E '!$E$6))/1000000 -> 157.2594985 | N17: =IF($I$56>19,0,IF($I$56=1,$N$7,IF($I$56=10,$N$7,IF($I$56=5,$N$7,IF($I$56=2,$N$7,0))))) -> 27.48982041 | O17: =((F!$G$44*$M$56)+($D$56*'C '!$F$22*'E '!$E$6))/1000000 -> 0
A18: 12 | B18: =IF($I$53>19,0,IF($I$53=1,$B$7,IF($I$53=11,$B$7,0))) -> 0 | C18: =(('B2'!$C$32*$M$53)+($D$53*'C '!$F$16*'E '!$E$6))/1000000 -> 44.55812478 | D18: =IF($I$53>19,0,IF($I$53=1,$B$7,IF($I$53=11,$B$7,0))) -> 0 | E18: =(('B2'!$C$32*$M$53)+($D$53*'C '!$F$17*'E '!$E$6))/1000000 -> 45.79536245 | F18: =IF($I$53>19,0,IF($I$53=1,((('B2'!$C$32)*$G$53)/1000000),IF($I$53=11,((('B2'!$C$32)*$G$53)/1000000),0)))+N("Batteries")+IF($I$56>19,0,IF($I$56=1,((Data!H186*G56)/1000000),IF($I$56=11,((Data!H186*G56)/1000000),0))) -> 0 | G18: =(('B2'!$C$32*$M$53)+($M$56*Data!$H$180)+($D$53*(Data!$AR$189-Data!$E$210)*'E '!$E$6)+($D$56*Data!$E$210*'E '!$E$6))/1000000 -> 52.50458792 | H18: =IF($I$54>19,0,IF($I$54=1,$H$7,IF($I$54=11,$H$7,0))) -> 0 | I18: =(('B2'!$C$32*$M$54)+($D$54*'C '!$F$17*'E '!$E$6))/1000000 -> 45.79536245 | J18: =IF($I$54>19,0,IF($I$54=1,((('B2'!$C$32)*$G$54)/1000000),IF($I$54=11,((('B2'!$C$32)*$G$54)/1000000),0)))+N("Batteries")+IF($I$56>19,0,IF($I$56=1,((Data!H268*G56)/1000000),IF($I$56=11,((Data!H268*G56)/1000000),0))) -> 0 | K18: =(('B2'!$C$32*$M$53)+($M$56*Data!$H$180)+($D$53*(Data!$AR$189-Data!$E$210)*'E '!$E$6)+($D$56*Data!$E$210*'E '!$E$6))/1000000 -> 52.50458792 | L18: =IF($I$55>19,0,IF($I$55=1,((G55*F!C35)/1000000),IF($I$55=11,((G55*F!C35)/1000000),0)))+N("Batteries")+IF($I$56>19,0,IF($I$56=1,((Data!R349*G56)/1000000),IF($I$56=11,((Data!R349*G56)/1000000),0))) -> 0 | M18: =((F!$C$35*$M$55)+($M$56*Data!$R$349)+($D$55*Data!$H$359*'E '!$E$6)+($D$56*Data!$H$360*'E '!$E$6))/1000000 -> 157.2594985 | N18: =IF($I$56>19,0,IF($I$56=1,$N$7,IF($I$56=11,$N$7,0))) -> 0 | O18: =((F!$G$44*$M$56)+($D$56*'C '!$F$22*'E '!$E$6))/1000000 -> 0
A19: 13 | B19: =IF($I$53>19,0,IF($I$53=1,$B$7,IF($I$53=12,$B$7,IF($I$53=6,$B$7,IF($I$53=4,$B$7,IF($I$53=3,$B$7,IF($I$53=2,$B$7,0))))))) -> 0 | C19: =(('B2'!$C$32*$M$53)+($D$53*'C '!$F$16*'E '!$E$6))/1000000 -> 44.55812478 | D19: =IF($I$53>19,0,IF($I$53=1,$B$7,IF($I$53=12,$B$7,IF($I$53=6,$B$7,IF($I$53=4,$B$7,IF($I$53=3,$B$7,IF($I$53=2,$B$7,0))))))) -> 0 | E19: =(('B2'!$C$32*$M$53)+($D$53*'C '!$F$17*'E '!$E$6))/1000000 -> 45.79536245 | F19: =IF($I$53>19,0,IF($I$53=1,((('B2'!$C$32)*$G$53)/1000000),IF($I$53=12,((('B2'!$C$32)*$G$53)/1000000),IF($I$53=6,((('B2'!$C$32)*$G$53)/1000000),IF($I$53=4,((('B2'!$C$32)*$G$53)/1000000),IF($I$53=3,((('B2'!$C$32)*$G$53)/1000000),IF($I$53=2,((('B2'!$C$32)*$G$53)/1000000),0)))))))+N("Batteries")+IF($I$56>19,0,IF($I$56=1,((Data!H186*G56)/1000000),IF($I$56=12,((Data!H186*G56)/1000000),IF($I$56=6,((Data!H186*G56)/1000000),IF($I$56=4,((Data!H186*G56)/1000000),IF($I$56=3,((Data!H186*G56)/1000000),IF($I$56=2,((Data!H186*G56)/1000000),0))))))) -> 0 | G19: =(('B2'!$C$32*$M$53)+($M$56*Data!$H$180)+($D$53*(Data!$AR$189-Data!$E$210)*'E '!$E$6)+($D$56*Data!$E$210*'E '!$E$6))/1000000 -> 52.50458792 | H19: =IF($I$54>19,0,IF($I$54=1,$H$7,IF($I$54=12,$H$7,IF($I$54=6,$H$7,IF($I$54=4,$H$7,IF($I$54=3,$H$7,IF($I$54=2,$H$7,0))))))) -> 0 | I19: =(('B2'!$C$32*$M$54)+($D$54*'C '!$F$17*'E '!$E$6))/1000000 -> 45.79536245 | J19: =IF($I$54>19,0,IF($I$54=1,((('B2'!$C$32)*$G$54)/1000000),IF($I$54=12,((('B2'!$C$32)*$G$54)/1000000),IF($I$54=6,((('B2'!$C$32)*$G$54)/1000000),IF($I$54=4,((('B2'!$C$32)*$G$54)/1000000),IF($I$54=3,((('B2'!$C$32)*$G$54)/1000000),IF($I$54=2,((('B2'!$C$32)*$G$54)/1000000),0)))))))+N("Batteries")+IF($I$56>19,0,IF($I$56=1,((Data!H268*G56)/1000000),IF($I$56=12,((Data!H268*G56)/1000000),IF($I$56=6,((Data!H268*G56)/1000000),IF($I$56=4,((Data!H268*G56)/1000000),IF($I$56=3,((Data!H268*G56)/1000000),IF($I$56=2,((Data!H268*G56)/1000000),0))))))) -> 0 | K19: =(('B2'!$C$32*$M$53)+($M$56*Data!$H$180)+($D$53*(Data!$AR$189-Data!$E$210)*'E '!$E$6)+($D$56*Data!$E$210*'E '!$E$6))/1000000 -> 52.50458792 | L19: =IF($I$55>19,0,IF($I$55=1,((G55*F!C35)/1000000),IF($I$55=12,((G55*F!C35)/1000000),IF($I$55=6,((G55*F!C35)/1000000),IF($I$55=4,((G55*F!C35)/1000000),IF($I$55=3,((G55*F!C35)/1000000),IF($I$55=2,((G55*F!C35)/1000000),0)))))))+N("Batteries")+IF($I$56>19,0,IF($I$56=1,((Data!R349*G56)/1000000),IF($I$56=12,((Data!R349*G56)/1000000),IF($I$56=6,((Data!R349*G56)/1000000),IF($I$56=4,((Data!R349*G56)/1000000),IF($I$56=3,((Data!R349*G56)/1000000),IF($I$56=2,((Data!R349*G56)/1000000),0))))))) -> 87.36 | M19: =((F!$C$35*$M$55)+($M$56*Data!$R$349)+($D$55*Data!$H$359*'E '!$E$6)+($D$56*Data!$H$360*'E '!$E$6))/1000000 -> 157.2594985 | N19: =IF($I$56>19,0,IF($I$56=1,$N$7,IF($I$56=12,$N$7,IF($I$56=6,$N$7,IF($I$56=4,$N$7,IF($I$56=3,$N$7,IF($I$56=2,$N$7,0))))))) -> 0 | O19: =((F!$G$44*$M$56)+($D$56*'C '!$F$22*'E '!$E$6))/1000000 -> 0
A20: 14 | B20: =IF($I$53>19,0,IF($I$53=1,$B$7,IF($I$53=13,$B$7,0))) -> 0 | C20: =(('B2'!$C$32*$M$53)+($D$53*'C '!$F$16*'E '!$E$6))/1000000 -> 44.55812478 | D20: =IF($I$53>19,0,IF($I$53=1,$B$7,IF($I$53=13,$B$7,0))) -> 0 | E20: =(('B2'!$C$32*$M$53)+($D$53*'C '!$F$17*'E '!$E$6))/1000000 -> 45.79536245 | F20: =IF($I$53>19,0,IF($I$53=1,((('B2'!$C$32)*$G$53)/1000000),IF($I$53=13,((('B2'!$C$32)*$G$53)/1000000),0)))+N("Batteries")+IF($I$56>19,0,IF($I$56=1,((Data!H186*G56)/1000000),IF($I$56=13,((Data!H186*G56)/1000000),0))) -> 0 | G20: =(('B2'!$C$32*$M$53)+($M$56*Data!$H$180)+($D$53*(Data!$AR$189-Data!$E$210)*'E '!$E$6)+($D$56*Data!$E$210*'E '!$E$6))/1000000 -> 52.50458792 | H20: =IF($I$54>19,0,IF($I$54=1,$H$7,IF($I$54=13,$H$7,0))) -> 0 | I20: =(('B2'!$C$32*$M$54)+($D$54*'C '!$F$17*'E '!$E$6))/1000000 -> 45.79536245 | J20: =IF($I$54>19,0,IF($I$54=1,((('B2'!$C$32)*$G$54)/1000000),IF($I$54=13,((('B2'!$C$32)*$G$54)/1000000),0)))+N("Batteries")+IF($I$56>19,0,IF($I$56=1,((Data!H268*G56)/1000000),IF($I$56=13,((Data!H268*G56)/1000000),0))) -> 0 | K20: =(('B2'!$C$32*$M$53)+($M$56*Data!$H$180)+($D$53*(Data!$AR$189-Data!$E$210)*'E '!$E$6)+($D$56*Data!$E$210*'E '!$E$6))/1000000 -> 52.50458792 | L20: =IF($I$55>19,0,IF($I$55=1,((G55*F!C35)/1000000),IF($I$55=13,((G55*F!C35)/1000000),0)))+N("Batteries")+IF($I$56>19,0,IF($I$56=1,((Data!R349*G56)/1000000),IF($I$56=13,((Data!R349*G56)/1000000),0))) -> 0 | M20: =((F!$C$35*$M$55)+($M$56*Data!$R$349)+($D$55*Data!$H$359*'E '!$E$6)+($D$56*Data!$H$360*'E '!$E$6))/1000000 -> 157.2594985 | N20: =IF($I$56>19,0,IF($I$56=1,$N$7,IF($I$56=13,$N$7,0))) -> 0 | O20: =((F!$G$44*$M$56)+($D$56*'C '!$F$22*'E '!$E$6))/1000000 -> 0
A21: 15 | B21: =IF($I$53>19,0,IF($I$53=1,$B$7,IF($I$53=14,$B$7,IF($I$53=7,$B$7,IF($I$53=2,$B$7,0))))) -> 0 | C21: =(('B2'!$C$32*$M$53)+($D$53*'C '!$F$16*'E '!$E$6))/1000000 -> 44.55812478 | D21: =IF($I$53>19,0,IF($I$53=1,$B$7,IF($I$53=14,$B$7,IF($I$53=7,$B$7,IF($I$53=2,$B$7,0))))) -> 0 | E21: =(('B2'!$C$32*$M$53)+($D$53*'C '!$F$17*'E '!$E$6))/1000000 -> 45.79536245 | F21: =IF($I$53>19,0,IF($I$53=1,((('B2'!$C$32)*$G$53)/1000000),IF($I$53=14,((('B2'!$C$32)*$G$53)/1000000),IF($I$53=7,((('B2'!$C$32)*$G$53)/1000000),IF($I$53=2,((('B2'!$C$32)*$G$53)/1000000),0)))))+N("Batteries")+IF($I$56>19,0,IF($I$56=1,((Data!H186*G56)/1000000),IF($I$56=14,((Data!H186*G56)/1000000),IF($I$56=7,((Data!H186*G56)/1000000),IF($I$56=2,((Data!H186*G56)/1000000),0))))) -> 0 | G21: =(('B2'!$C$32*$M$53)+($M$56*Data!$H$180)+($D$53*(Data!$AR$189-Data!$E$210)*'E '!$E$6)+($D$56*Data!$E$210*'E '!$E$6))/1000000 -> 52.50458792 | H21: =IF($I$54>19,0,IF($I$54=1,$H$7,IF($I$54=14,$H$7,IF($I$54=7,$H$7,IF($I$54=2,$H$7,0))))) -> 0 | I21: =(('B2'!$C$32*$M$54)+($D$54*'C '!$F$17*'E '!$E$6))/1000000 -> 45.79536245 | J21: =IF($I$54>19,0,IF($I$54=1,((('B2'!$C$32)*$G$54)/1000000),IF($I$54=14,((('B2'!$C$32)*$G$54)/1000000),IF($I$54=7,((('B2'!$C$32)*$G$54)/1000000),IF($I$54=2,((('B2'!$C$32)*$G$54)/1000000),0)))))+N("Batteries")+IF($I$56>19,0,IF($I$56=1,((Data!H268*G56)/1000000),IF($I$56=14,((Data!H268*G56)/1000000),IF($I$56=7,((Data!H268*G56)/1000000),IF($I$56=2,((Data!H268*G56)/1000000),0))))) -> 0 | K21: =(('B2'!$C$32*$M$53)+($M$56*Data!$H$180)+($D$53*(Data!$AR$189-Data!$E$210)*'E '!$E$6)+($D$56*Data!$E$210*'E '!$E$6))/1000000 -> 52.50458792 | L21: =IF($I$55>19,0,IF($I$55=1,((G55*F!C35)/1000000),IF($I$55=14,((G55*F!C35)/1000000),IF($I$55=7,((G55*F!C35)/1000000),IF($I$53=2,((G55*F!C35)/1000000),0)))))+N("Batteries")+IF($I$56>19,0,IF($I$56=1,((Data!R349*G56)/1000000),IF($I$56=14,((Data!R349*G56)/1000000),IF($I$56=7,((Data!R349*G56)/1000000),IF($I$56=2,((Data!R349*G56)/1000000),0))))) -> 0 | M21: =((F!$C$35*$M$55)+($M$56*Data!$R$349)+($D$55*Data!$H$359*'E '!$E$6)+($D$56*Data!$H$360*'E '!$E$6))/1000000 -> 157.2594985 | N21: =IF($I$56>19,0,IF($I$56=1,$N$7,IF($I$56=14,$N$7,IF($I$56=7,$N$7,IF($I$56=2,$N$7,0))))) -> 0 | O21: =((F!$G$44*$M$56)+($D$56*'C '!$F$22*'E '!$E$6))/1000000 -> 0
A22: 16 | B22: =IF($I$53>19,0,IF($I$53=1,$B$7,IF($I$53=15,$B$7,IF($I$53=5,$B$7,IF($I$53=3,$B$7,0))))) -> 0 | C22: =(('B2'!$C$32*$M$53)+($D$53*'C '!$F$16*'E '!$E$6))/1000000 -> 44.55812478 | D22: =IF($I$53>19,0,IF($I$53=1,$B$7,IF($I$53=15,$B$7,IF($I$53=5,$B$7,IF($I$53=3,$B$7,0))))) -> 0 | E22: =(('B2'!$C$32*$M$53)+($D$53*'C '!$F$17*'E '!$E$6))/1000000 -> 45.79536245 | F22: =IF($I$53>19,0,IF($I$53=1,((('B2'!$C$32)*$G$53)/1000000),IF($I$53=15,((('B2'!$C$32)*$G$53)/1000000),IF($I$53=5,((('B2'!$C$32)*$G$53)/1000000),IF($I$53=3,((('B2'!$C$32)*$G$53)/1000000),0)))))+N("Batteries")+IF($I$56>19,0,IF($I$56=1,((Data!H186*G56)/1000000),IF($I$56=15,((Data!H186*G56)/1000000),IF($I$56=5,((Data!H186*G56)/1000000),IF($I$56=3,((Data!H186*G56)/1000000),0))))) -> 0 | G22: =(('B2'!$C$32*$M$53)+($M$56*Data!$H$180)+($D$53*(Data!$AR$189-Data!$E$210)*'E '!$E$6)+($D$56*Data!$E$210*'E '!$E$6))/1000000 -> 52.50458792 | H22: =IF($I$54>19,0,IF($I$54=1,$H$7,IF($I$54=15,$H$7,IF($I$54=5,$H$7,IF($I$54=3,$H$7,0))))) -> 0 | I22: =(('B2'!$C$32*$M$54)+($D$54*'C '!$F$17*'E '!$E$6))/1000000 -> 45.79536245 | J22: =IF($I$54>19,0,IF($I$54=1,((('B2'!$C$32)*$G$54)/1000000),IF($I$54=15,((('B2'!$C$32)*$G$54)/1000000),IF($I$54=5,((('B2'!$C$32)*$G$54)/1000000),IF($I$54=3,((('B2'!$C$32)*$G$54)/1000000),0)))))+N("Batteries")+IF($I$56>19,0,IF($I$56=1,((Data!H268*G56)/1000000),IF($I$56=15,((Data!H268*G56)/1000000),IF($I$56=5,((Data!H268*G56)/1000000),IF($I$56=3,((Data!H268*G56)/1000000),0))))) -> 0 | K22: =(('B2'!$C$32*$M$53)+($M$56*Data!$H$180)+($D$53*(Data!$AR$189-Data!$E$210)*'E '!$E$6)+($D$56*Data!$E$210*'E '!$E$6))/1000000 -> 52.50458792 | L22: =IF($I$55>19,0,IF($I$55=1,((G55*F!C35)/1000000),IF($I$55=15,((G55*F!C35)/1000000),IF($I$55=5,((G55*F!C35)/1000000),IF($I$55=3,((G55*F!C35)/1000000),0)))))+N("Batteries")+IF($I$56>19,0,IF($I$56=1,((Data!R349*G56)/1000000),IF($I$56=15,((Data!R349*G56)/1000000),IF($I$56=5,((Data!R349*G56)/1000000),IF($I$56=3,((Data!R349*G56)/1000000),0))))) -> 0 | M22: =((F!$C$35*$M$55)+($M$56*Data!$R$349)+($D$55*Data!$H$359*'E '!$E$6)+($D$56*Data!$H$360*'E '!$E$6))/1000000 -> 157.2594985 | N22: =IF($I$56>19,0,IF($I$56=1,$N$7,IF($I$56=15,$N$7,IF($I$56=5,$N$7,IF($I$56=3,$N$7,0))))) -> 0 | O22: =((F!$G$44*$M$56)+($D$56*'C '!$F$22*'E '!$E$6))/1000000 -> 0
A23: 17 | B23: =IF($I$53>19,0,IF($I$53=1,$B$7,IF($I$53=16,$B$7,IF($I$53=4,$B$7,IF($I$53=2,$B$7,IF($I$53=8,$B$7,0)))))) -> 0 | C23: =(('B2'!$C$32*$M$53)+($D$53*'C '!$F$16*'E '!$E$6))/1000000 -> 44.55812478 | D23: =IF($I$53>19,0,IF($I$53=1,$B$7,IF($I$53=16,$B$7,IF($I$53=4,$B$7,IF($I$53=2,$B$7,IF($I$53=8,$B$7,0)))))) -> 0 | E23: =(('B2'!$C$32*$M$53)+($D$53*'C '!$F$17*'E '!$E$6))/1000000 -> 45.79536245 | F23: =IF($I$53>19,0,IF($I$53=1,((('B2'!$C$32)*$G$53)/1000000),IF($I$53=16,((('B2'!$C$32)*$G$53)/1000000),IF($I$53=4,((('B2'!$C$32)*$G$53)/1000000),IF($I$53=2,((('B2'!$C$32)*$G$53)/1000000),IF($I$53=8,((('B2'!$C$32)*$G$53)/1000000),0))))))+N("Batteries")+IF($I$56>19,0,IF($I$56=1,((Data!H186*G56)/1000000),IF($I$56=16,((Data!H186*G56)/1000000),IF($I$56=4,((Data!H186*G56)/1000000),IF($I$56=2,((Data!H186*G56)/1000000),IF($I$56=8,((Data!H186*G56)/1000000),0)))))) -> 0 | G23: =(('B2'!$C$32*$M$53)+($M$56*Data!$H$180)+($D$53*(Data!$AR$189-Data!$E$210)*'E '!$E$6)+($D$56*Data!$E$210*'E '!$E$6))/1000000 -> 52.50458792 | H23: =IF($I$54>19,0,IF($I$54=1,$H$7,IF($I$54=16,$H$7,IF($I$54=4,$H$7,IF($I$54=2,$H$7,IF($I$54=8,$H$7,0)))))) -> 0 | I23: =(('B2'!$C$32*$M$54)+($D$54*'C '!$F$17*'E '!$E$6))/1000000 -> 45.79536245 | J23: =IF($I$54>19,0,IF($I$54=1,((('B2'!$C$32)*$G$54)/1000000),IF($I$54=16,((('B2'!$C$32)*$G$54)/1000000),IF($I$54=4,((('B2'!$C$32)*$G$54)/1000000),IF($I$54=2,((('B2'!$C$32)*$G$54)/1000000),IF($I$54=8,((('B2'!$C$32)*$G$54)/1000000),0))))))+N("Batteries")+IF($I$56>19,0,IF($I$56=1,((Data!H268*G56)/1000000),IF($I$56=16,((Data!H268*G56)/1000000),IF($I$56=4,((Data!H268*G56)/1000000),IF($I$56=2,((Data!H268*G56)/1000000),IF($I$56=8,((Data!H268*G56)/1000000),0)))))) -> 0 | K23: =(('B2'!$C$32*$M$53)+($M$56*Data!$H$180)+($D$53*(Data!$AR$189-Data!$E$210)*'E '!$E$6)+($D$56*Data!$E$210*'E '!$E$6))/1000000 -> 52.50458792 | L23: =IF($I$55>19,0,IF($I$55=1,((G55*F!C35)/1000000),IF($I$55=16,((G55*F!C35)/1000000),IF($I$55=4,((G55*F!C35)/1000000),IF($I$55=2,((G55*F!C35)/1000000),IF($I$55=8,((G55*F!C35)/1000000),0))))))+N("Batteries")+IF($I$56>19,0,IF($I$56=1,((Data!R349*G56)/1000000),IF($I$56=16,((Data!R349*G56)/1000000),IF($I$56=4,((Data!R349*G56)/1000000),IF($I$56=2,((Data!R349*G56)/1000000),IF($I$56=8,((Data!R349*G56)/1000000),0)))))) -> 87.36 | M23: =((F!$C$35*$M$55)+($M$56*Data!$R$349)+($D$55*Data!$H$359*'E '!$E$6)+($D$56*Data!$H$360*'E '!$E$6))/1000000 -> 157.2594985 | N23: =IF($I$56>19,0,IF($I$56=1,$N$7,IF($I$56=16,$N$7,IF($I$56=4,$N$7,IF($I$56=2,$N$7,IF($I$56=8,$N$7,0)))))) -> 0 | O23: =((F!$G$44*$M$56)+($D$56*'C '!$F$22*'E '!$E$6))/1000000 -> 0
A24: 18 | B24: =IF($I$53>19,0,IF($I$53=1,$B$7,IF($I$53=17,$B$7,0))) -> 0 | C24: =(('B2'!$C$32*$M$53)+($D$53*'C '!$F$16*'E '!$E$6))/1000000 -> 44.55812478 | D24: =IF($I$53>19,0,IF($I$53=1,$B$7,IF($I$53=17,$B$7,0))) -> 0 | E24: =(('B2'!$C$32*$M$53)+($D$53*'C '!$F$17*'E '!$E$6))/1000000 -> 45.79536245 | F24: =IF($I$53>19,0,IF($I$53=1,((('B2'!$C$32)*$G$53)/1000000),IF($I$53=17,((('B2'!$C$32)*$G$53)/1000000),0)))+N("Batteries")+IF($I$56>19,0,IF($I$56=1,((Data!H186*G56)/1000000),IF($I$56=17,((Data!H186*G56)/1000000),0))) -> 0 | G24: =(('B2'!$C$32*$M$53)+($M$56*Data!$H$180)+($D$53*(Data!$AR$189-Data!$E$210)*'E '!$E$6)+($D$56*Data!$E$210*'E '!$E$6))/1000000 -> 52.50458792 | H24: =IF($I$54>19,0,IF($I$54=1,$H$7,IF($I$54=17,$H$7,0))) -> 0 | I24: =(('B2'!$C$32*$M$54)+($D$54*'C '!$F$17*'E '!$E$6))/1000000 -> 45.79536245 | J24: =IF($I$54>19,0,IF($I$54=1,((('B2'!$C$32)*$G$54)/1000000),IF($I$54=17,((('B2'!$C$32)*$G$54)/1000000),0)))+N("Batteries")+IF($I$56>19,0,IF($I$56=1,((Data!H268*G56)/1000000),IF($I$56=17,((Data!H268*G56)/1000000),0))) -> 0 | K24: =(('B2'!$C$32*$M$53)+($M$56*Data!$H$180)+($D$53*(Data!$AR$189-Data!$E$210)*'E '!$E$6)+($D$56*Data!$E$210*'E '!$E$6))/1000000 -> 52.50458792 | L24: =IF($I$55>19,0,IF($I$55=1,((G55*F!C35)/1000000),IF($I$55=17,((G55*F!C35)/1000000),0)))+N("Batteries")+IF($I$56>19,0,IF($I$56=1,((Data!R349*G56)/1000000),IF($I$56=17,((Data!R349*G56)/1000000),0))) -> 0 | M24: =((F!$C$35*$M$55)+($M$56*Data!$R$349)+($D$55*Data!$H$359*'E '!$E$6)+($D$56*Data!$H$360*'E '!$E$6))/1000000 -> 157.2594985 | N24: =IF($I$56>19,0,IF($I$56=1,$N$7,IF($I$56=17,$N$7,0))) -> 0 | O24: =((F!$G$44*$M$56)+($D$56*'C '!$F$22*'E '!$E$6))/1000000 -> 0
A25: 19 | B25: =IF($I$53>19,0,IF($I$53=1,$B$7,IF($I$53=18,$B$7,IF($I$53=9,$B$7,IF($I$53=6,$B$7,IF($I$53=3,$B$7,IF($I$53=2,$B$7,0))))))) -> 0 | C25: =(('B2'!$C$32*$M$53)+($D$53*'C '!$F$16*'E '!$E$6))/1000000 -> 44.55812478 | D25: =IF($I$53>19,0,IF($I$53=1,$B$7,IF($I$53=18,$B$7,IF($I$53=9,$B$7,IF($I$53=6,$B$7,IF($I$53=3,$B$7,IF($I$53=2,$B$7,0))))))) -> 0 | E25: =(('B2'!$C$32*$M$53)+($D$53*'C '!$F$17*'E '!$E$6))/1000000 -> 45.79536245 | F25: =IF($I$53>19,0,IF($I$53=1,((('B2'!$C$32)*$G$53)/1000000),IF($I$53=18,((('B2'!$C$32)*$G$53)/1000000),IF($I$53=9,((('B2'!$C$32)*$G$53)/1000000),IF($I$53=6,((('B2'!$C$32)*$G$53)/1000000),IF($I$53=3,((('B2'!$C$32)*$G$53)/1000000),IF($I$53=2,((('B2'!$C$32)*$G$53)/1000000),0)))))))+N("Batteries")+IF($I$56>19,0,IF($I$56=1,((Data!H186*G56)/1000000),IF($I$56=18,((Data!H186*G56)/1000000),IF($I$56=9,((Data!H186*G56)/1000000),IF($I$56=6,((Data!H186*G56)/1000000),IF($I$56=3,((Data!H186*G56)/1000000),IF($I$56=2,((Data!H186*G56)/1000000),0))))))) -> 0 | G25: =(('B2'!$C$32*$M$53)+($M$56*Data!$H$180)+($D$53*(Data!$AR$189-Data!$E$210)*'E '!$E$6)+($D$56*Data!$E$210*'E '!$E$6))/1000000 -> 52.50458792 | H25: =IF($I$54>19,0,IF($I$54=1,$H$7,IF($I$54=18,$H$7,IF($I$54=9,$H$7,IF($I$54=6,$H$7,IF($I$54=3,$H$7,IF($I$54=2,$H$7,0))))))) -> 0 | I25: =(('B2'!$C$32*$M$54)+($D$54*'C '!$F$17*'E '!$E$6))/1000000 -> 45.79536245 | J25: =IF($I$54>19,0,IF($I$54=1,((('B2'!$C$32)*$G$54)/1000000),IF($I$54=18,((('B2'!$C$32)*$G$54)/1000000),IF($I$54=9,((('B2'!$C$32)*$G$54)/1000000),IF($I$54=6,((('B2'!$C$32)*$G$54)/1000000),IF($I$54=3,((('B2'!$C$32)*$G$54)/1000000),IF($I$54=2,((('B2'!$C$32)*$G$54)/1000000),0)))))))+N("Batteries")+IF($I$56>19,0,IF($I$56=1,((Data!H268*G56)/1000000),IF($I$56=18,((Data!H268*G56)/1000000),IF($I$56=9,((Data!H268*G56)/1000000),IF($I$56=6,((Data!H268*G56)/1000000),IF($I$56=3,((Data!H268*G56)/1000000),IF($I$56=2,((Data!H268*G56)/1000000),0))))))) -> 0 | K25: =(('B2'!$C$32*$M$53)+($M$56*Data!$H$180)+($D$53*(Data!$AR$189-Data!$E$210)*'E '!$E$6)+($D$56*Data!$E$210*'E '!$E$6))/1000000 -> 52.50458792 | L25: =IF($I$55>19,0,IF($I$55=1,((G55*F!C35)/1000000),IF($I$55=18,((G55*F!C35)/1000000),IF($I$55=9,((G55*F!C35)/1000000),IF($I$55=6,((G55*F!C35)/1000000),IF($I$55=3,((G55*F!C35)/1000000),IF($I$55=2,((G55*F!C35)/1000000),0)))))))+N("Batteries")+IF($I$56>19,0,IF($I$56=1,((Data!R349*G56)/1000000),IF($I$56=18,((Data!R349*G56)/1000000),IF($I$56=9,((Data!R349*G56)/1000000),IF($I$56=6,((Data!R349*G56)/1000000),IF($I$56=3,((Data!R349*G56)/1000000),IF($I$56=2,((Data!R349*G56)/1000000),0))))))) -> 0 | M25: =((F!$C$35*$M$55)+($M$56*Data!$R$349)+($D$55*Data!$H$359*'E '!$E$6)+($D$56*Data!$H$360*'E '!$E$6))/1000000 -> 157.2594985 | N25: =IF($I$56>19,0,IF($I$56=1,$N$7,IF($I$56=18,$N$7,IF($I$56=9,$N$7,IF($I$56=6,$N$7,IF($I$56=3,$N$7,IF($I$56=2,$N$7,0))))))) -> 0 | O25: =((F!$G$44*$M$56)+($D$56*'C '!$F$22*'E '!$E$6))/1000000 -> 0
A26: 20 | B26: =IF($I$53>19,0,IF($I$53=1,$B$7,IF($I$53=19,$B$7,0))) -> 0 | C26: =(('B2'!$C$32*$M$53)+($D$53*'C '!$F$16*'E '!$E$6))/1000000 -> 44.55812478 | D26: =IF($I$53>19,0,IF($I$53=1,$B$7,IF($I$53=19,$B$7,0))) -> 0 | E26: =(('B2'!$C$32*$M$53)+($D$53*'C '!$F$17*'E '!$E$6))/1000000 -> 45.79536245 | F26: =IF($I$53>19,0,IF($I$53=1,((('B2'!$C$32)*$G$53)/1000000),IF($I$53=19,((('B2'!$C$32)*$G$53)/1000000),0)))+N("Batteries")+IF($I$56>19,0,IF($I$56=1,((Data!H186*G56)/1000000),IF($I$56=19,((Data!H186*G56)/1000000),0))) -> 0 | G26: =(('B2'!$C$32*$M$53)+($M$56*Data!$H$180)+($D$53*(Data!$AR$189-Data!$E$210)*'E '!$E$6)+($D$56*Data!$E$210*'E '!$E$6))/1000000 -> 52.50458792 | H26: =IF($I$54>19,0,IF($I$54=1,$H$7,IF($I$54=19,$H$7,0))) -> 0 | I26: =(('B2'!$C$32*$M$54)+($D$54*'C '!$F$17*'E '!$E$6))/1000000 -> 45.79536245 | J26: =IF($I$54>19,0,IF($I$54=1,((('B2'!$C$32)*$G$54)/1000000),IF($I$54=19,((('B2'!$C$32)*$G$54)/1000000),0)))+N("Batteries")+IF($I$56>19,0,IF($I$56=1,((Data!H268*G56)/1000000),IF($I$56=19,((Data!H268*G56)/1000000),0))) -> 0 | K26: =(('B2'!$C$32*$M$53)+($M$56*Data!$H$180)+($D$53*(Data!$AR$189-Data!$E$210)*'E '!$E$6)+($D$56*Data!$E$210*'E '!$E$6))/1000000 -> 52.50458792 | L26: =IF($I$55>19,0,IF($I$55=1,((G55*F!C35)/1000000),IF($I$55=19,((G55*F!C35)/1000000),0)))+N("Batteries")+IF($I$56>19,0,IF($I$56=1,((Data!R349*G56)/1000000),IF($I$56=19,((Data!R349*G56)/1000000),0))) -> 0 | M26: =((F!$C$35*$M$55)+($M$56*Data!$R$349)+($D$55*Data!$H$359*'E '!$E$6)+($D$56*Data!$H$360*'E '!$E$6))/1000000 -> 157.2594985 | N26: =IF($I$56>19,0,IF($I$56=1,$N$7,IF($I$56=19,$N$7,0))) -> 0 | O26: =((F!$G$44*$M$56)+($D$56*'C '!$F$22*'E '!$E$6))/1000000 -> 0
A28: Costs | C28: =Data!E447 -> 492.534092 | E28: =Data!G447 -> 505.6414055 | G28: =Data!I447 -> 626.7483033 | I28: =Data!K447 -> 553.4389998 | K28: =Data!M447 -> 674.5458976 | M28: =Data!O447 -> 1971.395252 | O28: =Data!Q447 -> 38.75163659
B52: Average price | D52: NOK | G52: NOK | I52: MNOK | M52: NOK
A53: MGO | B53: Price per kWh | D53: 0.58 | E53: Price per kW | G53: 3000 | H53: Lifetime | I53: 20 | J53: Maintenance per year per kW | M53: 0
A54: LNG | B54: Price per kWh | D54: 0.58 | E54: Price per kW | G54: 10000 | H54: Lifetime | I54: 20 | J54: Maintenance per year per kW | M54: 0
A55: Hydrogen | B55: Price per kWh | D55: 2.28 | E55: Price per kW | G55: 13000 | H55: Lifetime | I55: =F!C37 -> 4 | J55: Maintenance per year per kW | M55: 0
A56: Batteries | B56: Price per kWh | D56: 0.57 | E56: Price per kWh | G56: =F!G43/F!G44*1000000 -> 5460 | H56: Lifetime | I56: 10 | J56: Maintenance per year per kWh | M56: 0
B59: Interest | C59: 0.07

Sheet Data
A2: Indicator | B2: Persons | C2: kW @ 15 knot | D2: Hotell, kW | E2: Loa | F2: Lpp | G2: LWL | H2: Breadth | I2: Draft | J2: Ballast | K2: Deadweight | L2: Lightweight | M2: Harbour | N2: Entering harbour | O2: Leaving Harbour | P2: Acceleration | Q2: Passive retardation | R2: Active retardation | S2: Column3 | T2: Column1 | U2: Column4 | V2: Column2 | W2: Column5 | X2: Column22 | Y2: Column23 | Z2: Column24 | AA2: Column25 | AB2: Column26 | AC2: Column27 | AD2: Column28 | AE2: Column29 | AF2: Column30 | AG2: Column31 | AH2: Column32 | AI2: Column33
A3: 1 | B3: =IF($A$3=1,B4,IF($A$3=2,B5,IF($A$3=3,B6,IF($A$3=4,B7,"")))) -> 700 | C3: =IF($A$3=1,C4,IF($A$3=2,C5,IF($A$3=3,C6,IF($A$3=4,C7,"")))) -> 3500 | D3: 750 | E3: 125 | F3: na | G3: na | H3: 20 | I3: 0 | J3: na | K3: na | L3: na | M3: 0 | N3: 1500 | O3: 1500 | P3: 4000 | Q3: 1000 | R3: 1500 | S3: 0 | T3: 0 | U3: 0 | V3: 0 | W3: 0 | X3: 0 | Y3: 0 | Z3: 0 | AA3: 0 | AB3: 0 | AC3: 0 | AD3: 0 | AE3: 0 | AF3: 0 | AG3: 0 | AH3: 0 | AI3: 0
B4: 700 | C4: 3500 | D4: 750 | E4: 125 | F4: na | G4: na | H4: 20 | J4: na | K4: na | L4: na | M4: 0 | N4: 1500 | O4: 1500 | P4: 4000 | Q4: 1000 | R4: 1500
I5: ='B2'!H12 -> Acceleration
B8: Manual
B9: Automatic
J10: Diesel Var. | K10: Diesel const | L10: Diesel-Battery | N10: LNG Const | P10: LNG-Battery | R10: Batteries | T10: Hydrogen
H11: Generator | J11: =IF(F!C6=2,"1",1-'B2'!$B$36) -> 1 | K11: =IF(F!E6=2,"1",1-'B2'!$B$36) -> 1 | L11: =IF(F!G6=2,"1",1-'B2'!$B$36) -> 0.95 | N11: =IF(F!I6=2,"1",1-'B2'!$B$36) -> 0.95 | P11: =IF(F!K6=2,"1",1-'B2'!$B$36) -> 0.95 | R11: =IF(F!L6=2,"1",1-'B2'!$B$36) -> 1 | T11: =IF(F!M6=2,"1",1-'B2'!$B$36) -> 1
A12: Indicator | B12: Connected to shore | H12: Drives/Converter | J12: =IF(F!C7=2,"1",1-'B2'!$D$36) -> 1 | K12: =IF(F!E7=2,"1",1-'B2'!$D$36) -> 1 | L12: =IF(F!G7=2,"1",1-'B2'!$D$36) -> 0.95 | N12: =IF(F!I7=2,"1",1-'B2'!$D$36) -> 0.95 | P12: =IF(F!K7=2,"1",1-'B2'!$D$36) -> 0.95 | R12: =IF(F!L7=2,"1",1-'B2'!$D$36) -> 0.95 | T12: =IF(F!M7=2,"1",1-'B2'!$D$36) -> 0.95
A13: 1 | B13: yes | H13: Cabling | J13: =IF(F!C8=2,"1",1-'B2'!$L$36) -> 1 | K13: =IF(F!E8=2,"1",1-'B2'!$L$36) -> 1 | L13: =IF(F!G8=2,"1",1-'B2'!$L$36) -> 0.97 | N13: =IF(F!I8=2,"1",1-'B2'!$L$36) -> 0.97 | P13: =IF(F!K8=2,"1",1-'B2'!$L$36) -> 0.97 | R13: =IF(F!L8=2,"1",1-'B2'!$L$36) -> 0.97 | T13: =IF(F!M8=2,"1",1-'B2'!$L$36) -> 0.97
B14: no | F14: Design speed | H14: Switchboard | J14: =IF(F!C9=2,"1",1-'B2'!$H$36) -> 1 | K14: =IF(F!E9=2,"1",1-'B2'!$H$36) -> 1 | L14: =IF(F!G9=2,"1",1-'B2'!$H$36) -> 0.97 | N14: =IF(F!I9=2,"1",1-'B2'!$H$36) -> 0.97 | P14: =IF(F!K9=2,"1",1-'B2'!$H$36) -> 0.97 | R14: =IF(F!L9=2,"1",1-'B2'!$H$36) -> 0.97 | T14: =IF(F!M9=2,"1",1-'B2'!$H$36) -> 0.97
E15: Indicator | F15: 15 | H15: El-motors | J15: =IF(F!C10=2,"1",1-'B2'!$J$36) -> 1 | K15: =IF(F!E10=2,"1",1-'B2'!$J$36) -> 1 | L15: =IF(F!G10=2,"1",1-'B2'!$J$36) -> 0.941 | N15: =IF(F!I10=2,"1",1-'B2'!$J$36) -> 0.941 | P15: =IF(F!K10=2,"1",1-'B2'!$J$36) -> 0.941 | R15: =IF(F!L10=2,"1",1-'B2'!$J$36) -> 0.941 | T15: =IF(F!M10=2,"1",1-'B2'!$J$36) -> 0.941
E16: 3 | F16: 16 | H16: DC/DC converters | J16: =IF(F!C11=2,"1",1-'B2'!$F$36) -> 1 | K16: =IF(F!E11=2,"1",1-'B2'!$F$36) -> 1 | L16: =IF(F!G11=2,"1",1-'B2'!$F$36) -> 1 | N16: =IF(F!I11=2,"1",1-'B2'!$F$36) -> 1 | P16: =IF(F!K11=2,"1",1-'B2'!$F$36) -> 1 | R16: =IF(F!L11=2,"1",1-'B2'!$F$36) -> 1 | T16: =IF(F!M11=2,"1",1-'B2'!$F$36) -> 0.95
B17: Sea margin level | F17: 17 | H17: Gear | J17: =IF(F!C12=2,"1",1-'B2'!$K$36) -> 0.95 | K17: =IF(F!E12=2,"1",1-'B2'!$K$36) -> 0.95 | L17: =IF(F!G12=2,"1",1-'B2'!$K$36) -> 0.95 | N17: =IF(F!I12=2,"1",1-'B2'!$K$36) -> 0.95 | P17: =IF(F!K12=2,"1",1-'B2'!$K$36) -> 0.95 | R17: =IF(F!L12=2,"1",1-'B2'!$K$36) -> 0.95 | T17: =IF(F!M12=2,"1",1-'B2'!$K$36) -> 0.95
A18: Indicator | B18: 1 | F18: 18 | H18: yes
A19: 2 | B19: 2 | F19: 19 | H19: no | I19: Overall | J19: =J11*J12*J13*J14*J15*J16*J17 -> 0.95 | K19: =K11*K12*K13*K14*K15*K16*K17 -> 0.95 | L19: =L11*L12*L13*L14*L15*L16*L17 -> 0.7591085934 | N19: =N11*N12*N13*N14*N15*N16*N17 -> 0.7591085934 | P19: 0.7591085934 | R19: 0.7990616772 | T19: 0.7591085934
A20: 1 | B20: 3 | F20: 20
B21: 4 | F21: 21
F22: 22 | J22: Diesel Var. | K22: Diesel const | L22: Diesel-Battery | N22: LNG Const | P22: LNG-Battery | R22: Batteries | T22: Hydrogen
B23: Admiralty coefficient calculations | I23: Generator | J23: =IF(F!C18=2,"1",1-'B2'!$B$36) -> 0.95 | K23: =IF(F!E18=2,"1",1-'B2'!$B$36) -> 0.95 | L23: =IF(F!G18=2,"1",1-'B2'!$B$36) -> 0.95 | N23: =IF(F!I18=2,"1",1-'B2'!$B$36) -> 0.95 | P23: =IF(F!K18=2,"1",1-'B2'!$B$36) -> 0.95 | R23: =IF(F!L18=2,"1",1-'B2'!$B$36) -> 0.95 | T23: =IF(F!M18=2,"1",1-'B2'!$B$36) -> 0.95
B24: Speed | C24: Power | D24: test | F24: Max speed | G24: =IF(E16=1,F15,IF(E16=2,F16,IF(E16=3,F17,IF(E16=4,F18,IF(E16=5,F19,IF(E16=6,F20,IF(E16=7,F21,IF(E16=8,F22)))))))) -> 17 | I24: Drives/converter | J24: =IF(F!C19=2,"1",1-'B2'!$D$36) -> 0.95 | K24: =IF(F!E19=2,"1",1-'B2'!$D$36) -> 0.95 | L24: =IF(F!G19=2,"1",1-'B2'!$D$36) -> 0.95 | N24: =IF(F!I19=2,"1",1-'B2'!$D$36) -> 0.95 | P24: =IF(F!K19=2,"1",1-'B2'!$D$36) -> 0.95 | R24: =IF(F!L19=2,"1",1-'B2'!$D$36) -> 0.95 | T24: =IF(F!M19=2,"1",1-'B2'!$D$36) -> 0.95
B25: 1 | C25: =((B25^3)*'B2'!$C$33)/('B2'!$K$18^3) -> 1.037037037 | D25: =$E$31+(B25*$F$31)+(B25*$G$31^2)+(B25*$H$31^3) -> 1.037037037 | F25: Max speed power | G25: =$H$31+(G24*$G$31)+(F31*$G$24^2)+(E31*$G$24^3) -> 5094.962963 | I25: Cabling | J25: =IF(F!C20=2,"1",1-'B2'!$L$36) -> 0.97 | K25: =IF(F!E20=2,"1",1-'B2'!$L$36) -> 0.97 | L25: =IF(F!G20=2,"1",1-'B2'!$L$36) -> 0.97 | N25: =IF(F!I20=2,"1",1-'B2'!$L$36) -> 0.97 | P25: =IF(F!K20=2,"1",1-'B2'!$L$36) -> 0.97 | R25: =IF(F!L20=2,"1",1-'B2'!$L$36) -> 0.97 | T25: =IF(F!M20=2,"1",1-'B2'!$L$36) -> 0.97
B26: 2 | C26: =((B26^3)*'B2'!$C$33)/('B2'!$K$18^3) -> 8.296296296 | D26: =$E$31+(B26*$F$31)+(B26*$G$31^2)+(B26*$H$31^3) -> 1.037037037 | F26: Hotel | G26: ='B2'!K33 -> 750 | I26: Switchboard | J26: =IF(F!C21=2,"1",1-'B2'!$H$36) -> 0.97 | K26: =IF(F!E21=2,"1",1-'B2'!$H$36) -> 0.97 | L26: =IF(F!G21=2,"1",1-'B2'!$H$36) -> 0.97 | N26: =IF(F!I21=2,"1",1-'B2'!$H$36) -> 0.97 | P26: =IF(F!K21=2,"1",1-'B2'!$H$36) -> 0.97 | R26: =IF(F!L21=2,"1",1-'B2'!$H$36) -> 0.97 | T26: =IF(F!M21=2,"1",1-'B2'!$H$36) -> 0.97
B27: 3 | C27: =((B27^3)*'B2'!$C$33)/('B2'!$K$18^3) -> 28 | D27: =$E$31+(B27*$F$31)+(B27*$G$31^2)+(B27*$H$31^3) -> 1.037037037 | F27: losses | G27: 0.8 | I27: DC/DC Converters | J27: =IF(F!C22=2,"1",1-'B2'!$F$36) -> 1 | K27: =IF(F!E22=2,"1",1-'B2'!$F$36) -> 1 | L27: =IF(F!G22=2,"1",1-'B2'!$F$36) -> 1 | N27: =IF(F!I22=2,"1",1-'B2'!$F$36) -> 1 | P27: =IF(F!K22=2,"1",1-'B2'!$F$36) -> 1 | R27: =IF(F!L22=2,"1",1-'B2'!$F$36) -> 1 | T27: =IF(F!M22=2,"1",1-'B2'!$F$36) -> 0.95
B28: 4 | C28: =((B28^3)*'B2'!$C$33)/('B2'!$K$18^3) -> 66.37037037 | D28: =$E$31+(B28*$F$31)+(B28^2*$G$31)+(B28^3*$H$31) -> 1.037037037 | F28: Total | G28: =(G25+G26)/(1-'B2'!D27) -> 7306.203704 | I28: ='B2'!M35 -> Open | J28: =IF(F!C23=2,"1",1-'B2'!$M$36) -> 1 | K28: =IF(F!E23=2,"1",1-'B2'!$M$36) -> 1 | L28: =IF(F!G23=2,"1",1-'B2'!$M$36) -> 1 | N28: =IF(F!I23=2,"1",1-'B2'!$M$36) -> 1 | P28: =IF(F!K23=2,"1",1-'B2'!$M$36) -> 1 | R28: =IF(F!L23=2,"1",1-'B2'!$M$36) -> 1 | T28: =IF(F!M23=2,"1",1-'B2'!$M$36) -> 1
B29: 5 | C29: =((B29^3)*'B2'!$C$33)/('B2'!$K$18^3) -> 129.6296296 | D29: 1.037037037 | E29: LINEST FUNCTION
B30: 6 | C30: =((B30^3)*'B2'!$C$33)/('B2'!$K$18^3) -> 224 | D30: 1.037037037 | E30: x3 | F30: x2 | G30: x | H30: const | J30: =J23*J24*J25*J26*J28*J27 -> 0.84916225 | K30: =K23*K24*K25*K26*K28*K27 -> 0.84916225 | L30: 0.84916225 | N30: 0.84916225 | P30: 0.84916225 | R30: 0.84916225 | T30: 0.8067041375
B31: 7 | C31: =((B31^3)*'B2'!$C$33)/('B2'!$K$18^3) -> 355.7037037 | D31: 1.037037037 | E31: =LINEST(C25:C44,B25:B44^{1,2,3},TRUE,FALSE) -> 1.037037037 | F31: -3.149713572e-14 | G31: 3.519851304e-13 | H31: -9.094947018e-13
B32: 8 | C32: =((B32^3)*'B2'!$C$33)/('B2'!$K$18^3) -> 530.962963 | D32: 1.037037037
B33: 9 | C33: =((B33^3)*'B2'!$C$33)/('B2'!$K$18^3) -> 756 | D33: 1.037037037
B34: 10 | C34: =((B34^3)*'B2'!$C$33)/('B2'!$K$18^3) -> 1037.037037 | D34: 1.037037037
B35: 11 | C35: =((B35^3)*'B2'!$C$33)/('B2'!$K$18^3) -> 1380.296296 | D35: 1.037037037
B36: 12 | C36: =((B36^3)*'B2'!$C$33)/('B2'!$K$18^3) -> 1792 | D36: 1.037037037
B37: 13 | C37: =((B37^3)*'B2'!$C$33)/('B2'!$K$18^3) -> 2278.37037 | D37: 1.037037037
B38: 14 | C38: =((B38^3)*'B2'!$C$33)/('B2'!$K$18^3) -> 2845.62963 | D38: 1.037037037
B39: 15 | C39: =((B39^3)*'B2'!$C$33)/('B2'!$K$18^3) -> 3500 | D39: 1.037037037
B40: 16 | C40: =((B40^3)*'B2'!$C$33)/('B2'!$K$18^3) -> 4247.703704 | D40: 1.037037037
B41: 17 | C41: =((B41^3)*'B2'!$C$33)/('B2'!$K$18^3) -> 5094.962963 | D41: 1.037037037
B42: 18 | C42: =((B42^3)*'B2'!$C$33)/('B2'!$K$18^3) -> 6048 | D42: 1.037037037
B43: 19 | C43: =((B43^3)*'B2'!$C$33)/('B2'!$K$18^3) -> 7113.037037 | D43: 1.037037037
B44: 20 | C44: =((B44^3)*'B2'!$C$33)/('B2'!$K$18^3) -> 8296.296296 | D44: 1.037037037
A48: Results calculations
B49: ='B1'!B11 -> Harbour | C49: ='B1'!D11 -> Shore Charging [kW] | D49: ='B1'!F11 -> Time in port [min] | E49: ='B1'!H11 -> Transit to this port [min] | F49: ='B1'!K11 -> Distance to this port [nm] | G49: Distance to harbour manouevring | H49: Time for acceleration | I49: Energy to acc and ret | J49: Speed | K49: Power | L49: hotel Power | M49: Hours | N49: For average speed calculation | O49: Hours of operation | P49: and
A50: ='B1'!A12 -> Port 1 | B50: ='B1'!B12 -> Bergen | C50: ='B1'!D12 -> 1400 | D50: ='B1'!F12 -> 480 | E50: ='B1'!H12 -> 0 | F50: ='B1'!K12 -> 0 | O50: =IF(C50>$L$51,0,D50/60) -> 0 | P50: =E50/60 -> 0
A51: ='B1'!A13 -> Port 2 | B51: ='B1'!B13 -> Florø | C51: ='B1'!D13 -> 0 | D51: ='B1'!F13 -> 15 | E51: ='B1'!H13 -> 360 | F51: ='B1'!K13 -> 88 | G51: 1.6 | H51: 15 | I51: =SUM('B2'!$E$21:$E$25) -> 525 | J51: =(F51-G51)/((E51-H51)/(60)) -> 15.02608696 | K51: =('B2'!$D$7+(J51*'B2'!$E$7)+('B2'!$F$7*J51^2)+('B2'!$G$7*J51^3))/(1-'B2'!$H$18) -> 3998.059825 | L51: 700 | M51: =E51/60 -> 6 | N51: =M51*J51 -> 90.15652174 | O51: =IF(C51>$L$51,0,D51/60) -> 0.25 | P51: =E51/60 -> 6
A52: ='B1'!A14 -> Port 3 | B52: ='B1'!B14 -> Måløy | C52: ='B1'!D14 -> 0 | D52: ='B1'!F14 -> 15 | E52: ='B1'!H14 -> 150 | F52: ='B1'!K14 -> 28 | G52: 1.6 | H52: 15 | I52: =SUM('B2'!$E$21:$E$25) -> 525 | J52: =(F52-G52)/((E52-H52)/(60)) -> 11.73333333 | K52: =('B2'!$D$7+(J52*'B2'!$E$7)+('B2'!$F$7*J52^2)+('B2'!$G$7*J52^3))/(1-'B2'!$H$18) -> 1903.600549 | L52: 700 | M52: =E52/60 -> 2.5 | N52: =M52*J52 -> 29.33333333 | O52: 0.25 | P52: 2.5
A53: ='B1'!A15 -> Port 4 | B53: ='B1'!B15 -> Torvik | C53: ='B1'!D15 -> 0 | D53: ='B1'!F15 -> 15 | E53: ='B1'!H15 -> 180 | F53: ='B1'!K15 -> 39 | G53: 1.6 | H53: 15 | I53: =SUM('B2'!$E$21:$E$25) -> 525 | J53: 13.6 | K53: =('B2'!$D$7+(J53*'B2'!$E$7)+('B2'!$F$7*J53^2)+('B2'!$G$7*J53^3))/(1-'B2'!$H$18) -> 2964.342088 | L53: 700 | M53: 3 | N53: 40.8 | O53: 0.25 | P53: 3
A54: ='B1'!A16 -> Port 5 | B54: ='B1'!B16 -> Ålesund | C54: ='B1'!D16 -> 0 | D54: ='B1'!F16 -> 180 | E54: ='B1'!H16 -> 75 | F54: ='B1'!K16 -> 15 | G54: 1.6 | H54: 15 | I54: =SUM('B2'!$E$21:$E$25) -> 525 | J54: 13.4 | K54: =('B2'!$D$7+(J54*'B2'!$E$7)+('B2'!$F$7*J54^2)+('B2'!$G$7*J54^3))/(1-'B2'!$H$18) -> 2835.476094 | L54: 700 | M54: 1.25 | N54: 16.75 | O54: 3 | P54: 1.25 | Q54: And in and out of harbour
A55: ='B1'!A17 -> Port 6 | B55: ='B1'!B17 -> Molde | C55: ='B1'!D17 -> 0 | D55: ='B1'!F17 -> 30 | E55: ='B1'!H17 -> 180 | F55: ='B1'!K17 -> 35 | G55: 1.6 | H55: 15 | I55: =SUM('B2'!$E$21:$E$25) -> 525 | J55: 12.14545455 | K55: =('B2'!$D$7+(J55*'B2'!$E$7)+('B2'!$F$7*J55^2)+('B2'!$G$7*J55^3))/(1-'B2'!$H$18) -> 2111.31442 | L55: 700 | M55: 3 | N55: 36.43636364 | O55: 0.5 | P55: 3 | Q55: =(SUM(AG91:AG95)/(60*60))*34 -> 8.5
A56: ='B1'!A18 -> Port 7 | B56: ='B1'!B18 -> Kristiansund | C56: ='B1'!D18 -> 0 | D56: ='B1'!F18 -> 45 | E56: ='B1'!H18 -> 225 | F56: ='B1'!K18 -> 48 | G56: 1.6 | H56: 15 | I56: =SUM('B2'!$E$21:$E$25) -> 525 | J56: 13.25714286 | K56: =('B2'!$D$7+(J56*'B2'!$E$7)+('B2'!$F$7*J56^2)+('B2'!$G$7*J56^3))/(1-'B2'!$H$18) -> 2745.752601 | L56: 700 | M56: 3.75 | N56: 49.71428571 | O56: 0.75 | P56: 3.75
A57: ='B1'!A19 -> Port 8 | B57: ='B1'!B19 -> Trondheim | C57: ='B1'!D19 -> 1400 | D57: ='B1'!F19 -> 360 | E57: ='B1'!H19 -> 420 | F57: ='B1'!K19 -> 91 | G57: 1.6 | H57: 15 | I57: =SUM('B2'!$E$21:$E$25) -> 525 | J57: 13.24444444 | K57: =('B2'!$D$7+(J57*'B2'!$E$7)+('B2'!$F$7*J57^2)+('B2'!$G$7*J57^3))/(1-'B2'!$H$18) -> 2737.870062 | L57: 700 | M57: 7 | N57: 92.71111111 | O57: 0 | P57: 7
A58: ='B1'!A20 -> Port 9 | B58: ='B1'!B20 -> Rørvik | C58: ='B1'!D20 -> 0 | D58: ='B1'!F20 -> 30 | E58: ='B1'!H20 -> 525 | F58: ='B1'!K20 -> 125 | G58: 1.6 | H58: 15 | I58: =SUM('B2'!$E$21:$E$25) -> 525 | J58: 14.51764706 | K58: =('B2'!$D$7+(J58*'B2'!$E$7)+('B2'!$F$7*J58^2)+('B2'!$G$7*J58^3))/(1-'B2'!$H$18) -> 3605.788896 | L58: 700 | M58: 8.75 | N58: 127.0294118 | O58: 0.5 | P58: 8.75
A59: ='B1'!A21 -> Port 10 | B59: ='B1'!B21 -> Brønnøysund | C59: ='B1'!D21 -> 0 | D59: ='B1'!F21 -> 15 | E59: ='B1'!H21 -> 210 | F59: ='B1'!K21 -> 46 | G59: 1.6 | H59: 15 | I59: =SUM('B2'!$E$21:$E$25) -> 525 | J59: 13.66153846 | K59: =('B2'!$D$7+(J59*'B2'!$E$7)+('B2'!$F$7*J59^2)+('B2'!$G$7*J59^3))/(1-'B2'!$H$18) -> 3004.764381 | L59: 700 | M59: 3.5 | N59: 47.81538462 | O59: 0.25 | P59: 3.5
A60: ='B1'!A22 -> Port 11 | B60: ='B1'!B22 -> Sandnessjøen | C60: ='B1'!D22 -> 0 | D60: ='B1'!F22 -> 30 | E60: ='B1'!H22 -> 165 | F60: ='B1'!K22 -> 36 | G60: 1.6 | H60: 15 | I60: =SUM('B2'!$E$21:$E$25) -> 525 | J60: 13.76 | K60: =('B2'!$D$7+(J60*'B2'!$E$7)+('B2'!$F$7*J60^2)+('B2'!$G$7*J60^3))/(1-'B2'!$H$18) -> 3070.201622 | L60: 700 | M60: 2.75 | N60: 37.84 | O60: 0.5 | P60: 2.75
A61: ='B1'!A23 -> Port 12 | B61: ='B1'!B23 -> Nesna | C61: ='B1'!D23 -> 0 | D61: ='B1'!F23 -> 5 | E61: ='B1'!H23 -> 70 | F61: ='B1'!K23 -> 15 | G61: 1.6 | H61: 15 | I61: =SUM('B2'!$E$21:$E$25) -> 525 | J61: 14.61818182 | K61: =('B2'!$D$7+(J61*'B2'!$E$7)+('B2'!$F$7*J61^2)+('B2'!$G$7*J61^3))/(1-'B2'!$H$18) -> 3681.219152 | L61: 700 | M61: 1.166666667 | N61: 17.05454545 | O61: 0.08333333333 | P61: 1.166666667
A62: ='B1'!A24 -> Port 13 | B62: ='B1'!B24 -> Ørnes | C62: ='B1'!D24 -> 0 | D62: ='B1'!F24 -> 15 | E62: ='B1'!H24 -> 225 | F62: ='B1'!K24 -> 51 | G62: 1.6 | H62: 15 | I62: =SUM('B2'!$E$21:$E$25) -> 525 | J62: 14.11428571 | K62: =('B2'!$D$7+(J62*'B2'!$E$7)+('B2'!$F$7*J62^2)+('B2'!$G$7*J62^3))/(1-'B2'!$H$18) -> 3313.510177 | L62: 700 | M62: 3.75 | N62: 52.92857143 | O62: 0.25 | P62: 3.75
A63: ='B1'!A25 -> Port 14 | B63: ='B1'!B25 -> Bodø | C63: ='B1'!D25 -> 1400 | D63: ='B1'!F25 -> 150 | E63: ='B1'!H25 -> 180 | F63: ='B1'!K25 -> 39 | G63: 1.6 | H63: 15 | I63: =SUM('B2'!$E$21:$E$25) -> 525 | J63: 13.6 | K63: =('B2'!$D$7+(J63*'B2'!$E$7)+('B2'!$F$7*J63^2)+('B2'!$G$7*J63^3))/(1-'B2'!$H$18) -> 2964.342088 | L63: 700 | M63: 3 | N63: 40.8 | O63: 0 | P63: 3
A64: ='B1'!A26 -> Port 15 | B64: ='B1'!B26 -> Stamsund | C64: ='B1'!D26 -> 0 | D64: ='B1'!F26 -> 30 | E64: ='B1'!H26 -> 240 | F64: ='B1'!K26 -> 55 | G64: 1.6 | H64: 15 | I64: =SUM('B2'!$E$21:$E$25) -> 525 | J64: 14.24 | K64: =('B2'!$D$7+(J64*'B2'!$E$7)+('B2'!$F$7*J64^2)+('B2'!$G$7*J64^3))/(1-'B2'!$H$18) -> 3402.840264 | L64: 700 | M64: 4 | N64: 56.96 | O64: 0.5 | P64: 4
A65: ='B1'!A27 -> Port 16 | B65: ='B1'!B27 -> Svolvær | C65: ='B1'!D27 -> 0 | D65: ='B1'!F27 -> 60 | E65: ='B1'!H27 -> 90 | F65: ='B1'!K27 -> 20 | G65: 1.6 | H65: 15 | I65: =SUM('B2'!$E$21:$E$25) -> 525 | J65: 14.72 | K65: =('B2'!$D$7+(J65*'B2'!$E$7)+('B2'!$F$7*J65^2)+('B2'!$G$7*J65^3))/(1-'B2'!$H$18) -> 3758.677161 | L65: 700 | M65: 1.5 | N65: 22.08 | O65: 1 | P65: 1.5 | Q65: SUM
A66: ='B1'!A28 -> Port 17 | B66: ='B1'!B28 -> Stokmarknes | C66: ='B1'!D28 -> 0 | D66: ='B1'!F28 -> 15 | E66: ='B1'!H28 -> 180 | F66: ='B1'!K28 -> 35 | G66: 1.6 | H66: 15 | I66: =SUM('B2'!$E$21:$E$25) -> 525 | J66: 12.14545455 | K66: =('B2'!$D$7+(J66*'B2'!$E$7)+('B2'!$F$7*J66^2)+('B2'!$G$7*J66^3))/(1-'B2'!$H$18) -> 2111.31442 | L66: 700 | M66: 3 | N66: 36.43636364 | O66: 0.25 | P66: 3 | Q66: =Q55+SUM(O50:O83)+SUM(P50:P83) -> 126.25
A67: ='B1'!A29 -> Port 18 | B67: ='B1'!B29 -> Sortland | C67: ='B1'!D29 -> 0 | D67: ='B1'!F29 -> 15 | E67: ='B1'!H29 -> 90 | F67: ='B1'!K29 -> 15 | G67: 1.6 | H67: 15 | I67: =SUM('B2'!$E$21:$E$25) -> 525 | J67: 10.72 | K67: =('B2'!$D$7+(J67*'B2'!$E$7)+('B2'!$F$7*J67^2)+('B2'!$G$7*J67^3))/(1-'B2'!$H$18) -> 1451.76376 | L67: 700 | M67: 1.5 | N67: 16.08 | O67: 0.25 | P67: 1.5
A68: ='B1'!A30 -> Port 19 | B68: ='B1'!B30 -> Risøyhamn | C68: ='B1'!D30 -> 0 | D68: ='B1'!F30 -> 15 | E68: ='B1'!H30 -> 75 | F68: ='B1'!K30 -> 18 | G68: 1.6 | H68: 10 | I68: =SUM('B2'!$E$21:$E$25) -> 525 | J68: 15.13846154 | K68: =('B2'!$D$7+(J68*'B2'!$E$7)+('B2'!$F$7*J68^2)+('B2'!$G$7*J68^3))/(1-'B2'!$H$18) -> 4088.432391 | L68: 700 | M68: 1.25 | N68: 18.92307692 | O68: 0.25 | P68: 1.25 | Q68: For one year
A69: ='B1'!A31 -> Port 20 | B69: ='B1'!B31 -> Harstad | C69: ='B1'!D31 -> 0 | D69: ='B1'!F31 -> 60 | E69: ='B1'!H31 -> 135 | F69: ='B1'!K31 -> 27 | G69: 1.6 | H69: 15 | I69: =SUM('B2'!$E$21:$E$25) -> 525 | J69: 12.7 | K69: =('B2'!$D$7+(J69*'B2'!$E$7)+('B2'!$F$7*J69^2)+('B2'!$G$7*J69^3))/(1-'B2'!$H$18) -> 2413.91936 | L69: 700 | M69: 2.25 | N69: 28.575 | O69: 1 | P69: 2.25 | Q69: =Q66*'E '!E6 -> 7654.692691
A70: ='B1'!A32 -> Port 21 | B70: ='B1'!B32 -> Finnsnes | C70: ='B1'!D32 -> 0 | D70: ='B1'!F32 -> 30 | E70: ='B1'!H32 -> 195 | F70: ='B1'!K32 -> 44 | G70: 1.6 | H70: 15 | I70: =SUM('B2'!$E$21:$E$25) -> 525 | J70: 14.13333333 | K70: =('B2'!$D$7+(J70*'B2'!$E$7)+('B2'!$F$7*J70^2)+('B2'!$G$7*J70^3))/(1-'B2'!$H$18) -> 3326.94331 | L70: 700 | M70: 3.25 | N70: 45.93333333 | O70: 0.5 | P70: 3.25
A71: ='B1'!A33 -> Port 22 | B71: ='B1'!B33 -> Tromsø | C71: ='B1'!D33 -> 1400 | D71: ='B1'!F33 -> 255 | E71: ='B1'!H33 -> 165 | F71: ='B1'!K33 -> 37 | G71: 1.6 | H71: 15 | I71: =SUM('B2'!$E$21:$E$25) -> 525 | J71: 14.16 | K71: =('B2'!$D$7+(J71*'B2'!$E$7)+('B2'!$F$7*J71^2)+('B2'!$G$7*J71^3))/(1-'B2'!$H$18) -> 3345.810618 | L71: 700 | M71: 2.75 | N71: 38.94 | O71: 0 | P71: 2.75
A72: ='B1'!A34 -> Port 23 | B72: ='B1'!B34 -> Skjervøy | C72: ='B1'!D34 -> 0 | D72: ='B1'!F34 -> 15 | E72: ='B1'!H34 -> 240 | F72: ='B1'!K34 -> 53 | G72: 1.6 | H72: 15 | I72: =SUM('B2'!$E$21:$E$25) -> 525 | J72: 13.70666667 | K72: =('B2'!$D$7+(J72*'B2'!$E$7)+('B2'!$F$7*J72^2)+('B2'!$G$7*J72^3))/(1-'B2'!$H$18) -> 3034.639796 | L72: 700 | M72: 4 | N72: 54.82666667 | O72: 0.25 | P72: 4
A73: ='B1'!A35 -> Port 24 | B73: ='B1'!B35 -> Øksfjord | C73: ='B1'!D35 -> 0 | D73: ='B1'!F35 -> 15 | E73: ='B1'!H35 -> 195 | F73: ='B1'!K35 -> 45 | G73: 1.6 | H73: 15 | I73: =SUM('B2'!$E$21:$E$25) -> 525 | J73: 14.46666667 | K73: =('B2'!$D$7+(J73*'B2'!$E$7)+('B2'!$F$7*J73^2)+('B2'!$G$7*J73^3))/(1-'B2'!$H$18) -> 3567.935703 | L73: 700 | M73: 3.25 | N73: 47.01666667 | O73: 0.25 | P73: 3.25
A74: ='B1'!A36 -> Port 25 | B74: ='B1'!B36 -> Hammerfest | C74: ='B1'!D36 -> 0 | D74: ='B1'!F36 -> 45 | E74: ='B1'!H36 -> 180 | F74: ='B1'!K36 -> 41 | G74: 1.6 | H74: 15 | I74: =SUM('B2'!$E$21:$E$25) -> 525 | J74: 14.32727273 | K74: =('B2'!$D$7+(J74*'B2'!$E$7)+('B2'!$F$7*J74^2)+('B2'!$G$7*J74^3))/(1-'B2'!$H$18) -> 3465.789479 | L74: 700 | M74: 3 | N74: 42.98181818 | O74: 0.75 | P74: 3
A75: ='B1'!A37 -> Port 26 | B75: ='B1'!B37 -> Havøysund | C75: ='B1'!D37 -> 0 | D75: ='B1'!F37 -> 30 | E75: ='B1'!H37 -> 165 | F75: ='B1'!K37 -> 37 | G75: 1.6 | H75: 15 | I75: =SUM('B2'!$E$21:$E$25) -> 525 | J75: 14.16 | K75: =('B2'!$D$7+(J75*'B2'!$E$7)+('B2'!$F$7*J75^2)+('B2'!$G$7*J75^3))/(1-'B2'!$H$18) -> 3345.810618 | L75: 700 | M75: 2.75 | N75: 38.94 | O75: 0.5 | P75: 2.75
A76: ='B1'!A38 -> Port 27 | B76: ='B1'!B38 -> Honningsvåg | C76: ='B1'!D38 -> 1400 | D76: ='B1'!F38 -> 210 | E76: ='B1'!H38 -> 120 | F76: ='B1'!K38 -> 28 | G76: 1.6 | H76: 15 | I76: =SUM('B2'!$E$21:$E$25) -> 525 | J76: 15.08571429 | K76: =('B2'!$D$7+(J76*'B2'!$E$7)+('B2'!$F$7*J76^2)+('B2'!$G$7*J76^3))/(1-'B2'!$H$18) -> 4045.844898 | L76: 700 | M76: 2 | N76: 30.17142857 | O76: 0 | P76: 2
A77: ='B1'!A39 -> Port 28 | B77: ='B1'!B39 -> Kjøllefjord | C77: ='B1'!D39 -> 0 | D77: ='B1'!F39 -> 15 | E77: ='B1'!H39 -> 135 | F77: ='B1'!K39 -> 29 | G77: 1.6 | H77: 15 | I77: =SUM('B2'!$E$21:$E$25) -> 525 | J77: 13.7 | K77: =('B2'!$D$7+(J77*'B2'!$E$7)+('B2'!$F$7*J77^2)+('B2'!$G$7*J77^3))/(1-'B2'!$H$18) -> 3030.213973 | L77: 700 | M77: 2.25 | N77: 30.825 | O77: 0.25 | P77: 2.25
A78: ='B1'!A40 -> Port 29 | B78: ='B1'!B40 -> Mehamn | C78: ='B1'!D40 -> 0 | D78: ='B1'!F40 -> 15 | E78: ='B1'!H40 -> 120 | F78: ='B1'!K40 -> 26 | G78: 1.6 | H78: 15 | I78: =SUM('B2'!$E$21:$E$25) -> 525 | J78: 13.94285714 | K78: =('B2'!$D$7+(J78*'B2'!$E$7)+('B2'!$F$7*J78^2)+('B2'!$G$7*J78^3))/(1-'B2'!$H$18) -> 3194.23547 | L78: 700 | M78: 2 | N78: 27.88571429 | O78: 0.25 | P78: 2
A79: ='B1'!A41 -> Port 30 | B79: ='B1'!B41 -> Berlevåg | C79: ='B1'!D41 -> 0 | D79: ='B1'!F41 -> 15 | E79: ='B1'!H41 -> 150 | F79: ='B1'!K41 -> 36 | G79: 1.6 | H79: 15 | I79: =SUM('B2'!$E$21:$E$25) -> 525 | J79: 15.28888889 | K79: =('B2'!$D$7+(J79*'B2'!$E$7)+('B2'!$F$7*J79^2)+('B2'!$G$7*J79^3))/(1-'B2'!$H$18) -> 4211.524858 | L79: 700 | M79: 2.5 | N79: 38.22222222 | O79: 0.25 | P79: 2.5
A80: ='B1'!A42 -> Port 31 | B80: ='B1'!B42 -> Båtsfjord | C80: ='B1'!D42 -> 0 | D80: ='B1'!F42 -> 30 | E80: ='B1'!H42 -> 90 | F80: ='B1'!K42 -> 23 | G80: 1.6 | H80: 10 | I80: =SUM('B2'!$E$21:$E$25) -> 525 | J80: 16.05 | K80: =('B2'!$D$7+(J80*'B2'!$E$7)+('B2'!$F$7*J80^2)+('B2'!$G$7*J80^3))/(1-'B2'!$H$18) -> 4872.330114 | L80: 700 | M80: 1.5 | N80: 24.075 | O80: 0.5 | P80: 1.5
A81: ='B1'!A43 -> Port 32 | B81: ='B1'!B43 -> Vardø | C81: ='B1'!D43 -> 0 | D81: ='B1'!F43 -> 15 | E81: ='B1'!H43 -> 180 | F81: ='B1'!K43 -> 39 | G81: 1.6 | H81: 15 | I81: =SUM('B2'!$E$21:$E$25) -> 525 | J81: 13.6 | K81: =('B2'!$D$7+(J81*'B2'!$E$7)+('B2'!$F$7*J81^2)+('B2'!$G$7*J81^3))/(1-'B2'!$H$18) -> 2964.342088 | L81: 700 | M81: 3 | N81: 40.8 | O81: 0.25 | P81: 3
A82: ='B1'!A44 -> Port 33 | B82: ='B1'!B44 -> Vadsø | C82: ='B1'!D44 -> 0 | D82: ='B1'!F44 -> 30 | E82: ='B1'!H44 -> 195 | F82: ='B1'!K44 -> 42 | G82: 1.6 | H82: 15 | I82: =SUM('B2'!$E$21:$E$25) -> 525 | J82: 13.46666667 | K82: =('B2'!$D$7+(J82*'B2'!$E$7)+('B2'!$F$7*J82^2)+('B2'!$G$7*J82^3))/(1-'B2'!$H$18) -> 2878.007532 | L82: 700 | M82: 3.25 | N82: 43.76666667 | O82: 0.5 | P82: 3.25
A83: ='B1'!A45 -> Port 34 | B83: ='B1'!B45 -> Kirkenes | C83: ='B1'!D45 -> 0 | D83: ='B1'!F45 -> 210 | E83: ='B1'!H45 -> 105 | F83: ='B1'!K45 -> 24 | G83: 1.6 | H83: 15 | I83: =SUM('B2'!$E$21:$E$25) -> 525 | J83: 14.93333333 | K83: =('B2'!$D$7+(J83*'B2'!$E$7)+('B2'!$F$7*J83^2)+('B2'!$G$7*J83^3))/(1-'B2'!$H$18) -> 3924.477765 | L83: 700 | M83: 1.75 | N83: 26.13333333 | O83: 3.5 | P83: 1.75
I84: =SUM('B2'!$E$21:$E$25) -> 525
M85: =SUM(M51:M83) -> 100.1666667 | N85: =SUM(N51:N83) -> 1388.941819
M86: Average speed | N86: =N85/M85 -> 13.86630768
A88: Diesel variable rpm
B89: =B49 -> Harbour | C89: Propulsion | D89: Propulsion incl losses | E89: Hotel | F89: Hotel Incl Losses | G89: Total Power | H89: Time in harbour [h] | I89: Shore Charging | J89: Shore engine power | K89: Relative load | L89: Transit relative load, sea margin | M89: Transit thermal efficiency | N89: Necessary kW | O89: kg | P89: liters | Q89: CO2, kg | R89: Nox, g | S89: CO, g | T89: PM, g | U89: SO, g | V89: Hours | W89: kWh | X89: kg | Y89: liters | Z89: CO2, kg | AA89: Nox, g | AB89: CO, g | AC89: PM, g | AD89: SO, g | BG89: Available shore connection | BH89: Time in port | BI89: Hotel Power | BJ89: Shore engine power | BK89: Relative load | BL89: Thermal Efficiency | BM89: Thermodynamic kW | BN89: =O89 -> kg | BO89: =P89 -> liters | BP89: CO2, kg | BQ89: Nox, g | BR89: CO, g | BS89: PM, g | BT89: SO, g | BU89: =V89 -> Hours | BV89: kWh | BW89: kg | BX89: liters | BY89: CO2, kg | BZ89: Nox, g | CA89: CO, g | CB89: PM, g | CC89: SO, g | CD89: Shore connection
A90: =$A$50 -> Port 1 | B90: =B50 -> Bergen | E90: ='B2'!$K$33 -> 750 | F90: =E90/$J$30 -> 883.2234358 | G90: =F90+D90 -> 883.2234358 | H90: ='B1'!F12/60 -> 8 | I90: ='B1'!D12 -> 1400 | J90: =IF(I90-(F90)<0,I90-(-F90),"0") -> 0 | K90: =J90/'B2'!$C$32 -> 0 | AG90: ='B2'!C20 -> Time [s] | AH90: ='B2'!D20 -> kW | AI90: ='B2'!E20 -> kWh | BE90: In harbour | BF90: =B90 -> Bergen | BG90: ='B1'!D12 -> 1400 | BH90: ='B1'!F12 -> 480 | BI90: ='B2'!$K$33 -> 750 | BJ90: =IF(I90-(F90)<0,I90-(-F90),"0") -> 0 | BK90: =K90 -> 0 | BL90: =$C$126+($D$126*BK90)+($E$126*(BK90^2))+($F$126*(BK90^3))+($G$126*(BK90^4))+($H$126*(BK90^5))+($I$126*(BK90^6)) -> 0.3099 | BM90: =BJ90/BL90 -> 0 | BN90: =BM90/$K$126 -> 0 | BO90: =BN90/0.855 -> 0 | BP90: =BN90*'B2'!$E$40 -> 0 | BQ90: ='B2'!$G$40*BJ90 -> 0 | BR90: ='B2'!$I$40*BJ90 -> 0 | BS90: ='B2'!$K$40*BJ90 -> 0 | BT90: =BJ90*'B2'!$M$40 -> 0 | BU90: =BH90/60 -> 8 | BV90: =$BU90*BM90 -> 0 | BW90: 0 | BX90: 0 | BY90: 0 | BZ90: 0 | CA90: 0 | CB90: 0 | CC90: 0 | CD90: =E90*BU90 -> 6000
A91: =A51 -> Port 2 | B91: =B51 -> Florø | C91: =K51 -> 3998.059825 | D91: =C91/$J$19 -> 4208.484026 | E91: ='B2'!$K$33 -> 750 | F91: =E91/$J$30 -> 883.2234358 | G91: =F91+D91 -> 5091.707462 | H91: ='B1'!F13/60 -> 0.25 | I91: ='B1'!D13 -> 0 | J91: =IF(I91-(F91)<0,I91-(-F91),"0") -> 883.2234358 | K91: =J91/'B2'!$C$32 -> 0.1208867795 | L91: =(G91/'B2'!$C$32) -> 0.69690193 | M91: =$C$126+($D$126*L91)+($E$126*(L91^2))+($F$126*(L91^3))+($G$126*(L91^4))+($H$126*(L91^5))+($I$126*(L91^6)) -> 0.3731938678 | N91: =G91/M91 -> 13643.59895 | O91: =N91/$K$126 -> 1139.816119 | P91: =O91/0.855 -> 1333.118268 | Q91: =O91*'B2'!$E$40 -> 3613.217099 | R91: ='B2'!$G$40*G91 -> 39969.90358 | S91: ='B2'!$I$40*G91 -> 25458.53731 | T91: ='B2'!$K$40*G91 -> 2545.853731 | U91: =G91*'B2'!$M$40 -> 5091.707462 | V91: ='B1'!H13/60 -> 6 | W91: =$V91*N91 -> 81861.5937 | X91: 6838.896717 | Y91: 7998.70961 | Z91: 21679.30259 | AA91: 239819.4215 | AB91: 152751.2239 | AC91: 15275.12239 | AD91: 30550.24477 | AF91: Leaving harbour | AG91: ='B2'!C21 -> 60 | AH91: ='B2'!D21 -> 1500 | AI91: ='B2'!E21 -> 25 | BF91: =B91 -> Florø | BG91: ='B1'!D13 -> 0 | BH91: ='B1'!F13 -> 15 | BI91: ='B2'!$K$33 -> 750 | BJ91: =IF(I91-(F91)<0,I91-(-F91),"0") -> 883.2234358 | BK91: =K91 -> 0.1208867795 | BL91: =$C$126+($D$126*BK91)+($E$126*(BK91^2))+($F$126*(BK91^3))+($G$126*(BK91^4))+($H$126*(BK91^5))+($I$126*(BK91^6)) -> 0.3419563326 | BM91: =BJ91/BL91 -> 2582.854451 | BN91: =BM91/$K$126 -> 215.7773142 | BO91: =BN91/0.855 -> 252.3711277 | BP91: =BN91*'B2'!$E$40 -> 684.0140861 | BQ91: ='B2'!$G$40*BJ91 -> 6933.303971 | BR91: ='B2'!$I$40*BJ91 -> 4416.117179 | BS91: ='B2'!$K$40*BJ91 -> 441.6117179 | BT91: =BJ91*'B2'!$M$40 -> 883.2234358 | BU91: =BH91/60 -> 0.25 | BV91: =$BU91*BM91 -> 645.7136128 | BW91: =$BU91*BN91 -> 53.94432855 | BX91: =$BU91*BO91 -> 63.09278194 | BY91: =$BU91*BP91 -> 171.0035215 | BZ91: =$BU91*BQ91 -> 1733.325993 | CA91: =$BU91*BR91 -> 1104.029295 | CB91: =$BU91*BS91 -> 110.4029295 | CC91: =$BU91*BT91 -> 220.805859 | CD91: =E91*BU91 -> 187.5
A92: Port 3 | B92: Måløy | C92: =K52 -> 1903.600549 | D92: =C92/$J$19 -> 2003.790051 | E92: ='B2'!$K$33 -> 750 | F92: 883.2234358 | G92: =F92+D92 -> 2887.013487 | H92: ='B1'!F14/60 -> 0.25 | I92: ='B1'!D14 -> 0 | J92: 883.2234358 | K92: =J92/'B2'!$C$32 -> 0.1208867795 | L92: =(G92/'B2'!$C$32) -> 0.3951454961 | M92: =$C$126+($D$126*L92)+($E$126*(L92^2))+($F$126*(L92^3))+($G$126*(L92^4))+($H$126*(L92^5))+($I$126*(L92^6)) -> 0.3603712503 | N92: =G92/M92 -> 8011.220331 | O92: =N92/$K$126 -> 669.2748814 | P92: =O92/0.855 -> 782.7776391 | Q92: =O92*'B2'!$E$40 -> 2121.601374 | R92: ='B2'!$G$40*G92 -> 22663.05587 | S92: ='B2'!$I$40*G92 -> 14435.06744 | T92: ='B2'!$K$40*G92 -> 1443.506744 | U92: =G92*'B2'!$M$40 -> 2887.013487 | V92: ='B1'!H14/60 -> 2.5 | W92: =$V92*N92 -> 20028.05083 | X92: =$V92*O92 -> 1673.187204 | Y92: =$V92*P92 -> 1956.944098 | Z92: =$V92*Q92 -> 5304.003435 | AA92: =$V92*R92 -> 56657.63968 | AB92: =$V92*S92 -> 36087.66859 | AC92: =$V92*T92 -> 3608.766859 | AD92: =$V92*U92 -> 7217.533718 | AF92: acceleration | AG92: ='B2'!C22 -> 240 | AH92: ='B2'!D22 -> 4000 | AI92: ='B2'!E22 -> 266.6666667 | AK92: There are 34 harbour to enter and leave | BF92: Måløy | BG92: ='B1'!D14 -> 0 | BH92: ='B1'!F14 -> 15 | BI92: ='B2'!$K$33 -> 750 | BJ92: 883.2234358 | BK92: 0.1208867795 | BL92: 0.3419563326 | BM92: 2582.854451 | BN92: 215.7773142 | BO92: 252.3711277 | BP92: =BN92*'B2'!$E$40 -> 684.0140861 | BQ92: ='B2'!$G$40*BJ92 -> 6933.303971 | BR92: ='B2'!$I$40*BJ92 -> 4416.117179 | BS92: ='B2'!$K$40*BJ92 -> 441.6117179 | BT92: =BJ92*'B2'!$M$40 -> 883.2234358 | BU92: 0.25 | BV92: 645.7136128 | BW92: 53.94432855 | BX92: 63.09278194 | BY92: 171.0035215 | BZ92: 1733.325993 | CA92: 1104.029295 | CB92: 110.4029295 | CC92: 220.805859 | CD92: 187.5
A93: Port 4 | B93: Torvik | C93: 2964.342088 | D93: 3120.360092 | E93: ='B2'!$K$33 -> 750 | F93: 883.2234358 | G93: 4003.583528 | H93: ='B1'!F15/60 -> 0.25 | I93: ='B1'!D15 -> 0 | J93: 883.2234358 | K93: =J93/'B2'!$C$32 -> 0.1208867795 | L93: =(G93/'B2'!$C$32) -> 0.5479704222 | M93: 0.3680049558 | N93: 10879.15656 | O93: 908.8685513 | P93: 1063.004154 | Q93: =O93*'B2'!$E$40 -> 2881.113307 | R93: ='B2'!$G$40*G93 -> 31428.13069 | S93: ='B2'!$I$40*G93 -> 20017.91764 | T93: ='B2'!$K$40*G93 -> 2001.791764 | U93: =G93*'B2'!$M$40 -> 4003.583528 | V93: ='B1'!H15/60 -> 3 | W93: 32637.46968 | X93: 2726.605654 | Y93: 3189.012461 | Z93: 8643.339922 | AA93: 94284.39208 | AB93: 60053.75292 | AC93: 6005.375292 | AD93: 12010.75058 | AF93: passive retardation | AG93: ='B2'!C23 -> 120 | AH93: ='B2'!D23 -> 1000 | AI93: ='B2'!E23 -> 33.33333333 | BF93: Torvik | BG93: ='B1'!D15 -> 0 | BH93: ='B1'!F15 -> 15 | BI93: ='B2'!$K$33 -> 750 | BJ93: 883.2234358 | BK93: 0.1208867795 | BL93: 0.3419563326 | BM93: 2582.854451 | BN93: 215.7773142 | BO93: 252.3711277 | BP93: =BN93*'B2'!$E$40 -> 684.0140861 | BQ93: ='B2'!$G$40*BJ93 -> 6933.303971 | BR93: ='B2'!$I$40*BJ93 -> 4416.117179 | BS93: ='B2'!$K$40*BJ93 -> 441.6117179 | BT93: =BJ93*'B2'!$M$40 -> 883.2234358 | BU93: 0.25 | BV93: 645.7136128 | BW93: 53.94432855 | BX93: 63.09278194 | BY93: 171.0035215 | BZ93: 1733.325993 | CA93: 1104.029295 | CB93: 110.4029295 | CC93: 220.805859 | CD93: 187.5
A94: Port 5 | B94: Ålesund | C94: 2835.476094 | D94: 2984.711678 | E94: ='B2'!$K$33 -> 750 | F94: 883.2234358 | G94: 3867.935114 | H94: ='B1'!F16/60 -> 3 | I94: ='B1'!D16 -> 0 | J94: 883.2234358 | K94: =J94/'B2'!$C$32 -> 0.1208867795 | L94: =(G94/'B2'!$C$32) -> 0.5294042256 | M94: 0.3674000918 | N94: 10527.8556 | O94: 879.5201003 | P94: 1028.67848 | Q94: =O94*'B2'!$E$40 -> 2788.078718 | R94: ='B2'!$G$40*G94 -> 30363.29064 | S94: ='B2'!$I$40*G94 -> 19339.67557 | T94: ='B2'!$K$40*G94 -> 1933.967557 | U94: =G94*'B2'!$M$40 -> 3867.935114 | V94: ='B1'!H16/60 -> 1.25 | W94: 13159.8195 | X94: 1099.400125 | Y94: 1285.8481 | Z94: 3485.098398 | AA94: 37954.11331 | AB94: 24174.59446 | AC94: 2417.459446 | AD94: 4834.918892 | AF94: active retardation | AG94: ='B2'!C24 -> 240 | AH94: ='B2'!D24 -> 1500 | AI94: ='B2'!E24 -> 100 | BF94: Ålesund | BG94: ='B1'!D16 -> 0 | BH94: ='B1'!F16 -> 180 | BI94: ='B2'!$K$33 -> 750 | BJ94: 883.2234358 | BK94: 0.1208867795 | BL94: 0.3419563326 | BM94: 2582.854451 | BN94: 215.7773142 | BO94: 252.3711277 | BP94: =BN94*'B2'!$E$40 -> 684.0140861 | BQ94: ='B2'!$G$40*BJ94 -> 6933.303971 | BR94: ='B2'!$I$40*BJ94 -> 4416.117179 | BS94: ='B2'!$K$40*BJ94 -> 441.6117179 | BT94: =BJ94*'B2'!$M$40 -> 883.2234358 | BU94: 3 | BV94: 7748.563354 | BW94: 647.3319427 | BX94: 757.1133832 | BY94: 2052.042258 | BZ94: 20799.91191 | CA94: 13248.35154 | CB94: 1324.835154 | CC94: 2649.670307 | CD94: 2250
A95: Port 6 | B95: Molde | C95: 2111.31442 | D95: 2222.436232 | E95: ='B2'!$K$33 -> 750 | F95: 883.2234358 | G95: 3105.659668 | H95: ='B1'!F17/60 -> 0.5 | I95: ='B1'!D17 -> 0 | J95: 883.2234358 | K95: =J95/'B2'!$C$32 -> 0.1208867795 | L95: =(G95/'B2'!$C$32) -> 0.4250715958 | M95: 0.3623895324 | N95: 8569.948605 | O95: 715.9522644 | P95: 837.3710695 | Q95: =O95*'B2'!$E$40 -> 2269.568678 | R95: ='B2'!$G$40*G95 -> 24379.42839 | S95: ='B2'!$I$40*G95 -> 15528.29834 | T95: ='B2'!$K$40*G95 -> 1552.829834 | U95: =G95*'B2'!$M$40 -> 3105.659668 | V95: ='B1'!H17/60 -> 3 | W95: 25709.84581 | X95: 2147.856793 | Y95: 2512.113208 | Z95: 6808.706034 | AA95: 73138.28518 | AB95: 46584.89502 | AC95: 4658.489502 | AD95: 9316.979004 | AF95: Entering harbour | AG95: ='B2'!C25 -> 240 | AH95: ='B2'!D25 -> 1500 | AI95: ='B2'!E25 -> 100 | BF95: Molde | BG95: ='B1'!D17 -> 0 | BH95: ='B1'!F17 -> 30 | BI95: ='B2'!$K$33 -> 750 | BJ95: 883.2234358 | BK95: 0.1208867795 | BL95: 0.3419563326 | BM95: 2582.854451 | BN95: 215.7773142 | BO95: 252.3711277 | BP95: =BN95*'B2'!$E$40 -> 684.0140861 | BQ95: ='B2'!$G$40*BJ95 -> 6933.303971 | BR95: ='B2'!$I$40*BJ95 -> 4416.117179 | BS95: ='B2'!$K$40*BJ95 -> 441.6117179 | BT95: =BJ95*'B2'!$M$40 -> 883.2234358 | BU95: 0.5 | BV95: 1291.427226 | BW95: 107.8886571 | BX95: 126.1855639 | BY95: 342.007043 | BZ95: 3466.651986 | CA95: 2208.05859 | CB95: 220.805859 | CC95: 441.6117179 | CD95: 375
A96: Port 7 | B96: Kristiansund | C96: 2745.752601 | D96: 2890.265896 | E96: ='B2'!$K$33 -> 750 | F96: 883.2234358 | G96: 3773.489331 | H96: ='B1'!F18/60 -> 0.75 | I96: ='B1'!D18 -> 0 | J96: 883.2234358 | K96: =J96/'B2'!$C$32 -> 0.1208867795 | L96: =(G96/'B2'!$C$32) -> 0.5164774327 | M96: 0.3669412496 | N96: 10283.63351 | O96: 859.1172524 | P96: 1004.8155 | Q96: =O96*'B2'!$E$40 -> 2723.40169 | R96: ='B2'!$G$40*G96 -> 29621.89125 | S96: ='B2'!$I$40*G96 -> 18867.44666 | T96: ='B2'!$K$40*G96 -> 1886.744666 | U96: =G96*'B2'!$M$40 -> 3773.489331 | V96: ='B1'!H18/60 -> 3.75 | W96: 38563.62567 | X96: 3221.689696 | Y96: 3768.058124 | Z96: 10212.75634 | AA96: 111082.0922 | AB96: 70752.92496 | AC96: 7075.292496 | AD96: 14150.58499 | BF96: Kristiansund | BG96: ='B1'!D18 -> 0 | BH96: ='B1'!F18 -> 45 | BI96: ='B2'!$K$33 -> 750 | BJ96: 883.2234358 | BK96: 0.1208867795 | BL96: 0.3419563326 | BM96: 2582.854451 | BN96: 215.7773142 | BO96: 252.3711277 | BP96: =BN96*'B2'!$E$40 -> 684.0140861 | BQ96: ='B2'!$G$40*BJ96 -> 6933.303971 | BR96: ='B2'!$I$40*BJ96 -> 4416.117179 | BS96: ='B2'!$K$40*BJ96 -> 441.6117179 | BT96: =BJ96*'B2'!$M$40 -> 883.2234358 | BU96: 0.75 | BV96: 1937.140838 | BW96: 161.8329857 | BX96: 189.2783458 | BY96: 513.0105646 | BZ96: 5199.977978 | CA96: 3312.087884 | CB96: 331.2087884 | CC96: 662.4175769 | CD96: 562.5
A97: Port 8 | B97: Trondheim | C97: 2737.870062 | D97: 2881.968487 | E97: ='B2'!$K$33 -> 750 | F97: 883.2234358 | G97: 3765.191922 | H97: ='B1'!F19/60 -> 6 | I97: ='B1'!D19 -> 1400 | J97: 0 | K97: =J97/'B2'!$C$32 -> 0 | L97: =(G97/'B2'!$C$32) -> 0.5153417664 | M97: 0.3668991896 | N97: 10262.19743 | O97: 857.3264356 | P97: 1002.720977 | Q97: =O97*'B2'!$E$40 -> 2717.724801 | R97: ='B2'!$G$40*G97 -> 29556.75659 | S97: ='B2'!$I$40*G97 -> 18825.95961 | T97: ='B2'!$K$40*G97 -> 1882.595961 | U97: =G97*'B2'!$M$40 -> 3765.191922 | V97: ='B1'!H19/60 -> 7 | W97: 71835.38204 | X97: 6001.285049 | Y97: 7019.046841 | Z97: 19024.07361 | AA97: 206897.2961 | AB97: 131781.7173 | AC97: 13178.17173 | AD97: 26356.34346 | AG97: hours | AH97: Incl sea margin | AI97: kWh | AJ97: Incl hotel | AK97: Relative load | AL97: =M89 -> Transit thermal efficiency | AM97: Necessary kW | AN97: kg | AO97: liters | AP97: CO2, kg | AQ97: Nox, g | AR97: CO, g | AS97: PM, g | AT97: SO, g | AU97: Hours | AV97: kWh | AW97: kg | AX97: liters | AY97: CO2, kg | AZ97: Nox, g | BA97: CO, g | BB97: PM, g | BC97: SO, g | BF97: Trondheim | BG97: ='B1'!D19 -> 1400 | BH97: ='B1'!F19 -> 360 | BI97: ='B2'!$K$33 -> 750 | BJ97: 0 | BK97: 0 | BL97: 0.3099 | BM97: 0 | BN97: 0 | BO97: 0 | BP97: =BN97*'B2'!$E$40 -> 0 | BQ97: ='B2'!$G$40*BJ97 -> 0 | BR97: ='B2'!$I$40*BJ97 -> 0 | BS97: ='B2'!$K$40*BJ97 -> 0 | BT97: =BJ97*'B2'!$M$40 -> 0 | BU97: 6 | BV97: 0 | BW97: 0 | BX97: 0 | BY97: 0 | BZ97: 0 | CA97: 0 | CB97: 0 | CC97: 0 | CD97: 4500
A98: Port 9 | B98: Rørvik | C98: 3605.788896 | D98: 3795.567259 | E98: ='B2'!$K$33 -> 750 | F98: 883.2234358 | G98: 4678.790695 | H98: ='B1'!F20/60 -> 0.5 | I98: ='B1'!D20 -> 0 | J98: 883.2234358 | K98: =J98/'B2'!$C$32 -> 0.1208867795 | L98: =(G98/'B2'!$C$32) -> 0.6403860178 | M98: 0.3708497782 | N98: 12616.40419 | O98: 1054.002021 | P98: 1232.750901 | Q98: =O98*'B2'!$E$40 -> 3341.186405 | R98: ='B2'!$G$40*G98 -> 36728.50695 | S98: ='B2'!$I$40*G98 -> 23393.95347 | T98: ='B2'!$K$40*G98 -> 2339.395347 | U98: =G98*'B2'!$M$40 -> 4678.790695 | V98: ='B1'!H20/60 -> 8.75 | W98: 110393.5366 | X98: 9222.517681 | Y98: 10786.57039 | Z98: 29235.38105 | AA98: 321374.4358 | AB98: 204697.0929 | AC98: 20469.70929 | AD98: 40939.41858 | AG98: =AG91/(60*60) -> 0.01666666667 | AH98: =AH91/(1-'B2'!$H$18) -> 1704.545455 | AI98: =AH98*AG98 -> 28.40909091 | AJ98: =AH98+'B2'!$K$33 -> 2454.545455 | AK98: =(AJ98/(1-'B2'!$H$18))/'B2'!$C$32 -> 0.3817654573 | AL98: =$C$126+($D$126*AK98)+($E$126*(AK98^2))+($F$126*(AK98^3))+($G$126*(AK98^4))+($H$126*(AK98^5))+($I$126*(AK98^6)) -> 0.35940336 | AM98: =AJ98/AL98 -> 6829.500577 | AN98: =AM98/$K$126 -> 570.5514267 | AO98: =AN98/0.855 -> 667.3116102 | AP98: =AN98*'B2'!$E$40 -> 1808.648023 | AQ98: ='B2'!$G$40*AJ98 -> 19268.18182 | AR98: ='B2'!$I$40*AJ98 -> 12272.72727 | AS98: ='B2'!$K$40*AJ98 -> 1227.272727 | AT98: =AJ98*'B2'!$M$40 -> 2454.545455 | AU98: =AG98 -> 0.01666666667 | AV98: =$AU98*AM98 -> 113.8250096 | AW98: =$AU98*AN98 -> 9.509190445 | AX98: 11.12186017 | AY98: 30.14413371 | AZ98: 321.1363636 | BA98: 204.5454545 | BB98: 20.45454545 | BC98: 40.90909091 | BF98: Rørvik | BG98: ='B1'!D20 -> 0 | BH98: ='B1'!F20 -> 30 | BI98: ='B2'!$K$33 -> 750 | BJ98: 883.2234358 | BK98: 0.1208867795 | BL98: 0.3419563326 | BM98: 2582.854451 | BN98: 215.7773142 | BO98: 252.3711277 | BP98: =BN98*'B2'!$E$40 -> 684.0140861 | BQ98: ='B2'!$G$40*BJ98 -> 6933.303971 | BR98: ='B2'!$I$40*BJ98 -> 4416.117179 | BS98: ='B2'!$K$40*BJ98 -> 441.6117179 | BT98: =BJ98*'B2'!$M$40 -> 883.2234358 | BU98: 0.5 | BV98: 1291.427226 | BW98: 107.8886571 | BX98: 126.1855639 | BY98: 342.007043 | BZ98: 3466.651986 | CA98: 2208.05859 | CB98: 220.805859 | CC98: 441.6117179 | CD98: 375
A99: Port 10 | B99: Brønnøysund | C99: 3004.764381 | D99: 3162.909875 | E99: ='B2'!$K$33 -> 750 | F99: 883.2234358 | G99: 4046.133311 | H99: ='B1'!F21/60 -> 0.25 | I99: ='B1'!D21 -> 0 | J99: 883.2234358 | K99: =J99/'B2'!$C$32 -> 0.1208867795 | L99: =(G99/'B2'!$C$32) -> 0.5537942103 | M99: 0.3681845405 | N99: 10989.41663 | O99: 918.0799186 | P99: 1073.777683 | Q99: =O99*'B2'!$E$40 -> 2910.313342 | R99: ='B2'!$G$40*G99 -> 31762.14649 | S99: ='B2'!$I$40*G99 -> 20230.66655 | T99: ='B2'!$K$40*G99 -> 2023.066655 | U99: =G99*'B2'!$M$40 -> 4046.133311 | V99: ='B1'!H21/60 -> 3.5 | W99: 38462.95819 | X99: 3213.279715 | Y99: 3758.221889 | Z99: 10186.0967 | AA99: 111167.5127 | AB99: 70807.33294 | AC99: 7080.733294 | AD99: 14161.46659 | AG99: =AG92/(60*60) -> 0.06666666667 | AH99: =AH92/(1-'B2'!$H$18) -> 4545.454545 | AI99: =AH99*AG99 -> 303.030303 | AJ99: =AH99+'B2'!$K$33 -> 5295.454545 | AK99: =(AJ99/(1-'B2'!$H$18))/'B2'!$C$32 -> 0.8236236256 | AL99: =$C$126+($D$126*AK99)+($E$126*(AK99^2))+($F$126*(AK99^3))+($G$126*(AK99^4))+($H$126*(AK99^5))+($I$126*(AK99^6)) -> 0.3765834553 | AM99: =AJ99/AL99 -> 14061.83536 | AN99: =AM99/$K$126 -> 1174.756504 | AO99: =AN99/0.855 -> 1373.984215 | AP99: =AN99*'B2'!$E$40 -> 3723.978118 | AQ99: ='B2'!$G$40*AJ99 -> 41569.31818 | AR99: ='B2'!$I$40*AJ99 -> 26477.27273 | AS99: ='B2'!$K$40*AJ99 -> 2647.727273 | AT99: =AJ99*'B2'!$M$40 -> 5295.454545 | AU99: =AG99 -> 0.06666666667 | AV99: =$AU99*AM99 -> 937.4556904 | AW99: =$AU99*AN99 -> 78.31710028 | AX99: 91.5989477 | AY99: 248.2652079 | AZ99: 2771.287879 | BA99: 1765.151515 | BB99: 176.5151515 | BC99: 353.030303 | BF99: Brønnøysund | BG99: ='B1'!D21 -> 0 | BH99: ='B1'!F21 -> 15 | BI99: ='B2'!$K$33 -> 750 | BJ99: 883.2234358 | BK99: 0.1208867795 | BL99: 0.3419563326 | BM99: 2582.854451 | BN99: 215.7773142 | BO99: 252.3711277 | BP99: =BN99*'B2'!$E$40 -> 684.0140861 | BQ99: ='B2'!$G$40*BJ99 -> 6933.303971 | BR99: ='B2'!$I$40*BJ99 -> 4416.117179 | BS99: ='B2'!$K$40*BJ99 -> 441.6117179 | BT99: =BJ99*'B2'!$M$40 -> 883.2234358 | BU99: 0.25 | BV99: 645.7136128 | BW99: 53.94432855 | BX99: 63.09278194 | BY99: 171.0035215 | BZ99: 1733.325993 | CA99: 1104.029295 | CB99: 110.4029295 | CC99: 220.805859 | CD99: 187.5
A100: Port 11 | B100: Sandnessjøen | C100: 3070.201622 | D100: 3231.791181 | E100: ='B2'!$K$33 -> 750 | F100: 883.2234358 | G100: 4115.014616 | H100: ='B1'!F22/60 -> 0.5 | I100: ='B1'!D22 -> 0 | J100: 883.2234358 | K100: =J100/'B2'!$C$32 -> 0.1208867795 | L100: =(G100/'B2'!$C$32) -> 0.5632219937 | M100: 0.3684679849 | N100: 11167.90273 | O100: 932.9910388 | P100: 1091.217589 | Q100: =O100*'B2'!$E$40 -> 2957.581593 | R100: ='B2'!$G$40*G100 -> 32302.86474 | S100: ='B2'!$I$40*G100 -> 20575.07308 | T100: ='B2'!$K$40*G100 -> 2057.507308 | U100: =G100*'B2'!$M$40 -> 4115.014616 | V100: ='B1'!H22/60 -> 2.75 | W100: 30711.73252 | X100: 2565.725357 | Y100: 3000.848371 | Z100: 8133.349381 | AA100: 88832.87803 | AB100: 56581.45098 | AC100: 5658.145098 | AD100: 11316.2902 | AG100: =AG93/(60*60) -> 0.03333333333 | AH100: =AH93/(1-'B2'!$H$18) -> 1136.363636 | AI100: =AH100*AG100 -> 37.87878788 | AJ100: =AH100+'B2'!$K$33 -> 1886.363636 | AK100: =(AJ100/(1-'B2'!$H$18))/'B2'!$C$32 -> 0.2933938237 | AL100: =$C$126+($D$126*AK100)+($E$126*(AK100^2))+($F$126*(AK100^3))+($G$126*(AK100^4))+($H$126*(AK100^5))+($I$126*(AK100^6)) -> 0.3526922462 | AM100: =AJ100/AL100 -> 5348.469259 | AN100: =AM100/$K$126 -> 446.8228286 | AO100: =AN100/0.855 -> 522.5997996 | AP100: =AN100*'B2'!$E$40 -> 1416.428367 | AQ100: ='B2'!$G$40*AJ100 -> 14807.95455 | AR100: ='B2'!$I$40*AJ100 -> 9431.818182 | AS100: ='B2'!$K$40*AJ100 -> 943.1818182 | AT100: =AJ100*'B2'!$M$40 -> 1886.363636 | AU100: =AG100 -> 0.03333333333 | AV100: =$AU100*AM100 -> 178.2823086 | AW100: 14.89409429 | AX100: 17.41999332 | AY100: 47.21427889 | AZ100: 493.5984848 | BA100: 314.3939394 | BB100: 31.43939394 | BC100: 62.87878788 | BF100: Sandnessjøen | BG100: ='B1'!D22 -> 0 | BH100: ='B1'!F22 -> 30 | BI100: ='B2'!$K$33 -> 750 | BJ100: 883.2234358 | BK100: 0.1208867795 | BL100: 0.3419563326 | BM100: 2582.854451 | BN100: 215.7773142 | BO100: 252.3711277 | BP100: =BN100*'B2'!$E$40 -> 684.0140861 | BQ100: ='B2'!$G$40*BJ100 -> 6933.303971 | BR100: ='B2'!$I$40*BJ100 -> 4416.117179 | BS100: ='B2'!$K$40*BJ100 -> 441.6117179 | BT100: =BJ100*'B2'!$M$40 -> 883.2234358 | BU100: 0.5 | BV100: 1291.427226 | BW100: 107.8886571 | BX100: 126.1855639 | BY100: 342.007043 | BZ100: 3466.651986 | CA100: 2208.05859 | CB100: 220.805859 | CC100: 441.6117179 | CD100: 375
A101: Port 12 | B101: Nesna | C101: 3681.219152 | D101: 3874.967528 | E101: ='B2'!$K$33 -> 750 | F101: 883.2234358 | G101: 4758.190964 | H101: ='B1'!F23/60 -> 0.08333333333 | I101: ='B1'!D23 -> 0 | J101: 883.2234358 | K101: =J101/'B2'!$C$32 -> 0.1208867795 | L101: =(G101/'B2'!$C$32) -> 0.6512535315 | M101: 0.3712483288 | N101: 12816.73369 | O101: 1070.737986 | P101: 1252.32513 | Q101: =O101*'B2'!$E$40 -> 3394.239416 | R101: ='B2'!$G$40*G101 -> 37351.79907 | S101: ='B2'!$I$40*G101 -> 23790.95482 | T101: ='B2'!$K$40*G101 -> 2379.095482 | U101: =G101*'B2'!$M$40 -> 4758.190964 | V101: ='B1'!H23/60 -> 1.166666667 | W101: 14952.85598 | X101: 1249.194317 | Y101: 1461.045985 | Z101: 3959.945985 | AA101: 43577.09891 | AB101: 27756.11396 | AC101: 2775.611396 | AD101: 5551.222791 | AG101: =AG94/(60*60) -> 0.06666666667 | AH101: =AH94/(1-'B2'!$H$18) -> 1704.545455 | AI101: =AH101*AG101 -> 113.6363636 | AJ101: =AH101+'B2'!$K$33 -> 2454.545455 | AK101: =(AJ101/(1-'B2'!$H$18))/'B2'!$C$32 -> 0.3817654573 | AL101: =$C$126+($D$126*AK101)+($E$126*(AK101^2))+($F$126*(AK101^3))+($G$126*(AK101^4))+($H$126*(AK101^5))+($I$126*(AK101^6)) -> 0.35940336 | AM101: =AJ101/AL101 -> 6829.500577 | AN101: =AM101/$K$126 -> 570.5514267 | AO101: =AN101/0.855 -> 667.3116102 | AP101: =AN101*'B2'!$E$40 -> 1808.648023 | AQ101: ='B2'!$G$40*AJ101 -> 19268.18182 | AR101: ='B2'!$I$40*AJ101 -> 12272.72727 | AS101: ='B2'!$K$40*AJ101 -> 1227.272727 | AT101: =AJ101*'B2'!$M$40 -> 2454.545455 | AU101: =AG101 -> 0.06666666667 | AV101: =$AU101*AM101 -> 455.3000385 | AW101: 38.03676178 | AX101: 44.48744068 | AY101: 120.5765348 | AZ101: 1284.545455 | BA101: 818.1818182 | BB101: 81.81818182 | BC101: 163.6363636 | BF101: Nesna | BG101: ='B1'!D23 -> 0 | BH101: ='B1'!F23 -> 5 | BI101: ='B2'!$K$33 -> 750 | BJ101: 883.2234358 | BK101: 0.1208867795 | BL101: 0.3419563326 | BM101: 2582.854451 | BN101: 215.7773142 | BO101: 252.3711277 | BP101: =BN101*'B2'!$E$40 -> 684.0140861 | BQ101: ='B2'!$G$40*BJ101 -> 6933.303971 | BR101: ='B2'!$I$40*BJ101 -> 4416.117179 | BS101: ='B2'!$K$40*BJ101 -> 441.6117179 | BT101: =BJ101*'B2'!$M$40 -> 883.2234358 | BU101: 0.08333333333 | BV101: 215.2378709 | BW101: 17.98144285 | BX101: 21.03092731 | BY101: 57.00117384 | BZ101: 577.7753309 | CA101: 368.0097649 | CB101: 36.80097649 | CC101: 73.60195298 | CD101: 62.5
A102: Port 13 | B102: Ørnes | C102: 3313.510177 | D102: 3487.905449 | E102: ='B2'!$K$33 -> 750 | F102: 883.2234358 | G102: 4371.128885 | H102: ='B1'!F24/60 -> 0.25 | I102: ='B1'!D24 -> 0 | J102: 883.2234358 | K102: =J102/'B2'!$C$32 -> 0.1208867795 | L102: =(G102/'B2'!$C$32) -> 0.5982763501 | M102: 0.3694944634 | N102: 11830.02539 | O102: 988.3062149 | P102: 1155.913702 | Q102: =O102*'B2'!$E$40 -> 3132.930701 | R102: ='B2'!$G$40*G102 -> 34313.36175 | S102: ='B2'!$I$40*G102 -> 21855.64442 | T102: ='B2'!$K$40*G102 -> 2185.564442 | U102: =G102*'B2'!$M$40 -> 4371.128885 | V102: ='B1'!H24/60 -> 3.75 | W102: 44362.59522 | X102: 3706.148306 | Y102: 4334.676381 | Z102: 11748.49013 | AA102: 128675.1065 | AB102: 81958.66659 | AC102: 8195.866659 | AD102: 16391.73332 | AG102: =AG95/(60*60) -> 0.06666666667 | AH102: =AH95/(1-'B2'!$H$18) -> 1704.545455 | AI102: =AH102*AG102 -> 113.6363636 | AJ102: =AH102+'B2'!$K$33 -> 2454.545455 | AK102: =(AJ102/(1-'B2'!$H$18))/'B2'!$C$32 -> 0.3817654573 | AL102: =$C$126+($D$126*AK102)+($E$126*(AK102^2))+($F$126*(AK102^3))+($G$126*(AK102^4))+($H$126*(AK102^5))+($I$126*(AK102^6)) -> 0.35940336 | AM102: =AJ102/AL102 -> 6829.500577 | AN102: =AM102/$K$126 -> 570.5514267 | AO102: =AN102/0.855 -> 667.3116102 | AP102: =AN102*'B2'!$E$40 -> 1808.648023 | AQ102: ='B2'!$G$40*AJ102 -> 19268.18182 | AR102: ='B2'!$I$40*AJ102 -> 12272.72727 | AS102: ='B2'!$K$40*AJ102 -> 1227.272727 | AT102: =AJ102*'B2'!$M$40 -> 2454.545455 | AU102: =AG102 -> 0.06666666667 | AV102: =$AU102*AM102 -> 455.3000385 | AW102: 38.03676178 | AX102: 44.48744068 | AY102: 120.5765348 | AZ102: 1284.545455 | BA102: 818.1818182 | BB102: 81.81818182 | BC102: 163.6363636 | BF102: Ørnes | BG102: ='B1'!D24 -> 0 | BH102: ='B1'!F24 -> 15 | BI102: ='B2'!$K$33 -> 750 | BJ102: 883.2234358 | BK102: 0.1208867795 | BL102: 0.3419563326 | BM102: 2582.854451 | BN102: 215.7773142 | BO102: 252.3711277 | BP102: =BN102*'B2'!$E$40 -> 684.0140861 | BQ102: ='B2'!$G$40*BJ102 -> 6933.303971 | BR102: ='B2'!$I$40*BJ102 -> 4416.117179 | BS102: ='B2'!$K$40*BJ102 -> 441.6117179 | BT102: =BJ102*'B2'!$M$40 -> 883.2234358 | BU102: 0.25 | BV102: 645.7136128 | BW102: 53.94432855 | BX102: 63.09278194 | BY102: 171.0035215 | BZ102: 1733.325993 | CA102: 1104.029295 | CB102: 110.4029295 | CC102: 220.805859 | CD102: 187.5
A103: Port 14 | B103: Bodø | C103: 2964.342088 | D103: 3120.360092 | E103: ='B2'!$K$33 -> 750 | F103: 883.2234358 | G103: 4003.583528 | H103: ='B1'!F25/60 -> 2.5 | I103: ='B1'!D25 -> 1400 | J103: 0 | K103: =J103/'B2'!$C$32 -> 0 | L103: =(G103/'B2'!$C$32) -> 0.5479704222 | M103: 0.3680049558 | N103: 10879.15656 | O103: 908.8685513 | P103: 1063.004154 | Q103: =O103*'B2'!$E$40 -> 2881.113307 | R103: ='B2'!$G$40*G103 -> 31428.13069 | S103: ='B2'!$I$40*G103 -> 20017.91764 | T103: ='B2'!$K$40*G103 -> 2001.791764 | U103: =G103*'B2'!$M$40 -> 4003.583528 | V103: ='B1'!H25/60 -> 3 | W103: 32637.46968 | X103: 2726.605654 | Y103: 3189.012461 | Z103: 8643.339922 | AA103: 94284.39208 | AB103: 60053.75292 | AC103: 6005.375292 | AD103: 12010.75058 | BF103: Bodø | BG103: ='B1'!D25 -> 1400 | BH103: ='B1'!F25 -> 150 | BI103: ='B2'!$K$33 -> 750 | BJ103: 0 | BK103: 0 | BL103: 0.3099 | BM103: 0 | BN103: 0 | BO103: 0 | BP103: =BN103*'B2'!$E$40 -> 0 | BQ103: ='B2'!$G$40*BJ103 -> 0 | BR103: ='B2'!$I$40*BJ103 -> 0 | BS103: ='B2'!$K$40*BJ103 -> 0 | BT103: =BJ103*'B2'!$M$40 -> 0 | BU103: 2.5 | BV103: 0 | BW103: 0 | BX103: 0 | BY103: 0 | BZ103: 0 | CA103: 0 | CB103: 0 | CC103: 0 | CD103: 1875
A104: Port 15 | B104: Stamsund | C104: 3402.840264 | D104: 3581.93712 | E104: ='B2'!$K$33 -> 750 | F104: 883.2234358 | G104: 4465.160556 | H104: ='B1'!F26/60 -> 0.5 | I104: ='B1'!D26 -> 0 | J104: 883.2234358 | K104: =J104/'B2'!$C$32 -> 0.1208867795 | L104: =(G104/'B2'!$C$32) -> 0.6111464636 | M104: 0.3698837572 | N104: 12071.79409 | O104: 1008.504101 | P104: 1179.536961 | Q104: =O104*'B2'!$E$40 -> 3196.958002 | R104: ='B2'!$G$40*G104 -> 35051.51036 | S104: ='B2'!$I$40*G104 -> 22325.80278 | T104: ='B2'!$K$40*G104 -> 2232.580278 | U104: =G104*'B2'!$M$40 -> 4465.160556 | V104: ='B1'!H26/60 -> 4 | W104: 48287.17638 | X104: 4034.016406 | Y104: 4718.147843 | Z104: 12787.83201 | AA104: 140206.0415 | AB104: 89303.21112 | AC104: 8930.321112 | AD104: 17860.64222 | AU104: =34*(SUM(AU98:AU102)) -> 8.5 | AV104: =34*(SUM(AV98:AV102)) -> 72765.54491 | AW104: =34*(SUM(AW98:AW102)) -> 6078.992891 | AX104: 7109.933206 | AY104: 19270.40747 | AZ104: 209273.8636 | BA104: 133295.4545 | BB104: 13329.54545 | BC104: 26659.09091 | BF104: Stamsund | BG104: ='B1'!D26 -> 0 | BH104: ='B1'!F26 -> 30 | BI104: ='B2'!$K$33 -> 750 | BJ104: 883.2234358 | BK104: 0.1208867795 | BL104: 0.3419563326 | BM104: 2582.854451 | BN104: 215.7773142 | BO104: 252.3711277 | BP104: =BN104*'B2'!$E$40 -> 684.0140861 | BQ104: ='B2'!$G$40*BJ104 -> 6933.303971 | BR104: ='B2'!$I$40*BJ104 -> 4416.117179 | BS104: ='B2'!$K$40*BJ104 -> 441.6117179 | BT104: =BJ104*'B2'!$M$40 -> 883.2234358 | BU104: 0.5 | BV104: 1291.427226 | BW104: 107.8886571 | BX104: 126.1855639 | BY104: 342.007043 | BZ104: 3466.651986 | CA104: 2208.05859 | CB104: 220.805859 | CC104: 441.6117179 | CD104: 375
A105: Port 16 | B105: Svolvær | C105: 3758.677161 | D105: 3956.502275 | E105: ='B2'!$K$33 -> 750 | F105: 883.2234358 | G105: 4839.72571 | H105: ='B1'!F27/60 -> 1 | I105: ='B1'!D27 -> 0 | J105: 883.2234358 | K105: =J105/'B2'!$C$32 -> 0.1208867795 | L105: =(G105/'B2'!$C$32) -> 0.6624131911 | M105: 0.371683612 | N105: 13021.08986 | O105: 1087.810347 | P105: 1272.292804 | Q105: =O105*'B2'!$E$40 -> 3448.358801 | R105: ='B2'!$G$40*G105 -> 37991.84683 | S105: ='B2'!$I$40*G105 -> 24198.62855 | T105: ='B2'!$K$40*G105 -> 2419.862855 | U105: =G105*'B2'!$M$40 -> 4839.72571 | V105: ='B1'!H27/60 -> 1.5 | W105: 19531.63479 | X105: 1631.715521 | Y105: 1908.439206 | Z105: 5172.538202 | AA105: 56987.77024 | AB105: 36297.94283 | AC105: 3629.794283 | AD105: 7259.588566 | BF105: Svolvær | BG105: ='B1'!D27 -> 0 | BH105: ='B1'!F27 -> 60 | BI105: ='B2'!$K$33 -> 750 | BJ105: 883.2234358 | BK105: 0.1208867795 | BL105: 0.3419563326 | BM105: 2582.854451 | BN105: 215.7773142 | BO105: 252.3711277 | BP105: =BN105*'B2'!$E$40 -> 684.0140861 | BQ105: ='B2'!$G$40*BJ105 -> 6933.303971 | BR105: ='B2'!$I$40*BJ105 -> 4416.117179 | BS105: ='B2'!$K$40*BJ105 -> 441.6117179 | BT105: =BJ105*'B2'!$M$40 -> 883.2234358 | BU105: 1 | BV105: 2582.854451 | BW105: 215.7773142 | BX105: 252.3711277 | BY105: 684.0140861 | BZ105: 6933.303971 | CA105: 4416.117179 | CB105: 441.6117179 | CC105: 883.2234358 | CD105: 750
A106: Port 17 | B106: Stokmarknes | C106: 2111.31442 | D106: 2222.436232 | E106: ='B2'!$K$33 -> 750 | F106: 883.2234358 | G106: 3105.659668 | H106: ='B1'!F28/60 -> 0.25 | I106: ='B1'!D28 -> 0 | J106: 883.2234358 | K106: =J106/'B2'!$C$32 -> 0.1208867795 | L106: =(G106/'B2'!$C$32) -> 0.4250715958 | M106: 0.3623895324 | N106: 8569.948605 | O106: 715.9522644 | P106: 837.3710695 | Q106: =O106*'B2'!$E$40 -> 2269.568678 | R106: ='B2'!$G$40*G106 -> 24379.42839 | S106: ='B2'!$I$40*G106 -> 15528.29834 | T106: ='B2'!$K$40*G106 -> 1552.829834 | U106: =G106*'B2'!$M$40 -> 3105.659668 | V106: ='B1'!H28/60 -> 3 | W106: 25709.84581 | X106: 2147.856793 | Y106: 2512.113208 | Z106: 6808.706034 | AA106: 73138.28518 | AB106: 46584.89502 | AC106: 4658.489502 | AD106: 9316.979004 | BF106: Stokmarknes | BG106: ='B1'!D28 -> 0 | BH106: ='B1'!F28 -> 15 | BI106: ='B2'!$K$33 -> 750 | BJ106: 883.2234358 | BK106: 0.1208867795 | BL106: 0.3419563326 | BM106: 2582.854451 | BN106: 215.7773142 | BO106: 252.3711277 | BP106: =BN106*'B2'!$E$40 -> 684.0140861 | BQ106: ='B2'!$G$40*BJ106 -> 6933.303971 | BR106: ='B2'!$I$40*BJ106 -> 4416.117179 | BS106: ='B2'!$K$40*BJ106 -> 441.6117179 | BT106: =BJ106*'B2'!$M$40 -> 883.2234358 | BU106: 0.25 | BV106: 645.7136128 | BW106: 53.94432855 | BX106: 63.09278194 | BY106: 171.0035215 | BZ106: 1733.325993 | CA106: 1104.029295 | CB106: 110.4029295 | CC106: 220.805859 | CD106: 187.5
A107: Port 18 | B107: Sortland | C107: 1451.76376 | D107: 1528.172379 | E107: ='B2'!$K$33 -> 750 | F107: 883.2234358 | G107: 2411.395815 | H107: ='B1'!F29/60 -> 0.25 | I107: ='B1'!D29 -> 0 | J107: 883.2234358 | K107: =J107/'B2'!$C$32 -> 0.1208867795 | L107: =(G107/'B2'!$C$32) -> 0.3300477119 | M107: 0.3554607194 | N107: 6783.860167 | O107: 566.7385269 | P107: 662.8520782 | Q107: =O107*'B2'!$E$40 -> 1796.56113 | R107: ='B2'!$G$40*G107 -> 18929.45715 | S107: ='B2'!$I$40*G107 -> 12056.97908 | T107: ='B2'!$K$40*G107 -> 1205.697908 | U107: =G107*'B2'!$M$40 -> 2411.395815 | V107: ='B1'!H29/60 -> 1.5 | W107: 10175.79025 | X107: 850.1077903 | Y107: 994.2781174 | Z107: 2694.841695 | AA107: 28394.18572 | AB107: 18085.46861 | AC107: 1808.546861 | AD107: 3617.093723 | BF107: Sortland | BG107: ='B1'!D29 -> 0 | BH107: ='B1'!F29 -> 15 | BI107: ='B2'!$K$33 -> 750 | BJ107: 883.2234358 | BK107: 0.1208867795 | BL107: 0.3419563326 | BM107: 2582.854451 | BN107: 215.7773142 | BO107: 252.3711277 | BP107: =BN107*'B2'!$E$40 -> 684.0140861 | BQ107: ='B2'!$G$40*BJ107 -> 6933.303971 | BR107: ='B2'!$I$40*BJ107 -> 4416.117179 | BS107: ='B2'!$K$40*BJ107 -> 441.6117179 | BT107: =BJ107*'B2'!$M$40 -> 883.2234358 | BU107: 0.25 | BV107: 645.7136128 | BW107: 53.94432855 | BX107: 63.09278194 | BY107: 171.0035215 | BZ107: 1733.325993 | CA107: 1104.029295 | CB107: 110.4029295 | CC107: 220.805859 | CD107: 187.5
A108: Port 19 | B108: Risøyhamn | C108: 4088.432391 | D108: 4303.613043 | E108: ='B2'!$K$33 -> 750 | F108: 883.2234358 | G108: 5186.836479 | H108: ='B1'!F30/60 -> 0.25 | I108: ='B1'!D30 -> 0 | J108: 883.2234358 | K108: =J108/'B2'!$C$32 -> 0.1208867795 | L108: =(G108/'B2'!$C$32) -> 0.7099222373 | M108: 0.3738158308 | N108: 13875.3794 | O108: 1159.179566 | P108: 1355.765574 | Q108: =O108*'B2'!$E$40 -> 3674.599224 | R108: ='B2'!$G$40*G108 -> 40716.66636 | S108: ='B2'!$I$40*G108 -> 25934.1824 | T108: ='B2'!$K$40*G108 -> 2593.41824 | U108: =G108*'B2'!$M$40 -> 5186.836479 | V108: ='B1'!H30/60 -> 1.25 | W108: 17344.22425 | X108: 1448.974457 | Y108: 1694.706968 | Z108: 4593.24903 | AA108: 50895.83295 | AB108: 32417.728 | AC108: 3241.7728 | AD108: 6483.545599 | AV108: Overall SUM | BF108: Risøyhamn | BG108: ='B1'!D30 -> 0 | BH108: ='B1'!F30 -> 15 | BI108: ='B2'!$K$33 -> 750 | BJ108: 883.2234358 | BK108: 0.1208867795 | BL108: 0.3419563326 | BM108: 2582.854451 | BN108: 215.7773142 | BO108: 252.3711277 | BP108: =BN108*'B2'!$E$40 -> 684.0140861 | BQ108: ='B2'!$G$40*BJ108 -> 6933.303971 | BR108: ='B2'!$I$40*BJ108 -> 4416.117179 | BS108: ='B2'!$K$40*BJ108 -> 441.6117179 | BT108: =BJ108*'B2'!$M$40 -> 883.2234358 | BU108: 0.25 | BV108: 645.7136128 | BW108: 53.94432855 | BX108: 63.09278194 | BY108: 171.0035215 | BZ108: 1733.325993 | CA108: 1104.029295 | CB108: 110.4029295 | CC108: 220.805859 | CD108: 187.5
A109: Port 20 | B109: Harstad | C109: 2413.91936 | D109: 2540.967748 | E109: ='B2'!$K$33 -> 750 | F109: 883.2234358 | G109: 3424.191183 | H109: ='B1'!F31/60 -> 1 | I109: ='B1'!D31 -> 0 | J109: 883.2234358 | K109: =J109/'B2'!$C$32 -> 0.1208867795 | L109: =(G109/'B2'!$C$32) -> 0.468669 | M109: 0.3648734199 | N109: 9384.600239 | O109: 784.0100451 | P109: 916.9708129 | Q109: =O109*'B2'!$E$40 -> 2485.311843 | R109: ='B2'!$G$40*G109 -> 26879.90079 | S109: ='B2'!$I$40*G109 -> 17120.95592 | T109: ='B2'!$K$40*G109 -> 1712.095592 | U109: =G109*'B2'!$M$40 -> 3424.191183 | V109: ='B1'!H31/60 -> 2.25 | W109: 21115.35054 | X109: 1764.022601 | Y109: 2063.184329 | Z109: 5591.951646 | AA109: 60479.77678 | AB109: 38522.15081 | AC109: 3852.215081 | AD109: 7704.430163 | AU109: =AU97 -> Hours | AV109: =AV97 -> kWh | AW109: kg | AX109: liters | AY109: CO2, kg | AZ109: Nox, g | BA109: CO, g | BB109: PM, g | BC109: SO, g | BF109: Harstad | BG109: ='B1'!D31 -> 0 | BH109: ='B1'!F31 -> 60 | BI109: ='B2'!$K$33 -> 750 | BJ109: 883.2234358 | BK109: 0.1208867795 | BL109: 0.3419563326 | BM109: 2582.854451 | BN109: 215.7773142 | BO109: 252.3711277 | BP109: =BN109*'B2'!$E$40 -> 684.0140861 | BQ109: ='B2'!$G$40*BJ109 -> 6933.303971 | BR109: ='B2'!$I$40*BJ109 -> 4416.117179 | BS109: ='B2'!$K$40*BJ109 -> 441.6117179 | BT109: =BJ109*'B2'!$M$40 -> 883.2234358 | BU109: 1 | BV109: 2582.854451 | BW109: 215.7773142 | BX109: 252.3711277 | BY109: 684.0140861 | BZ109: 6933.303971 | CA109: 4416.117179 | CB109: 441.6117179 | CC109: 883.2234358 | CD109: 750
A110: Port 21 | B110: Finnsnes | C110: 3326.94331 | D110: 3502.045589 | E110: ='B2'!$K$33 -> 750 | F110: 883.2234358 | G110: 4385.269025 | H110: ='B1'!F32/60 -> 0.5 | I110: ='B1'!D32 -> 0 | J110: 883.2234358 | K110: =J110/'B2'!$C$32 -> 0.1208867795 | L110: =(G110/'B2'!$C$32) -> 0.6002117109 | M110: 0.3695520758 | N110: 11866.44403 | O110: 991.348708 | P110: 1159.472173 | Q110: =O110*'B2'!$E$40 -> 3142.575404 | R110: ='B2'!$G$40*G110 -> 34424.36185 | S110: ='B2'!$I$40*G110 -> 21926.34512 | T110: ='B2'!$K$40*G110 -> 2192.634512 | U110: =G110*'B2'!$M$40 -> 4385.269025 | V110: ='B1'!H32/60 -> 3.25 | W110: 38565.94311 | X110: 3221.883301 | Y110: 3768.284562 | Z110: 10213.37006 | AA110: 111879.176 | AB110: 71260.62165 | AC110: 7126.062165 | AD110: 14252.12433 | AU110: =V125+AU104+BU125 -> 150.5 | AV110: =W125+AV104+BV125 -> 1267075.632 | AW110: 105854.2716 | AX110: 123806.1657 | AY110: 335558.0411 | AZ110: 3661643.137 | BA110: 2332256.775 | BB110: 233225.6775 | BC110: 466451.355 | BF110: Finnsnes | BG110: ='B1'!D32 -> 0 | BH110: ='B1'!F32 -> 30 | BI110: ='B2'!$K$33 -> 750 | BJ110: 883.2234358 | BK110: 0.1208867795 | BL110: 0.3419563326 | BM110: 2582.854451 | BN110: 215.7773142 | BO110: 252.3711277 | BP110: =BN110*'B2'!$E$40 -> 684.0140861 | BQ110: ='B2'!$G$40*BJ110 -> 6933.303971 | BR110: ='B2'!$I$40*BJ110 -> 4416.117179 | BS110: ='B2'!$K$40*BJ110 -> 441.6117179 | BT110: =BJ110*'B2'!$M$40 -> 883.2234358 | BU110: 0.5 | BV110: 1291.427226 | BW110: 107.8886571 | BX110: 126.1855639 | BY110: 342.007043 | BZ110: 3466.651986 | CA110: 2208.05859 | CB110: 220.805859 | CC110: 441.6117179 | CD110: 375
A111: Port 22 | B111: Tromsø | C111: 3345.810618 | D111: 3521.905914 | E111: ='B2'!$K$33 -> 750 | F111: 883.2234358 | G111: 4405.12935 | H111: ='B1'!F33/60 -> 4.25 | I111: ='B1'!D33 -> 1400 | J111: 0 | K111: =J111/'B2'!$C$32 -> 0 | L111: =(G111/'B2'!$C$32) -> 0.6029299932 | M111: 0.3696334856 | N111: 11917.56029 | O111: 995.6190717 | P111: 1164.466751 | Q111: =O111*'B2'!$E$40 -> 3156.112457 | R111: ='B2'!$G$40*G111 -> 34580.26539 | S111: ='B2'!$I$40*G111 -> 22025.64675 | T111: ='B2'!$K$40*G111 -> 2202.564675 | U111: =G111*'B2'!$M$40 -> 4405.12935 | V111: ='B1'!H33/60 -> 2.75 | W111: 32773.29079 | X111: 2737.952447 | Y111: 3202.283564 | Z111: 8679.309258 | AA111: 95095.72984 | AB111: 60570.52856 | AC111: 6057.052856 | AD111: 12114.10571 | BF111: Tromsø | BG111: ='B1'!D33 -> 1400 | BH111: ='B1'!F33 -> 255 | BI111: ='B2'!$K$33 -> 750 | BJ111: 0 | BK111: 0 | BL111: 0.3099 | BM111: 0 | BN111: 0 | BO111: 0 | BP111: =BN111*'B2'!$E$40 -> 0 | BQ111: ='B2'!$G$40*BJ111 -> 0 | BR111: ='B2'!$I$40*BJ111 -> 0 | BS111: ='B2'!$K$40*BJ111 -> 0 | BT111: =BJ111*'B2'!$M$40 -> 0 | BU111: 4.25 | BV111: 0 | BW111: 0 | BX111: 0 | BY111: 0 | BZ111: 0 | CA111: 0 | CB111: 0 | CC111: 0 | CD111: 3187.5
A112: Port 23 | B112: Skjervøy | C112: 3034.639796 | D112: 3194.35768 | E112: ='B2'!$K$33 -> 750 | F112: 883.2234358 | G112: 4077.581116 | H112: ='B1'!F34/60 -> 0.25 | I112: ='B1'!D34 -> 0 | J112: 883.2234358 | K112: =J112/'B2'!$C$32 -> 0.1208867795 | L112: =(G112/'B2'!$C$32) -> 0.558098471 | M112: 0.36831492 | N112: 11070.90942 | O112: 924.8880047 | P112: 1081.740356 | Q112: =O112*'B2'!$E$40 -> 2931.894975 | R112: ='B2'!$G$40*G112 -> 32009.01176 | S112: ='B2'!$I$40*G112 -> 20387.90558 | T112: ='B2'!$K$40*G112 -> 2038.790558 | U112: =G112*'B2'!$M$40 -> 4077.581116 | V112: ='B1'!H34/60 -> 4 | W112: 44283.63766 | X112: 3699.552019 | Y112: 4326.961425 | Z112: 11727.5799 | AA112: 128036.047 | AB112: 81551.62232 | AC112: 8155.162232 | AD112: 16310.32446 | BF112: Skjervøy | BG112: ='B1'!D34 -> 0 | BH112: ='B1'!F34 -> 15 | BI112: ='B2'!$K$33 -> 750 | BJ112: 883.2234358 | BK112: 0.1208867795 | BL112: 0.3419563326 | BM112: 2582.854451 | BN112: 215.7773142 | BO112: 252.3711277 | BP112: =BN112*'B2'!$E$40 -> 684.0140861 | BQ112: ='B2'!$G$40*BJ112 -> 6933.303971 | BR112: ='B2'!$I$40*BJ112 -> 4416.117179 | BS112: ='B2'!$K$40*BJ112 -> 441.6117179 | BT112: =BJ112*'B2'!$M$40 -> 883.2234358 | BU112: 0.25 | BV112: 645.7136128 | BW112: 53.94432855 | BX112: 63.09278194 | BY112: 171.0035215 | BZ112: 1733.325993 | CA112: 1104.029295 | CB112: 110.4029295 | CC112: 220.805859 | CD112: 187.5
A113: Port 24 | B113: Øksfjord | C113: 3567.935703 | D113: 3755.721792 | E113: ='B2'!$K$33 -> 750 | F113: 883.2234358 | G113: 4638.945228 | H113: ='B1'!F35/60 -> 0.25 | I113: ='B1'!D35 -> 0 | J113: 883.2234358 | K113: =J113/'B2'!$C$32 -> 0.1208867795 | L113: =(G113/'B2'!$C$32) -> 0.6349323693 | M113: 0.3706586407 | N113: 12515.411 | O113: 1045.564828 | P113: 1222.88284 | Q113: =O113*'B2'!$E$40 -> 3314.440506 | R113: ='B2'!$G$40*G113 -> 36415.72004 | S113: ='B2'!$I$40*G113 -> 23194.72614 | T113: ='B2'!$K$40*G113 -> 2319.472614 | U113: =G113*'B2'!$M$40 -> 4638.945228 | V113: ='B1'!H35/60 -> 3.25 | W113: 40675.08574 | X113: 3398.085693 | Y113: 3974.369231 | Z113: 10771.93165 | AA113: 118351.0901 | AB113: 75382.85996 | AC113: 7538.285996 | AD113: 15076.57199 | BF113: Øksfjord | BG113: ='B1'!D35 -> 0 | BH113: ='B1'!F35 -> 15 | BI113: ='B2'!$K$33 -> 750 | BJ113: 883.2234358 | BK113: 0.1208867795 | BL113: 0.3419563326 | BM113: 2582.854451 | BN113: 215.7773142 | BO113: 252.3711277 | BP113: =BN113*'B2'!$E$40 -> 684.0140861 | BQ113: ='B2'!$G$40*BJ113 -> 6933.303971 | BR113: ='B2'!$I$40*BJ113 -> 4416.117179 | BS113: ='B2'!$K$40*BJ113 -> 441.6117179 | BT113: =BJ113*'B2'!$M$40 -> 883.2234358 | BU113: 0.25 | BV113: 645.7136128 | BW113: 53.94432855 | BX113: 63.09278194 | BY113: 171.0035215 | BZ113: 1733.325993 | CA113: 1104.029295 | CB113: 110.4029295 | CC113: 220.805859 | CD113: 187.5
A114: Port 25 | B114: Hammerfest | C114: 3465.789479 | D114: 3648.199452 | E114: ='B2'!$K$33 -> 750 | F114: 883.2234358 | G114: 4531.422887 | H114: ='B1'!F36/60 -> 0.75 | I114: ='B1'!D36 -> 0 | J114: 883.2234358 | K114: =J114/'B2'!$C$32 -> 0.1208867795 | L114: =(G114/'B2'!$C$32) -> 0.620215788 | M114: 0.3701691603 | N114: 12241.4922 | O114: 1022.681052 | P114: 1196.11819 | Q114: =O114*'B2'!$E$40 -> 3241.898936 | R114: ='B2'!$G$40*G114 -> 35571.66967 | S114: ='B2'!$I$40*G114 -> 22657.11444 | T114: ='B2'!$K$40*G114 -> 2265.711444 | U114: =G114*'B2'!$M$40 -> 4531.422887 | V114: ='B1'!H36/60 -> 3 | W114: 36724.47659 | X114: 3068.043157 | Y114: 3588.35457 | Z114: 9725.696808 | AA114: 106715.009 | AB114: 67971.34331 | AC114: 6797.134331 | AD114: 13594.26866 | BF114: Hammerfest | BG114: ='B1'!D36 -> 0 | BH114: ='B1'!F36 -> 45 | BI114: ='B2'!$K$33 -> 750 | BJ114: 883.2234358 | BK114: 0.1208867795 | BL114: 0.3419563326 | BM114: 2582.854451 | BN114: 215.7773142 | BO114: 252.3711277 | BP114: =BN114*'B2'!$E$40 -> 684.0140861 | BQ114: ='B2'!$G$40*BJ114 -> 6933.303971 | BR114: ='B2'!$I$40*BJ114 -> 4416.117179 | BS114: ='B2'!$K$40*BJ114 -> 441.6117179 | BT114: =BJ114*'B2'!$M$40 -> 883.2234358 | BU114: 0.75 | BV114: 1937.140838 | BW114: 161.8329857 | BX114: 189.2783458 | BY114: 513.0105646 | BZ114: 5199.977978 | CA114: 3312.087884 | CB114: 331.2087884 | CC114: 662.4175769 | CD114: 562.5
A115: Port 26 | B115: Havøysund | C115: 3345.810618 | D115: 3521.905914 | E115: ='B2'!$K$33 -> 750 | F115: 883.2234358 | G115: 4405.12935 | H115: ='B1'!F37/60 -> 0.5 | I115: ='B1'!D37 -> 0 | J115: 883.2234358 | K115: =J115/'B2'!$C$32 -> 0.1208867795 | L115: =(G115/'B2'!$C$32) -> 0.6029299932 | M115: 0.3696334856 | N115: 11917.56029 | O115: 995.6190717 | P115: 1164.466751 | Q115: =O115*'B2'!$E$40 -> 3156.112457 | R115: ='B2'!$G$40*G115 -> 34580.26539 | S115: ='B2'!$I$40*G115 -> 22025.64675 | T115: ='B2'!$K$40*G115 -> 2202.564675 | U115: =G115*'B2'!$M$40 -> 4405.12935 | V115: ='B1'!H37/60 -> 2.75 | W115: 32773.29079 | X115: 2737.952447 | Y115: 3202.283564 | Z115: 8679.309258 | AA115: 95095.72984 | AB115: 60570.52856 | AC115: 6057.052856 | AD115: 12114.10571 | BF115: Havøysund | BG115: ='B1'!D37 -> 0 | BH115: ='B1'!F37 -> 30 | BI115: ='B2'!$K$33 -> 750 | BJ115: 883.2234358 | BK115: 0.1208867795 | BL115: 0.3419563326 | BM115: 2582.854451 | BN115: 215.7773142 | BO115: 252.3711277 | BP115: =BN115*'B2'!$E$40 -> 684.0140861 | BQ115: ='B2'!$G$40*BJ115 -> 6933.303971 | BR115: ='B2'!$I$40*BJ115 -> 4416.117179 | BS115: ='B2'!$K$40*BJ115 -> 441.6117179 | BT115: =BJ115*'B2'!$M$40 -> 883.2234358 | BU115: 0.5 | BV115: 1291.427226 | BW115: 107.8886571 | BX115: 126.1855639 | BY115: 342.007043 | BZ115: 3466.651986 | CA115: 2208.05859 | CB115: 220.805859 | CC115: 441.6117179 | CD115: 375
A116: Port 27 | B116: Honningsvåg | C116: 4045.844898 | D116: 4258.784103 | E116: ='B2'!$K$33 -> 750 | F116: 883.2234358 | G116: 5142.007539 | H116: ='B1'!F38/60 -> 3.5 | I116: ='B1'!D38 -> 1400 | J116: 0 | K116: =J116/'B2'!$C$32 -> 0 | L116: =(G116/'B2'!$C$32) -> 0.7037865008 | M116: 0.3735203527 | N116: 13766.3383 | O116: 1150.070034 | P116: 1345.111151 | Q116: =O116*'B2'!$E$40 -> 3645.722007 | R116: ='B2'!$G$40*G116 -> 40364.75918 | S116: ='B2'!$I$40*G116 -> 25710.03769 | T116: ='B2'!$K$40*G116 -> 2571.003769 | U116: =G116*'B2'!$M$40 -> 5142.007539 | V116: ='B1'!H38/60 -> 2 | W116: 27532.67661 | X116: 2300.140067 | Y116: 2690.222301 | Z116: 7291.444014 | AA116: 80729.51836 | AB116: 51420.07539 | AC116: 5142.007539 | AD116: 10284.01508 | BF116: Honningsvåg | BG116: ='B1'!D38 -> 1400 | BH116: ='B1'!F38 -> 210 | BI116: ='B2'!$K$33 -> 750 | BJ116: 0 | BK116: 0 | BL116: 0.3099 | BM116: 0 | BN116: 0 | BO116: 0 | BP116: =BN116*'B2'!$E$40 -> 0 | BQ116: ='B2'!$G$40*BJ116 -> 0 | BR116: ='B2'!$I$40*BJ116 -> 0 | BS116: ='B2'!$K$40*BJ116 -> 0 | BT116: =BJ116*'B2'!$M$40 -> 0 | BU116: 3.5 | BV116: 0 | BW116: 0 | BX116: 0 | BY116: 0 | BZ116: 0 | CA116: 0 | CB116: 0 | CC116: 0 | CD116: 2625
A117: Port 28 | B117: Kjøllefjord | C117: 3030.213973 | D117: 3189.698919 | E117: ='B2'!$K$33 -> 750 | F117: 883.2234358 | G117: 4072.922355 | H117: ='B1'!F39/60 -> 0.25 | I117: ='B1'!D39 -> 0 | J117: 883.2234358 | K117: =J117/'B2'!$C$32 -> 0.1208867795 | L117: =(G117/'B2'!$C$32) -> 0.5574608264 | M117: 0.3682957171 | N117: 11058.83714 | O117: 923.8794604 | P117: 1080.560772 | Q117: =O117*'B2'!$E$40 -> 2928.697889 | R117: ='B2'!$G$40*G117 -> 31972.44049 | S117: ='B2'!$I$40*G117 -> 20364.61177 | T117: ='B2'!$K$40*G117 -> 2036.461177 | U117: =G117*'B2'!$M$40 -> 4072.922355 | V117: ='B1'!H39/60 -> 2.25 | W117: 24882.38357 | X117: 2078.728786 | Y117: 2431.261738 | Z117: 6589.570251 | AA117: 71937.99109 | AB117: 45820.37649 | AC117: 4582.037649 | AD117: 9164.075298 | BF117: Kjøllefjord | BG117: ='B1'!D39 -> 0 | BH117: ='B1'!F39 -> 15 | BI117: ='B2'!$K$33 -> 750 | BJ117: 883.2234358 | BK117: 0.1208867795 | BL117: 0.3419563326 | BM117: 2582.854451 | BN117: 215.7773142 | BO117: 252.3711277 | BP117: =BN117*'B2'!$E$40 -> 684.0140861 | BQ117: ='B2'!$G$40*BJ117 -> 6933.303971 | BR117: ='B2'!$I$40*BJ117 -> 4416.117179 | BS117: ='B2'!$K$40*BJ117 -> 441.6117179 | BT117: =BJ117*'B2'!$M$40 -> 883.2234358 | BU117: 0.25 | BV117: 645.7136128 | BW117: 53.94432855 | BX117: 63.09278194 | BY117: 171.0035215 | BZ117: 1733.325993 | CA117: 1104.029295 | CB117: 110.4029295 | CC117: 220.805859 | CD117: 187.5
A118: =A78 -> Port 29 | B118: =B78 -> Mehamn | C118: 3194.23547 | D118: 3362.353127 | E118: ='B2'!$K$33 -> 750 | F118: 883.2234358 | G118: 4245.576562 | H118: ='B1'!F40/60 -> 0.25 | I118: ='B1'!D40 -> 0 | J118: 883.2234358 | K118: =J118/'B2'!$C$32 -> 0.1208867795 | L118: =(G118/'B2'!$C$32) -> 0.5810920055 | M118: 0.3689910958 | N118: 11505.90518 | O118: 961.2285033 | P118: 1124.243864 | Q118: =O118*'B2'!$E$40 -> 3047.094356 | R118: ='B2'!$G$40*G118 -> 33327.77602 | S118: ='B2'!$I$40*G118 -> 21227.88281 | T118: ='B2'!$K$40*G118 -> 2122.788281 | U118: =G118*'B2'!$M$40 -> 4245.576562 | V118: ='B1'!H40/60 -> 2 | W118: 23011.81037 | X118: 1922.457007 | Y118: 2248.487727 | Z118: 6094.188711 | AA118: 66655.55203 | AB118: 42455.76562 | AC118: 4245.576562 | AD118: 8491.153125 | BF118: Mehamn | BG118: ='B1'!D40 -> 0 | BH118: ='B1'!F40 -> 15 | BI118: ='B2'!$K$33 -> 750 | BJ118: 883.2234358 | BK118: 0.1208867795 | BL118: 0.3419563326 | BM118: 2582.854451 | BN118: 215.7773142 | BO118: 252.3711277 | BP118: =BN118*'B2'!$E$40 -> 684.0140861 | BQ118: ='B2'!$G$40*BJ118 -> 6933.303971 | BR118: ='B2'!$I$40*BJ118 -> 4416.117179 | BS118: ='B2'!$K$40*BJ118 -> 441.6117179 | BT118: =BJ118*'B2'!$M$40 -> 883.2234358 | BU118: 0.25 | BV118: 645.7136128 | BW118: 53.94432855 | BX118: 63.09278194 | BY118: 171.0035215 | BZ118: 1733.325993 | CA118: 1104.029295 | CB118: 110.4029295 | CC118: 220.805859 | CD118: 187.5
A119: =A79 -> Port 30 | B119: Berlevåg | C119: 4211.524858 | D119: 4433.184061 | E119: ='B2'!$K$33 -> 750 | F119: 883.2234358 | G119: 5316.407497 | H119: ='B1'!F41/60 -> 0.25 | I119: ='B1'!D41 -> 0 | J119: 883.2234358 | K119: =J119/'B2'!$C$32 -> 0.1208867795 | L119: =(G119/'B2'!$C$32) -> 0.7276566207 | M119: 0.3746793094 | N119: 14189.22093 | O119: 1185.398574 | P119: 1386.43108 | Q119: =O119*'B2'!$E$40 -> 3757.713478 | R119: ='B2'!$G$40*G119 -> 41733.79885 | S119: ='B2'!$I$40*G119 -> 26582.03748 | T119: ='B2'!$K$40*G119 -> 2658.203748 | U119: =G119*'B2'!$M$40 -> 5316.407497 | V119: ='B1'!H41/60 -> 2.5 | W119: 35473.05232 | X119: 2963.496434 | Y119: 3466.077701 | Z119: 9394.283696 | AA119: 104334.4971 | AB119: 66455.09371 | AC119: 6645.509371 | AD119: 13291.01874 | BF119: Berlevåg | BG119: ='B1'!D41 -> 0 | BH119: ='B1'!F41 -> 15 | BI119: ='B2'!$K$33 -> 750 | BJ119: 883.2234358 | BK119: 0.1208867795 | BL119: 0.3419563326 | BM119: 2582.854451 | BN119: 215.7773142 | BO119: 252.3711277 | BP119: =BN119*'B2'!$E$40 -> 684.0140861 | BQ119: ='B2'!$G$40*BJ119 -> 6933.303971 | BR119: ='B2'!$I$40*BJ119 -> 4416.117179 | BS119: ='B2'!$K$40*BJ119 -> 441.6117179 | BT119: =BJ119*'B2'!$M$40 -> 883.2234358 | BU119: 0.25 | BV119: 645.7136128 | BW119: 53.94432855 | BX119: 63.09278194 | BY119: 171.0035215 | BZ119: 1733.325993 | CA119: 1104.029295 | CB119: 110.4029295 | CC119: 220.805859 | CD119: 187.5
A120: =A80 -> Port 31 | B120: =B80 -> Båtsfjord | C120: =K80 -> 4872.330114 | D120: 5128.768541 | E120: ='B2'!$K$33 -> 750 | F120: 883.2234358 | G120: 6011.991976 | H120: ='B1'!F42/60 -> 0.5 | I120: ='B1'!D42 -> 0 | J120: 883.2234358 | K120: =J120/'B2'!$C$32 -> 0.1208867795 | L120: =(G120/'B2'!$C$32) -> 0.8228612588 | M120: 0.376617006 | N120: 15963.14527 | O120: 1333.596096 | P120: 1559.761516 | Q120: =O120*'B2'!$E$40 -> 4227.499624 | R120: ='B2'!$G$40*G120 -> 47194.13702 | S120: ='B2'!$I$40*G120 -> 30059.95988 | T120: ='B2'!$K$40*G120 -> 3005.995988 | U120: =G120*'B2'!$M$40 -> 6011.991976 | V120: ='B1'!H42/60 -> 1.5 | W120: 23944.7179 | X120: 2000.394144 | Y120: 2339.642273 | Z120: 6341.249436 | AA120: 70791.20552 | AB120: 45089.93982 | AC120: 4508.993982 | AD120: 9017.987965 | BF120: =B120 -> Båtsfjord | BG120: ='B1'!D42 -> 0 | BH120: ='B1'!F42 -> 30 | BI120: ='B2'!$K$33 -> 750 | BJ120: 883.2234358 | BK120: 0.1208867795 | BL120: 0.3419563326 | BM120: 2582.854451 | BN120: 215.7773142 | BO120: 252.3711277 | BP120: =BN120*'B2'!$E$40 -> 684.0140861 | BQ120: ='B2'!$G$40*BJ120 -> 6933.303971 | BR120: ='B2'!$I$40*BJ120 -> 4416.117179 | BS120: ='B2'!$K$40*BJ120 -> 441.6117179 | BT120: =BJ120*'B2'!$M$40 -> 883.2234358 | BU120: 0.5 | BV120: 1291.427226 | BW120: 107.8886571 | BX120: 126.1855639 | BY120: 342.007043 | BZ120: 3466.651986 | CA120: 2208.05859 | CB120: 220.805859 | CC120: 441.6117179 | CD120: 375
A121: =A81 -> Port 32 | B121: Vardø | C121: 2964.342088 | D121: 3120.360092 | E121: ='B2'!$K$33 -> 750 | F121: 883.2234358 | G121: 4003.583528 | H121: ='B1'!F43/60 -> 0.25 | I121: ='B1'!D43 -> 0 | J121: 883.2234358 | K121: =J121/'B2'!$C$32 -> 0.1208867795 | L121: =(G121/'B2'!$C$32) -> 0.5479704222 | M121: 0.3680049558 | N121: 10879.15656 | O121: 908.8685513 | P121: 1063.004154 | Q121: =O121*'B2'!$E$40 -> 2881.113307 | R121: ='B2'!$G$40*G121 -> 31428.13069 | S121: ='B2'!$I$40*G121 -> 20017.91764 | T121: ='B2'!$K$40*G121 -> 2001.791764 | U121: =G121*'B2'!$M$40 -> 4003.583528 | V121: ='B1'!H43/60 -> 3 | W121: 32637.46968 | X121: 2726.605654 | Y121: 3189.012461 | Z121: 8643.339922 | AA121: 94284.39208 | AB121: 60053.75292 | AC121: 6005.375292 | AD121: 12010.75058 | BF121: Vardø | BG121: ='B1'!D43 -> 0 | BH121: ='B1'!F43 -> 15 | BI121: ='B2'!$K$33 -> 750 | BJ121: 883.2234358 | BK121: 0.1208867795 | BL121: 0.3419563326 | BM121: 2582.854451 | BN121: 215.7773142 | BO121: 252.3711277 | BP121: =BN121*'B2'!$E$40 -> 684.0140861 | BQ121: ='B2'!$G$40*BJ121 -> 6933.303971 | BR121: ='B2'!$I$40*BJ121 -> 4416.117179 | BS121: ='B2'!$K$40*BJ121 -> 441.6117179 | BT121: =BJ121*'B2'!$M$40 -> 883.2234358 | BU121: 0.25 | BV121: 645.7136128 | BW121: 53.94432855 | BX121: 63.09278194 | BY121: 171.0035215 | BZ121: 1733.325993 | CA121: 1104.029295 | CB121: 110.4029295 | CC121: 220.805859 | CD121: 187.5
A122: =A82 -> Port 33 | B122: =B82 -> Vadsø | C122: 2878.007532 | D122: 3029.481613 | E122: ='B2'!$K$33 -> 750 | F122: 883.2234358 | G122: 3912.705049 | H122: ='B1'!F44/60 -> 0.5 | I122: ='B1'!D44 -> 0 | J122: 883.2234358 | K122: =J122/'B2'!$C$32 -> 0.1208867795 | L122: =(G122/'B2'!$C$32) -> 0.5355318859 | M122: 0.3676059897 | N122: 10643.74672 | O122: 889.2018983 | P122: 1040.00222 | Q122: =O122*'B2'!$E$40 -> 2818.770018 | R122: ='B2'!$G$40*G122 -> 30714.73463 | S122: ='B2'!$I$40*G122 -> 19563.52524 | T122: ='B2'!$K$40*G122 -> 1956.352524 | U122: =G122*'B2'!$M$40 -> 3912.705049 | V122: ='B1'!H44/60 -> 3.25 | W122: 34592.17685 | X122: 2889.90617 | Y122: 3380.007216 | Z122: 9161.002558 | AA122: 99822.88755 | AB122: 63581.45704 | AC122: 6358.145704 | AD122: 12716.29141 | BF122: Vadsø | BG122: ='B1'!D44 -> 0 | BH122: ='B1'!F44 -> 30 | BI122: ='B2'!$K$33 -> 750 | BJ122: 883.2234358 | BK122: 0.1208867795 | BL122: 0.3419563326 | BM122: 2582.854451 | BN122: 215.7773142 | BO122: 252.3711277 | BP122: =BN122*'B2'!$E$40 -> 684.0140861 | BQ122: ='B2'!$G$40*BJ122 -> 6933.303971 | BR122: ='B2'!$I$40*BJ122 -> 4416.117179 | BS122: ='B2'!$K$40*BJ122 -> 441.6117179 | BT122: =BJ122*'B2'!$M$40 -> 883.2234358 | BU122: 0.5 | BV122: 1291.427226 | BW122: 107.8886571 | BX122: 126.1855639 | BY122: 342.007043 | BZ122: 3466.651986 | CA122: 2208.05859 | CB122: 220.805859 | CC122: 441.6117179 | CD122: 375
A123: =A83 -> Port 34 | B123: Kirkenes | C123: 3924.477765 | D123: 4131.029227 | E123: ='B2'!$K$33 -> 750 | F123: 883.2234358 | G123: 5014.252662 | H123: ='B1'!F45/60 -> 3.5 | I123: ='B1'!D45 -> 0 | J123: 883.2234358 | K123: =J123/'B2'!$C$32 -> 0.1208867795 | L123: =(G123/'B2'!$C$32) -> 0.6863006926 | M123: 0.3727051296 | N123: 13453.67226 | O123: 1123.949228 | P123: 1314.5605 | Q123: =O123*'B2'!$E$40 -> 3562.919052 | R123: ='B2'!$G$40*G123 -> 39361.8834 | S123: ='B2'!$I$40*G123 -> 25071.26331 | T123: ='B2'!$K$40*G123 -> 2507.126331 | U123: =G123*'B2'!$M$40 -> 5014.252662 | V123: ='B1'!H45/60 -> 1.75 | W123: 23543.92645 | X123: 1966.911149 | Y123: 2300.480876 | Z123: 6235.108342 | AA123: 68883.29595 | AB123: 43874.7108 | AC123: 4387.47108 | AD123: 8774.942159 | BF123: Kirkenes | BG123: ='B1'!D45 -> 0 | BH123: ='B1'!F45 -> 210 | BI123: ='B2'!$K$33 -> 750 | BJ123: 883.2234358 | BK123: 0.1208867795 | BL123: 0.3419563326 | BM123: 2582.854451 | BN123: 215.7773142 | BO123: 252.3711277 | BP123: =BN123*'B2'!$E$40 -> 684.0140861 | BQ123: ='B2'!$G$40*BJ123 -> 6933.303971 | BR123: ='B2'!$I$40*BJ123 -> 4416.117179 | BS123: ='B2'!$K$40*BJ123 -> 441.6117179 | BT123: =BJ123*'B2'!$M$40 -> 883.2234358 | BU123: 3.5 | BV123: 9039.990579 | BW123: 755.2205998 | BX123: 883.2989471 | BY123: 2394.049301 | BZ123: 24266.5639 | CA123: 15456.41013 | CB123: 1545.641013 | CC123: 3091.282025 | CD123: 2625
C125: const | D125: x | E125: x2 | F125: x3 | G125: x4 | H125: x5 | I125: x6 | K125: Diesel oil | U125: SUM | V125: =SUM(V91:V123) -> 100.1666667 | W125: =SUM(W91:W123) -> 1148894.896 | X125: 95981.19431 | Y125: 112258.7068 | Z125: 304260.386 | AA125: 3330458.678 | AB125: 2121311.26 | AC125: 212131.126 | AD125: 424262.252 | BT125: SUM | BU125: =SUM(BU90:BU123) -> 41.83333333 | BV125: =SUM(BV90:BV123) -> 45415.19077 | BW125: 3794.084442 | BX125: 4437.525663 | BY125: 12027.24768 | BZ125: 121910.5948 | CA125: 77650.0604 | CB125: 7765.00604 | CC125: 15530.01208 | CD125: 31375
B126: Diesel variable rpm | C126: =F!C29 -> 0.3099 | D126: =F!D29 -> 0.58 | E126: =F!E29 -> -4.0844 | F126: =F!F29 -> 15.441 | G126: =F!G29 -> -29.665 | H126: =F!H29 -> 27.841 | I126: =F!I29 -> -10.15 | K126: 11.97 | L126: kWh/kg
A131: Diesel constant rpm
B132: =B89 -> Harbour | C132: =C89 -> Propulsion | D132: Propulsion incl losses | E132: Hotel | F132: Hotel Incl Losses | G132: Total Power | H132: Time in harbour [h] | I132: Shore Charging | J132: Shore engine power | K132: Relative load | L132: Transit relative load, sea margin | M132: Transit thermal efficiency | N132: Necessary kW | O132: kg | P132: liters | Q132: CO2, kg | R132: =R89 -> Nox, g | S132: CO, g | T132: PM, g | U132: SO, g | V132: Hours | W132: kWh | X132: kg | Y132: liters | Z132: CO2, kg | AA132: Nox, g | AB132: CO, g | AC132: PM, g | AD132: SO, g | BG132: Available shore connection | BH132: Time in port | BI132: Hotel Power | BJ132: Harbour engine power | BK132: Relative load | BL132: Thermal Efficiency | BM132: Thermodynamic kW | BN132: =O132 -> kg | BO132: liters | BP132: CO2, kg | BQ132: Nox, g | BR132: CO, g | BS132: PM, g | BT132: SO, g | BU132: Hours | BV132: kWh | BW132: kg | BX132: liters | BY132: CO2, kg | BZ132: Nox, g | CA132: CO, g | CB132: PM, g | CC132: SO, g | CD132: Shore connection
A133: ='B1'!A12 -> Port 1 | B133: ='B1'!B12 -> Bergen | E133: ='B2'!$K$33 -> 750 | F133: =E133/$K$30 -> 883.2234358 | G133: =F133+D133 -> 883.2234358 | H133: ='B1'!F12/60 -> 8 | I133: ='B1'!D12 -> 1400 | J133: =IF(I133-(F133)<0,I133-(-F133),"0") -> 0 | K133: =J133/'B2'!$C$32 -> 0 | AG133: ='B2'!C20 -> Time [s] | AH133: ='B2'!D20 -> kW | AI133: ='B2'!E20 -> kWh | BE133: In harbour | BF133: =B133 -> Bergen | BG133: ='B1'!D12 -> 1400 | BH133: ='B1'!F12 -> 480 | BI133: ='B2'!$K$33 -> 750 | BJ133: =IF(I133-(F133)<0,I133-(-F133),"0") -> 0 | BK133: =K133 -> 0 | BL133: =$C$169+($D$169*BK133)+($E$169*(BK133^2))+($F$169*(BK133^3))+($G$169*(BK133^4))+($H$169*(BK133^5))+($I$169*(BK133^6)) -> 0.1667 | BM133: =BJ133/BL133 -> 0 | BN133: =BM133/$K$169 -> 0 | BO133: =BN133/0.855 -> 0 | BP133: =BN133*'B2'!$E$41 -> 0 | BQ133: ='B2'!$G$41*BJ133 -> 0 | BR133: ='B2'!$I$41*BJ133 -> 0 | BS133: ='B2'!$K$41*BJ133 -> 0 | BT133: =BJ133*'B2'!$M$41 -> 0 | BU133: =BH133/60 -> 8 | BV133: =$BU133*BM133 -> 0 | BW133: =$BU133*BN133 -> 0 | BX133: =$BU133*BO133 -> 0 | BY133: =$BU133*BP133 -> 0 | BZ133: =$BU133*BQ133 -> 0 | CA133: =$BU133*BR133 -> 0 | CB133: =$BU133*BS133 -> 0 | CC133: =$BU133*BT133 -> 0 | CD133: =E133*BU133 -> 6000
A134: ='B1'!A13 -> Port 2 | B134: ='B1'!B13 -> Florø | C134: =K51 -> 3998.059825 | D134: =C134/$K$19 -> 4208.484026 | E134: ='B2'!$K$33 -> 750 | F134: =E134/$K$30 -> 883.2234358 | G134: =F134+D134 -> 5091.707462 | H134: ='B1'!F13/60 -> 0.25 | I134: ='B1'!D13 -> 0 | J134: =IF(I134-(F134)<0,I134-(-F134),"0") -> 883.2234358 | K134: =J134/'B2'!$C$32 -> 0.1208867795 | L134: =(G134/'B2'!$C$32) -> 0.69690193 | M134: =$C$169+($D$169*L134)+($E$169*(L134^2))+($F$169*(L134^3))+($G$169*(L134^4))+($H$169*(L134^5))+($I$169*(L134^6)) -> 0.3693011784 | N134: =G134/M134 -> 13787.4119 | O134: =N134/$K$169 -> 1151.830568 | P134: =O134/0.855 -> 1347.170255 | Q134: =O134*'B2'!$E$41 -> 3651.302901 | R134: ='B2'!$G$41*G134 -> 39969.90358 | S134: ='B2'!$I$41*G134 -> 25458.53731 | T134: ='B2'!$K$41*G134 -> 2545.853731 | U134: =G134*'B2'!$M$41 -> 5091.707462 | V134: ='B1'!H13/60 -> 6 | W134: =$V134*N134 -> 82724.4714 | X134: 6910.983408 | Y134: 8083.02153 | Z134: 21907.8174 | AA134: 239819.4215 | AB134: 152751.2239 | AC134: 15275.12239 | AD134: 30550.24477 | AF134: Leaving harbour | AG134: ='B2'!C21 -> 60 | AH134: ='B2'!D21 -> 1500 | AI134: ='B2'!E21 -> 25 | BF134: =B134 -> Florø | BG134: ='B1'!D13 -> 0 | BH134: ='B1'!F13 -> 15 | BI134: ='B2'!$K$33 -> 750 | BJ134: =IF(I134-(F134)<0,I134-(-F134),"0") -> 883.2234358 | BK134: =K134 -> 0.1208867795 | BL134: =$C$169+($D$169*BK134)+($E$169*(BK134^2))+($F$169*(BK134^3))+($G$169*(BK134^4))+($H$169*(BK134^5))+($I$169*(BK134^6)) -> 0.2668769932 | BM134: =BJ134/BL134 -> 3309.477618 | BN134: =BM134/$K$126 -> 276.481004 | BO134: =BN134/0.855 -> 323.3695953 | BP134: =BN134*'B2'!$E$41 -> 876.4447826 | BQ134: ='B2'!$G$41*BJ134 -> 6933.303971 | BR134: ='B2'!$I$41*BJ134 -> 4416.117179 | BS134: ='B2'!$K$41*BJ134 -> 441.6117179 | BT134: =BJ134*'B2'!$M$41 -> 883.2234358 | BU134: =BH134/60 -> 0.25 | BV134: =$BU134*BM134 -> 827.3694044 | BW134: 69.12025099 | BX134: 80.84239882 | BY134: 219.1111957 | BZ134: 1733.325993 | CA134: =$BU134*BR134 -> 1104.029295 | CB134: =$BU134*BS134 -> 110.4029295 | CC134: =$BU134*BT134 -> 220.805859 | CD134: =E134*BU134 -> 187.5
A135: ='B1'!A14 -> Port 3 | B135: ='B1'!B14 -> Måløy | C135: =K52 -> 1903.600549 | D135: =C135/$K$19 -> 2003.790051 | E135: ='B2'!$K$33 -> 750 | F135: 883.2234358 | G135: =F135+D135 -> 2887.013487 | H135: ='B1'!F14/60 -> 0.25 | I135: ='B1'!D14 -> 0 | J135: 883.2234358 | K135: =J135/'B2'!$C$32 -> 0.1208867795 | L135: =(G135/'B2'!$C$32) -> 0.3951454961 | M135: =$C$169+($D$169*L135)+($E$169*(L135^2))+($F$169*(L135^3))+($G$169*(L135^4))+($H$169*(L135^5))+($I$169*(L135^6)) -> 0.3453554294 | N135: =G135/M135 -> 8359.542781 | O135: =N135/$K$169 -> 698.3745014 | P135: =O135/0.855 -> 816.8122823 | Q135: =O135*'B2'!$E$41 -> 2213.847169 | R135: ='B2'!$G$41*G135 -> 22663.05587 | S135: ='B2'!$I$41*G135 -> 14435.06744 | T135: ='B2'!$K$41*G135 -> 1443.506744 | U135: =G135*'B2'!$M$41 -> 2887.013487 | V135: ='B1'!H14/60 -> 2.5 | W135: =$V135*N135 -> 20898.85695 | X135: =$V135*O135 -> 1745.936253 | Y135: =$V135*P135 -> 2042.030706 | Z135: =$V135*Q135 -> 5534.617923 | AA135: =$V135*R135 -> 56657.63968 | AB135: =$V135*S135 -> 36087.66859 | AC135: =$V135*T135 -> 3608.766859 | AD135: =$V135*U135 -> 7217.533718 | AF135: acceleration | AG135: ='B2'!C22 -> 240 | AH135: ='B2'!D22 -> 4000 | AI135: ='B2'!E22 -> 266.6666667 | AK135: There are 34 harbour to enter and leave | BF135: Måløy | BG135: ='B1'!D14 -> 0 | BH135: ='B1'!F14 -> 15 | BI135: ='B2'!$K$33 -> 750 | BJ135: 883.2234358 | BK135: 0.1208867795 | BL135: 0.2668769932 | BM135: 3309.477618 | BN135: 276.481004 | BO135: 323.3695953 | BP135: =BN135*'B2'!$E$41 -> 876.4447826 | BQ135: ='B2'!$G$41*BJ135 -> 6933.303971 | BR135: ='B2'!$I$41*BJ135 -> 4416.117179 | BS135: ='B2'!$K$41*BJ135 -> 441.6117179 | BT135: =BJ135*'B2'!$M$41 -> 883.2234358 | BU135: 0.25 | BV135: 827.3694044 | BW135: 69.12025099 | BX135: 80.84239882 | BY135: 219.1111957 | BZ135: 1733.325993 | CA135: 1104.029295 | CB135: 110.4029295 | CC135: 220.805859 | CD135: 187.5
A136: ='B1'!A15 -> Port 4 | B136: ='B1'!B15 -> Torvik | C136: 2964.342088 | D136: 3120.360092 | E136: ='B2'!$K$33 -> 750 | F136: 883.2234358 | G136: 4003.583528 | H136: ='B1'!F15/60 -> 0.25 | I136: ='B1'!D15 -> 0 | J136: 883.2234358 | K136: =J136/'B2'!$C$32 -> 0.1208867795 | L136: =(G136/'B2'!$C$32) -> 0.5479704222 | M136: =$C$169+($D$169*L136)+($E$169*(L136^2))+($F$169*(L136^3))+($G$169*(L136^4))+($H$169*(L136^5))+($I$169*(L136^6)) -> 0.3609793931 | N136: 11090.89218 | O136: 926.5574085 | P136: 1083.692875 | Q136: =O136*'B2'!$E$41 -> 2937.186985 | R136: ='B2'!$G$41*G136 -> 31428.13069 | S136: ='B2'!$I$41*G136 -> 20017.91764 | T136: ='B2'!$K$41*G136 -> 2001.791764 | U136: =G136*'B2'!$M$41 -> 4003.583528 | V136: ='B1'!H15/60 -> 3 | W136: 33272.67654 | X136: 2779.672225 | Y136: 3251.078626 | Z136: 8811.560955 | AA136: 94284.39208 | AB136: 60053.75292 | AC136: 6005.375292 | AD136: 12010.75058 | AF136: passive retardation | AG136: ='B2'!C23 -> 120 | AH136: ='B2'!D23 -> 1000 | AI136: ='B2'!E23 -> 33.33333333 | BF136: Torvik | BG136: ='B1'!D15 -> 0 | BH136: ='B1'!F15 -> 15 | BI136: ='B2'!$K$33 -> 750 | BJ136: 883.2234358 | BK136: 0.1208867795 | BL136: 0.2668769932 | BM136: 3309.477618 | BN136: 276.481004 | BO136: 323.3695953 | BP136: =BN136*'B2'!$E$41 -> 876.4447826 | BQ136: ='B2'!$G$41*BJ136 -> 6933.303971 | BR136: ='B2'!$I$41*BJ136 -> 4416.117179 | BS136: ='B2'!$K$41*BJ136 -> 441.6117179 | BT136: =BJ136*'B2'!$M$41 -> 883.2234358 | BU136: 0.25 | BV136: 827.3694044 | BW136: 69.12025099 | BX136: 80.84239882 | BY136: 219.1111957 | BZ136: 1733.325993 | CA136: 1104.029295 | CB136: 110.4029295 | CC136: 220.805859 | CD136: 187.5
A137: ='B1'!A16 -> Port 5 | B137: ='B1'!B16 -> Ålesund | C137: 2835.476094 | D137: 2984.711678 | E137: ='B2'!$K$33 -> 750 | F137: 883.2234358 | G137: 3867.935114 | H137: ='B1'!F16/60 -> 3 | I137: ='B1'!D16 -> 0 | J137: 883.2234358 | K137: =J137/'B2'!$C$32 -> 0.1208867795 | L137: =(G137/'B2'!$C$32) -> 0.5294042256 | M137: 0.3594848392 | N137: 10759.66131 | O137: 898.8856563 | P137: 1051.328253 | Q137: =O137*'B2'!$E$41 -> 2849.46753 | R137: ='B2'!$G$41*G137 -> 30363.29064 | S137: ='B2'!$I$41*G137 -> 19339.67557 | T137: ='B2'!$K$41*G137 -> 1933.967557 | U137: =G137*'B2'!$M$41 -> 3867.935114 | V137: ='B1'!H16/60 -> 1.25 | W137: 13449.57663 | X137: 1123.60707 | Y137: 1314.160316 | Z137: 3561.834413 | AA137: 37954.11331 | AB137: 24174.59446 | AC137: 2417.459446 | AD137: 4834.918892 | AF137: active retardation | AG137: ='B2'!C24 -> 240 | AH137: ='B2'!D24 -> 1500 | AI137: ='B2'!E24 -> 100 | BF137: Ålesund | BG137: ='B1'!D16 -> 0 | BH137: ='B1'!F16 -> 180 | BI137: ='B2'!$K$33 -> 750 | BJ137: 883.2234358 | BK137: 0.1208867795 | BL137: 0.2668769932 | BM137: 3309.477618 | BN137: 276.481004 | BO137: 323.3695953 | BP137: =BN137*'B2'!$E$41 -> 876.4447826 | BQ137: ='B2'!$G$41*BJ137 -> 6933.303971 | BR137: ='B2'!$I$41*BJ137 -> 4416.117179 | BS137: ='B2'!$K$41*BJ137 -> 441.6117179 | BT137: =BJ137*'B2'!$M$41 -> 883.2234358 | BU137: 3 | BV137: 9928.432853 | BW137: 829.4430119 | BX137: 970.1087859 | BY137: 2629.334348 | BZ137: 20799.91191 | CA137: 13248.35154 | CB137: 1324.835154 | CC137: 2649.670307 | CD137: 2250
A138: ='B1'!A17 -> Port 6 | B138: ='B1'!B17 -> Molde | C138: 2111.31442 | D138: 2222.436232 | E138: ='B2'!$K$33 -> 750 | F138: 883.2234358 | G138: 3105.659668 | H138: ='B1'!F17/60 -> 0.5 | I138: ='B1'!D17 -> 0 | J138: 883.2234358 | K138: =J138/'B2'!$C$32 -> 0.1208867795 | L138: =(G138/'B2'!$C$32) -> 0.4250715958 | M138: 0.3490962246 | N138: 8896.285461 | O138: 743.2151597 | P138: 869.2574967 | Q138: =O138*'B2'!$E$41 -> 2355.992056 | R138: ='B2'!$G$41*G138 -> 24379.42839 | S138: ='B2'!$I$41*G138 -> 15528.29834 | T138: ='B2'!$K$41*G138 -> 1552.829834 | U138: =G138*'B2'!$M$41 -> 3105.659668 | V138: ='B1'!H17/60 -> 3 | W138: 26688.85638 | X138: 2229.645479 | Y138: 2607.77249 | Z138: 7067.976168 | AA138: 73138.28518 | AB138: 46584.89502 | AC138: 4658.489502 | AD138: 9316.979004 | AF138: Entering harbour | AG138: ='B2'!C25 -> 240 | AH138: ='B2'!D25 -> 1500 | AI138: ='B2'!E25 -> 100 | BF138: Molde | BG138: ='B1'!D17 -> 0 | BH138: ='B1'!F17 -> 30 | BI138: ='B2'!$K$33 -> 750 | BJ138: 883.2234358 | BK138: 0.1208867795 | BL138: 0.2668769932 | BM138: 3309.477618 | BN138: 276.481004 | BO138: 323.3695953 | BP138: =BN138*'B2'!$E$41 -> 876.4447826 | BQ138: ='B2'!$G$41*BJ138 -> 6933.303971 | BR138: ='B2'!$I$41*BJ138 -> 4416.117179 | BS138: ='B2'!$K$41*BJ138 -> 441.6117179 | BT138: =BJ138*'B2'!$M$41 -> 883.2234358 | BU138: 0.5 | BV138: 1654.738809 | BW138: 138.240502 | BX138: 161.6847976 | BY138: 438.2223913 | BZ138: 3466.651986 | CA138: 2208.05859 | CB138: 220.805859 | CC138: 441.6117179 | CD138: 375
A139: ='B1'!A18 -> Port 7 | B139: ='B1'!B18 -> Kristiansund | C139: 2745.752601 | D139: 2890.265896 | E139: ='B2'!$K$33 -> 750 | F139: 883.2234358 | G139: 3773.489331 | H139: ='B1'!F18/60 -> 0.75 | I139: ='B1'!D18 -> 0 | J139: 883.2234358 | K139: =J139/'B2'!$C$32 -> 0.1208867795 | L139: =(G139/'B2'!$C$32) -> 0.5164774327 | M139: 0.3583853902 | N139: 10529.13828 | O139: 879.6272582 | P139: 1028.803811 | Q139: =O139*'B2'!$E$41 -> 2788.418409 | R139: ='B2'!$G$41*G139 -> 29621.89125 | S139: ='B2'!$I$41*G139 -> 18867.44666 | T139: ='B2'!$K$41*G139 -> 1886.744666 | U139: =G139*'B2'!$M$41 -> 3773.489331 | V139: ='B1'!H18/60 -> 3.75 | W139: 39484.26855 | X139: 3298.602218 | Y139: 3858.01429 | Z139: 10456.56903 | AA139: 111082.0922 | AB139: 70752.92496 | AC139: 7075.292496 | AD139: 14150.58499 | BF139: Kristiansund | BG139: ='B1'!D18 -> 0 | BH139: ='B1'!F18 -> 45 | BI139: ='B2'!$K$33 -> 750 | BJ139: 883.2234358 | BK139: 0.1208867795 | BL139: 0.2668769932 | BM139: 3309.477618 | BN139: 276.481004 | BO139: 323.3695953 | BP139: =BN139*'B2'!$E$41 -> 876.4447826 | BQ139: ='B2'!$G$41*BJ139 -> 6933.303971 | BR139: ='B2'!$I$41*BJ139 -> 4416.117179 | BS139: ='B2'!$K$41*BJ139 -> 441.6117179 | BT139: =BJ139*'B2'!$M$41 -> 883.2234358 | BU139: 0.75 | BV139: 2482.108213 | BW139: 207.360753 | BX139: 242.5271965 | BY139: 657.333587 | BZ139: 5199.977978 | CA139: 3312.087884 | CB139: 331.2087884 | CC139: 662.4175769 | CD139: 562.5
A140: ='B1'!A19 -> Port 8 | B140: ='B1'!B19 -> Trondheim | C140: 2737.870062 | D140: 2881.968487 | E140: ='B2'!$K$33 -> 750 | F140: 883.2234358 | G140: 3765.191922 | H140: ='B1'!F19/60 -> 6 | I140: ='B1'!D19 -> 1400 | J140: 0 | K140: =J140/'B2'!$C$32 -> 0 | L140: =(G140/'B2'!$C$32) -> 0.5153417664 | M140: 0.3582864641 | N140: 10508.88688 | O140: 877.9354119 | P140: 1026.825043 | Q140: =O140*'B2'!$E$41 -> 2783.055256 | R140: ='B2'!$G$41*G140 -> 29556.75659 | S140: ='B2'!$I$41*G140 -> 18825.95961 | T140: ='B2'!$K$41*G140 -> 1882.595961 | U140: =G140*'B2'!$M$41 -> 3765.191922 | V140: ='B1'!H19/60 -> 7 | W140: 73562.20817 | X140: 6145.547884 | Y140: 7187.775302 | Z140: 19481.38679 | AA140: 206897.2961 | AB140: 131781.7173 | AC140: 13178.17173 | AD140: 26356.34346 | AG140: hours | AH140: Incl sea margin | AI140: kWh | AJ140: Incl hotel | AK140: Relative load | AL140: =M132 -> Transit thermal efficiency | AM140: Necessary kW | AN140: kg | AO140: liters | AP140: CO2, kg | AQ140: Nox, g | AR140: CO, g | AS140: PM, g | AT140: SO, g | AU140: Hours | AV140: kWh | AW140: kg | AX140: liters | AY140: CO2, kg | AZ140: Nox, g | BA140: CO, g | BB140: PM, g | BC140: SO, g | BF140: Trondheim | BG140: ='B1'!D19 -> 1400 | BH140: ='B1'!F19 -> 360 | BI140: ='B2'!$K$33 -> 750 | BJ140: 0 | BK140: 0 | BL140: 0.1667 | BM140: 0 | BN140: 0 | BO140: 0 | BP140: =BN140*'B2'!$E$41 -> 0 | BQ140: ='B2'!$G$41*BJ140 -> 0 | BR140: ='B2'!$I$41*BJ140 -> 0 | BS140: ='B2'!$K$41*BJ140 -> 0 | BT140: =BJ140*'B2'!$M$41 -> 0 | BU140: 6 | BV140: 0 | BW140: 0 | BX140: 0 | BY140: 0 | BZ140: 0 | CA140: 0 | CB140: 0 | CC140: 0 | CD140: 4500
A141: ='B1'!A20 -> Port 9 | B141: ='B1'!B20 -> Rørvik | C141: 3605.788896 | D141: 3795.567259 | E141: ='B2'!$K$33 -> 750 | F141: 883.2234358 | G141: 4678.790695 | H141: ='B1'!F20/60 -> 0.5 | I141: ='B1'!D20 -> 0 | J141: 883.2234358 | K141: =J141/'B2'!$C$32 -> 0.1208867795 | L141: =(G141/'B2'!$C$32) -> 0.6403860178 | M141: 0.3669319549 | N141: 12751.11266 | O141: 1065.255861 | P141: 1245.913288 | Q141: =O141*'B2'!$E$41 -> 3376.86108 | R141: ='B2'!$G$41*G141 -> 36728.50695 | S141: ='B2'!$I$41*G141 -> 23393.95347 | T141: ='B2'!$K$41*G141 -> 2339.395347 | U141: =G141*'B2'!$M$41 -> 4678.790695 | V141: ='B1'!H20/60 -> 8.75 | W141: 111572.2358 | X141: 9320.988785 | Y141: 10901.74127 | Z141: 29547.53445 | AA141: 321374.4358 | AB141: 204697.0929 | AC141: 20469.70929 | AD141: 40939.41858 | AG141: =AG91/(60*60) -> 0.01666666667 | AH141: =AH134/(1-'B2'!$H$18) -> 1704.545455 | AI141: =AH141*AG141 -> 28.40909091 | AJ141: =AH141+'B2'!$K$33 -> 2454.545455 | AK141: =(AJ141/(1-'B2'!$H$18))/'B2'!$C$32 -> 0.3817654573 | AL141: =$C$169+($D$169*AK141)+($E$169*(AK141^2))+($F$169*(AK141^3))+($G$169*(AK141^4))+($H$169*(AK141^5))+($I$169*(AK141^6)) -> 0.3435387827 | AM141: =AJ141/AL141 -> 7144.886045 | AN141: =AM141/$K$169 -> 596.899419 | AO141: =AN141/0.855 -> 698.1279754 | AP141: =AN141*'B2'!$E$41 -> 1892.171158 | AQ141: ='B2'!$G$41*AJ141 -> 19268.18182 | AR141: ='B2'!$I$41*AJ141 -> 12272.72727 | AS141: ='B2'!$K$41*AJ141 -> 1227.272727 | AT141: =AJ141*'B2'!$M$41 -> 2454.545455 | AU141: =AG141 -> 0.01666666667 | AV141: =$AU141*AM141 -> 119.0814341 | AW141: 9.948323649 | AX141: 11.63546626 | AY141: 31.53618597 | AZ141: 321.1363636 | BA141: 204.5454545 | BB141: 20.45454545 | BC141: 40.90909091 | BF141: Rørvik | BG141: ='B1'!D20 -> 0 | BH141: ='B1'!F20 -> 30 | BI141: ='B2'!$K$33 -> 750 | BJ141: 883.2234358 | BK141: 0.1208867795 | BL141: 0.2668769932 | BM141: 3309.477618 | BN141: 276.481004 | BO141: 323.3695953 | BP141: =BN141*'B2'!$E$41 -> 876.4447826 | BQ141: ='B2'!$G$41*BJ141 -> 6933.303971 | BR141: ='B2'!$I$41*BJ141 -> 4416.117179 | BS141: ='B2'!$K$41*BJ141 -> 441.6117179 | BT141: =BJ141*'B2'!$M$41 -> 883.2234358 | BU141: 0.5 | BV141: 1654.738809 | BW141: 138.240502 | BX141: 161.6847976 | BY141: 438.2223913 | BZ141: 3466.651986 | CA141: 2208.05859 | CB141: 220.805859 | CC141: 441.6117179 | CD141: 375
A142: ='B1'!A21 -> Port 10 | B142: ='B1'!B21 -> Brønnøysund | C142: 3004.764381 | D142: 3162.909875 | E142: ='B2'!$K$33 -> 750 | F142: 883.2234358 | G142: 4046.133311 | H142: ='B1'!F21/60 -> 0.25 | I142: ='B1'!D21 -> 0 | J142: 883.2234358 | K142: =J142/'B2'!$C$32 -> 0.1208867795 | L142: =(G142/'B2'!$C$32) -> 0.5537942103 | M142: 0.361427821 | N142: 11194.85849 | O142: 935.2429817 | P142: 1093.851441 | Q142: =O142*'B2'!$E$41 -> 2964.720252 | R142: ='B2'!$G$41*G142 -> 31762.14649 | S142: ='B2'!$I$41*G142 -> 20230.66655 | T142: ='B2'!$K$41*G142 -> 2023.066655 | U142: =G142*'B2'!$M$41 -> 4046.133311 | V142: ='B1'!H21/60 -> 3.5 | W142: 39182.00472 | X142: 3273.350436 | Y142: 3828.480042 | Z142: 10376.52088 | AA142: 111167.5127 | AB142: 70807.33294 | AC142: 7080.733294 | AD142: 14161.46659 | AG142: =AG92/(60*60) -> 0.06666666667 | AH142: =AH135/(1-'B2'!$H$18) -> 4545.454545 | AI142: =AH142*AG142 -> 303.030303 | AJ142: =AH142+'B2'!$K$33 -> 5295.454545 | AK142: =(AJ142/(1-'B2'!$H$18))/'B2'!$C$32 -> 0.8236236256 | AL142: =$C$169+($D$169*AK142)+($E$169*(AK142^2))+($F$169*(AK142^3))+($G$169*(AK142^4))+($H$169*(AK142^5))+($I$169*(AK142^6)) -> 0.3713194112 | AM142: =AJ142/AL142 -> 14261.18427 | AN142: =AM142/$K$169 -> 1191.410549 | AO142: =AN142/0.855 -> 1393.46263 | AP142: =AN142*'B2'!$E$41 -> 3776.771439 | AQ142: ='B2'!$G$41*AJ142 -> 41569.31818 | AR142: ='B2'!$I$41*AJ142 -> 26477.27273 | AS142: ='B2'!$K$41*AJ142 -> 2647.727273 | AT142: =AJ142*'B2'!$M$41 -> 5295.454545 | AU142: =AG142 -> 0.06666666667 | AV142: 950.7456178 | AW142: 79.42736991 | AX142: 92.89750867 | AY142: 251.7847626 | AZ142: 2771.287879 | BA142: 1765.151515 | BB142: 176.5151515 | BC142: 353.030303 | BF142: Brønnøysund | BG142: ='B1'!D21 -> 0 | BH142: ='B1'!F21 -> 15 | BI142: ='B2'!$K$33 -> 750 | BJ142: 883.2234358 | BK142: 0.1208867795 | BL142: 0.2668769932 | BM142: 3309.477618 | BN142: 276.481004 | BO142: 323.3695953 | BP142: =BN142*'B2'!$E$41 -> 876.4447826 | BQ142: ='B2'!$G$41*BJ142 -> 6933.303971 | BR142: ='B2'!$I$41*BJ142 -> 4416.117179 | BS142: ='B2'!$K$41*BJ142 -> 441.6117179 | BT142: =BJ142*'B2'!$M$41 -> 883.2234358 | BU142: 0.25 | BV142: 827.3694044 | BW142: 69.12025099 | BX142: 80.84239882 | BY142: 219.1111957 | BZ142: 1733.325993 | CA142: 1104.029295 | CB142: 110.4029295 | CC142: 220.805859 | CD142: 187.5
A143: ='B1'!A22 -> Port 11 | B143: ='B1'!B22 -> Sandnessjøen | C143: 3070.201622 | D143: 3231.791181 | E143: ='B2'!$K$33 -> 750 | F143: 883.2234358 | G143: 4115.014616 | H143: ='B1'!F22/60 -> 0.5 | I143: ='B1'!D22 -> 0 | J143: 883.2234358 | K143: =J143/'B2'!$C$32 -> 0.1208867795 | L143: =(G143/'B2'!$C$32) -> 0.5632219937 | M143: 0.3621331589 | N143: 11363.2638 | O143: 949.3119301 | P143: 1110.306351 | Q143: =O143*'B2'!$E$41 -> 3009.318818 | R143: ='B2'!$G$41*G143 -> 32302.86474 | S143: ='B2'!$I$41*G143 -> 20575.07308 | T143: ='B2'!$K$41*G143 -> 2057.507308 | U143: =G143*'B2'!$M$41 -> 4115.014616 | V143: ='B1'!H22/60 -> 2.75 | W143: 31248.97546 | X143: 2610.607808 | Y143: 3053.342465 | Z143: 8275.626751 | AA143: 88832.87803 | AB143: 56581.45098 | AC143: 5658.145098 | AD143: 11316.2902 | AG143: =AG93/(60*60) -> 0.03333333333 | AH143: =AH136/(1-'B2'!$H$18) -> 1136.363636 | AI143: =AH143*AG143 -> 37.87878788 | AJ143: =AH143+'B2'!$K$33 -> 1886.363636 | AK143: =(AJ143/(1-'B2'!$H$18))/'B2'!$C$32 -> 0.2933938237 | AL143: =$C$169+($D$169*AK143)+($E$169*(AK143^2))+($F$169*(AK143^3))+($G$169*(AK143^4))+($H$169*(AK143^5))+($I$169*(AK143^6)) -> 0.3284315476 | AM143: =AJ143/AL143 -> 5743.551891 | AN143: =AM143/$K$169 -> 479.8288965 | AO143: =AN143/0.855 -> 561.2033877 | AP143: =AN143*'B2'!$E$41 -> 1521.057602 | AQ143: ='B2'!$G$41*AJ143 -> 14807.95455 | AR143: ='B2'!$I$41*AJ143 -> 9431.818182 | AS143: ='B2'!$K$41*AJ143 -> 943.1818182 | AT143: =AJ143*'B2'!$M$41 -> 1886.363636 | AU143: =AG143 -> 0.03333333333 | AV143: 191.4517297 | AW143: 15.99429655 | AX143: 18.70677959 | AY143: 50.70192006 | AZ143: 493.5984848 | BA143: 314.3939394 | BB143: 31.43939394 | BC143: 62.87878788 | BF143: Sandnessjøen | BG143: ='B1'!D22 -> 0 | BH143: ='B1'!F22 -> 30 | BI143: ='B2'!$K$33 -> 750 | BJ143: 883.2234358 | BK143: 0.1208867795 | BL143: 0.2668769932 | BM143: 3309.477618 | BN143: 276.481004 | BO143: 323.3695953 | BP143: =BN143*'B2'!$E$41 -> 876.4447826 | BQ143: ='B2'!$G$41*BJ143 -> 6933.303971 | BR143: ='B2'!$I$41*BJ143 -> 4416.117179 | BS143: ='B2'!$K$41*BJ143 -> 441.6117179 | BT143: =BJ143*'B2'!$M$41 -> 883.2234358 | BU143: 0.5 | BV143: 1654.738809 | BW143: 138.240502 | BX143: 161.6847976 | BY143: 438.2223913 | BZ143: 3466.651986 | CA143: 2208.05859 | CB143: 220.805859 | CC143: 441.6117179 | CD143: 375
A144: ='B1'!A23 -> Port 12 | B144: ='B1'!B23 -> Nesna | C144: 3681.219152 | D144: 3874.967528 | E144: ='B2'!$K$33 -> 750 | F144: 883.2234358 | G144: 4758.190964 | H144: ='B1'!F23/60 -> 0.08333333333 | I144: ='B1'!D23 -> 0 | J144: 883.2234358 | K144: =J144/'B2'!$C$32 -> 0.1208867795 | L144: =(G144/'B2'!$C$32) -> 0.6512535315 | M144: 0.3674642933 | N144: 12948.71652 | O144: 1081.76412 | P144: 1265.221193 | Q144: =O144*'B2'!$E$41 -> 3429.19226 | R144: ='B2'!$G$41*G144 -> 37351.79907 | S144: ='B2'!$I$41*G144 -> 23790.95482 | T144: ='B2'!$K$41*G144 -> 2379.095482 | U144: =G144*'B2'!$M$41 -> 4758.190964 | V144: ='B1'!H23/60 -> 1.166666667 | W144: 15106.83593 | X144: 1262.05814 | Y144: 1476.091392 | Z144: 4000.724304 | AA144: 43577.09891 | AB144: 27756.11396 | AC144: 2775.611396 | AD144: 5551.222791 | AG144: =AG94/(60*60) -> 0.06666666667 | AH144: =AH137/(1-'B2'!$H$18) -> 1704.545455 | AI144: =AH144*AG144 -> 113.6363636 | AJ144: =AH144+'B2'!$K$33 -> 2454.545455 | AK144: =(AJ144/(1-'B2'!$H$18))/'B2'!$C$32 -> 0.3817654573 | AL144: =$C$169+($D$169*AK144)+($E$169*(AK144^2))+($F$169*(AK144^3))+($G$169*(AK144^4))+($H$169*(AK144^5))+($I$169*(AK144^6)) -> 0.3435387827 | AM144: =AJ144/AL144 -> 7144.886045 | AN144: =AM144/$K$169 -> 596.899419 | AO144: =AN144/0.855 -> 698.1279754 | AP144: =AN144*'B2'!$E$41 -> 1892.171158 | AQ144: ='B2'!$G$41*AJ144 -> 19268.18182 | AR144: ='B2'!$I$41*AJ144 -> 12272.72727 | AS144: ='B2'!$K$41*AJ144 -> 1227.272727 | AT144: =AJ144*'B2'!$M$41 -> 2454.545455 | AU144: =AG144 -> 0.06666666667 | AV144: 476.3257363 | AW144: 39.7932946 | AX144: 46.54186503 | AY144: 126.1447439 | AZ144: 1284.545455 | BA144: 818.1818182 | BB144: 81.81818182 | BC144: 163.6363636 | BF144: Nesna | BG144: ='B1'!D23 -> 0 | BH144: ='B1'!F23 -> 5 | BI144: ='B2'!$K$33 -> 750 | BJ144: 883.2234358 | BK144: 0.1208867795 | BL144: 0.2668769932 | BM144: 3309.477618 | BN144: 276.481004 | BO144: 323.3695953 | BP144: =BN144*'B2'!$E$41 -> 876.4447826 | BQ144: ='B2'!$G$41*BJ144 -> 6933.303971 | BR144: ='B2'!$I$41*BJ144 -> 4416.117179 | BS144: ='B2'!$K$41*BJ144 -> 441.6117179 | BT144: =BJ144*'B2'!$M$41 -> 883.2234358 | BU144: 0.08333333333 | BV144: 275.7898015 | BW144: 23.04008366 | BX144: 26.94746627 | BY144: 73.03706522 | BZ144: 577.7753309 | CA144: 368.0097649 | CB144: 36.80097649 | CC144: 73.60195298 | CD144: 62.5
A145: ='B1'!A24 -> Port 13 | B145: ='B1'!B24 -> Ørnes | C145: 3313.510177 | D145: 3487.905449 | E145: ='B2'!$K$33 -> 750 | F145: 883.2234358 | G145: 4371.128885 | H145: ='B1'!F24/60 -> 0.25 | I145: ='B1'!D24 -> 0 | J145: 883.2234358 | K145: =J145/'B2'!$C$32 -> 0.1208867795 | L145: =(G145/'B2'!$C$32) -> 0.5982763501 | M145: 0.3645309499 | N145: 11991.10497 | O145: 1001.763155 | P145: 1171.652813 | Q145: =O145*'B2'!$E$41 -> 3175.589202 | R145: ='B2'!$G$41*G145 -> 34313.36175 | S145: ='B2'!$I$41*G145 -> 21855.64442 | T145: ='B2'!$K$41*G145 -> 2185.564442 | U145: =G145*'B2'!$M$41 -> 4371.128885 | V145: ='B1'!H24/60 -> 3.75 | W145: 44966.64364 | X145: 3756.611833 | Y145: 4393.69805 | Z145: 11908.45951 | AA145: 128675.1065 | AB145: 81958.66659 | AC145: 8195.866659 | AD145: 16391.73332 | AG145: =AG95/(60*60) -> 0.06666666667 | AH145: =AH138/(1-'B2'!$H$18) -> 1704.545455 | AI145: =AH145*AG145 -> 113.6363636 | AJ145: =AH145+'B2'!$K$33 -> 2454.545455 | AK145: =(AJ145/(1-'B2'!$H$18))/'B2'!$C$32 -> 0.3817654573 | AL145: =$C$169+($D$169*AK145)+($E$169*(AK145^2))+($F$169*(AK145^3))+($G$169*(AK145^4))+($H$169*(AK145^5))+($I$169*(AK145^6)) -> 0.3435387827 | AM145: =AJ145/AL145 -> 7144.886045 | AN145: =AM145/$K$169 -> 596.899419 | AO145: =AN145/0.855 -> 698.1279754 | AP145: =AN145*'B2'!$E$41 -> 1892.171158 | AQ145: ='B2'!$G$41*AJ145 -> 19268.18182 | AR145: ='B2'!$I$41*AJ145 -> 12272.72727 | AS145: ='B2'!$K$41*AJ145 -> 1227.272727 | AT145: =AJ145*'B2'!$M$41 -> 2454.545455 | AU145: =AG145 -> 0.06666666667 | AV145: 476.3257363 | AW145: 39.7932946 | AX145: 46.54186503 | AY145: 126.1447439 | AZ145: 1284.545455 | BA145: 818.1818182 | BB145: 81.81818182 | BC145: 163.6363636 | BF145: Ørnes | BG145: ='B1'!D24 -> 0 | BH145: ='B1'!F24 -> 15 | BI145: ='B2'!$K$33 -> 750 | BJ145: 883.2234358 | BK145: 0.1208867795 | BL145: 0.2668769932 | BM145: 3309.477618 | BN145: 276.481004 | BO145: 323.3695953 | BP145: =BN145*'B2'!$E$41 -> 876.4447826 | BQ145: ='B2'!$G$41*BJ145 -> 6933.303971 | BR145: ='B2'!$I$41*BJ145 -> 4416.117179 | BS145: ='B2'!$K$41*BJ145 -> 441.6117179 | BT145: =BJ145*'B2'!$M$41 -> 883.2234358 | BU145: 0.25 | BV145: 827.3694044 | BW145: 69.12025099 | BX145: 80.84239882 | BY145: 219.1111957 | BZ145: 1733.325993 | CA145: 1104.029295 | CB145: 110.4029295 | CC145: 220.805859 | CD145: 187.5
A146: ='B1'!A25 -> Port 14 | B146: ='B1'!B25 -> Bodø | C146: 2964.342088 | D146: 3120.360092 | E146: ='B2'!$K$33 -> 750 | F146: 883.2234358 | G146: 4003.583528 | H146: ='B1'!F25/60 -> 2.5 | I146: ='B1'!D25 -> 1400 | J146: 0 | K146: =J146/'B2'!$C$32 -> 0 | L146: =(G146/'B2'!$C$32) -> 0.5479704222 | M146: 0.3609793931 | N146: 11090.89218 | O146: 926.5574085 | P146: 1083.692875 | Q146: =O146*'B2'!$E$41 -> 2937.186985 | R146: ='B2'!$G$41*G146 -> 31428.13069 | S146: ='B2'!$I$41*G146 -> 20017.91764 | T146: ='B2'!$K$41*G146 -> 2001.791764 | U146: =G146*'B2'!$M$41 -> 4003.583528 | V146: ='B1'!H25/60 -> 3 | W146: 33272.67654 | X146: 2779.672225 | Y146: 3251.078626 | Z146: 8811.560955 | AA146: 94284.39208 | AB146: 60053.75292 | AC146: 6005.375292 | AD146: 12010.75058 | BF146: Bodø | BG146: ='B1'!D25 -> 1400 | BH146: ='B1'!F25 -> 150 | BI146: ='B2'!$K$33 -> 750 | BJ146: 0 | BK146: 0 | BL146: 0.1667 | BM146: 0 | BN146: 0 | BO146: 0 | BP146: =BN146*'B2'!$E$41 -> 0 | BQ146: ='B2'!$G$41*BJ146 -> 0 | BR146: ='B2'!$I$41*BJ146 -> 0 | BS146: ='B2'!$K$41*BJ146 -> 0 | BT146: =BJ146*'B2'!$M$41 -> 0 | BU146: 2.5 | BV146: 0 | BW146: 0 | BX146: 0 | BY146: 0 | BZ146: 0 | CA146: 0 | CB146: 0 | CC146: 0 | CD146: 1875
A147: ='B1'!A26 -> Port 15 | B147: ='B1'!B26 -> Stamsund | C147: 3402.840264 | D147: 3581.93712 | E147: ='B2'!$K$33 -> 750 | F147: 883.2234358 | G147: 4465.160556 | H147: ='B1'!F26/60 -> 0.5 | I147: ='B1'!D26 -> 0 | J147: 883.2234358 | K147: =J147/'B2'!$C$32 -> 0.1208867795 | L147: =(G147/'B2'!$C$32) -> 0.6111464636 | M147: 0.3653211362 | N147: 12222.56287 | O147: 1021.099655 | P147: 1194.268603 | Q147: =O147*'B2'!$E$41 -> 3236.885907 | R147: ='B2'!$G$41*G147 -> 35051.51036 | S147: ='B2'!$I$41*G147 -> 22325.80278 | T147: ='B2'!$K$41*G147 -> 2232.580278 | U147: =G147*'B2'!$M$41 -> 4465.160556 | V147: ='B1'!H26/60 -> 4 | W147: 48890.25149 | X147: 4084.398621 | Y147: 4777.074411 | Z147: 12947.54363 | AA147: 140206.0415 | AB147: 89303.21112 | AC147: 8930.321112 | AD147: 17860.64222 | AT147: SUM | AU147: =34*(SUM(AU141:AU145)) -> 8.5 | AV147: =34*(SUM(AV141:AV145)) -> 75273.62864 | AW147: =34*(SUM(AW141:AW145)) -> 6288.523696 | AX147: 7354.998475 | AY147: 19934.62012 | AZ147: 209273.8636 | BA147: 133295.4545 | BB147: 13329.54545 | BC147: 26659.09091 | BF147: Stamsund | BG147: ='B1'!D26 -> 0 | BH147: ='B1'!F26 -> 30 | BI147: ='B2'!$K$33 -> 750 | BJ147: 883.2234358 | BK147: 0.1208867795 | BL147: 0.2668769932 | BM147: 3309.477618 | BN147: 276.481004 | BO147: 323.3695953 | BP147: =BN147*'B2'!$E$41 -> 876.4447826 | BQ147: ='B2'!$G$41*BJ147 -> 6933.303971 | BR147: ='B2'!$I$41*BJ147 -> 4416.117179 | BS147: ='B2'!$K$41*BJ147 -> 441.6117179 | BT147: =BJ147*'B2'!$M$41 -> 883.2234358 | BU147: 0.5 | BV147: 1654.738809 | BW147: 138.240502 | BX147: 161.6847976 | BY147: 438.2223913 | BZ147: 3466.651986 | CA147: 2208.05859 | CB147: 220.805859 | CC147: 441.6117179 | CD147: 375
A148: ='B1'!A27 -> Port 16 | B148: ='B1'!B27 -> Svolvær | C148: 3758.677161 | D148: 3956.502275 | E148: ='B2'!$K$33 -> 750 | F148: 883.2234358 | G148: 4839.72571 | H148: ='B1'!F27/60 -> 1 | I148: ='B1'!D27 -> 0 | J148: 883.2234358 | K148: =J148/'B2'!$C$32 -> 0.1208867795 | L148: =(G148/'B2'!$C$32) -> 0.6624131911 | M148: 0.3679730372 | N148: 13152.39222 | O148: 1098.779634 | P148: 1285.122379 | Q148: =O148*'B2'!$E$41 -> 3483.131439 | R148: ='B2'!$G$41*G148 -> 37991.84683 | S148: ='B2'!$I$41*G148 -> 24198.62855 | T148: ='B2'!$K$41*G148 -> 2419.862855 | U148: =G148*'B2'!$M$41 -> 4839.72571 | V148: ='B1'!H27/60 -> 1.5 | W148: 19728.58833 | X148: 1648.169451 | Y148: 1927.683568 | Z148: 5224.697159 | AA148: 56987.77024 | AB148: 36297.94283 | AC148: 3629.794283 | AD148: 7259.588566 | BF148: Svolvær | BG148: ='B1'!D27 -> 0 | BH148: ='B1'!F27 -> 60 | BI148: ='B2'!$K$33 -> 750 | BJ148: 883.2234358 | BK148: 0.1208867795 | BL148: 0.2668769932 | BM148: 3309.477618 | BN148: 276.481004 | BO148: 323.3695953 | BP148: =BN148*'B2'!$E$41 -> 876.4447826 | BQ148: ='B2'!$G$41*BJ148 -> 6933.303971 | BR148: ='B2'!$I$41*BJ148 -> 4416.117179 | BS148: ='B2'!$K$41*BJ148 -> 441.6117179 | BT148: =BJ148*'B2'!$M$41 -> 883.2234358 | BU148: 1 | BV148: 3309.477618 | BW148: 276.481004 | BX148: 323.3695953 | BY148: 876.4447826 | BZ148: 6933.303971 | CA148: 4416.117179 | CB148: 441.6117179 | CC148: 883.2234358 | CD148: 750
A149: ='B1'!A28 -> Port 17 | B149: ='B1'!B28 -> Stokmarknes | C149: 2111.31442 | D149: 2222.436232 | E149: ='B2'!$K$33 -> 750 | F149: 883.2234358 | G149: 3105.659668 | H149: ='B1'!F28/60 -> 0.25 | I149: ='B1'!D28 -> 0 | J149: 883.2234358 | K149: =J149/'B2'!$C$32 -> 0.1208867795 | L149: =(G149/'B2'!$C$32) -> 0.4250715958 | M149: 0.3490962246 | N149: 8896.285461 | O149: 743.2151597 | P149: 869.2574967 | Q149: =O149*'B2'!$E$41 -> 2355.992056 | R149: ='B2'!$G$41*G149 -> 24379.42839 | S149: ='B2'!$I$41*G149 -> 15528.29834 | T149: ='B2'!$K$41*G149 -> 1552.829834 | U149: =G149*'B2'!$M$41 -> 3105.659668 | V149: ='B1'!H28/60 -> 3 | W149: 26688.85638 | X149: 2229.645479 | Y149: 2607.77249 | Z149: 7067.976168 | AA149: 73138.28518 | AB149: 46584.89502 | AC149: 4658.489502 | AD149: 9316.979004 | BF149: Stokmarknes | BG149: ='B1'!D28 -> 0 | BH149: ='B1'!F28 -> 15 | BI149: ='B2'!$K$33 -> 750 | BJ149: 883.2234358 | BK149: 0.1208867795 | BL149: 0.2668769932 | BM149: 3309.477618 | BN149: 276.481004 | BO149: 323.3695953 | BP149: =BN149*'B2'!$E$41 -> 876.4447826 | BQ149: ='B2'!$G$41*BJ149 -> 6933.303971 | BR149: ='B2'!$I$41*BJ149 -> 4416.117179 | BS149: ='B2'!$K$41*BJ149 -> 441.6117179 | BT149: =BJ149*'B2'!$M$41 -> 883.2234358 | BU149: 0.25 | BV149: 827.3694044 | BW149: 69.12025099 | BX149: 80.84239882 | BY149: 219.1111957 | BZ149: 1733.325993 | CA149: 1104.029295 | CB149: 110.4029295 | CC149: 220.805859 | CD149: 187.5
A150: ='B1'!A29 -> Port 18 | B150: ='B1'!B29 -> Sortland | C150: 1451.76376 | D150: 1528.172379 | E150: ='B2'!$K$33 -> 750 | F150: 883.2234358 | G150: 2411.395815 | H150: ='B1'!F29/60 -> 0.25 | I150: ='B1'!D29 -> 0 | J150: 883.2234358 | K150: =J150/'B2'!$C$32 -> 0.1208867795 | L150: =(G150/'B2'!$C$32) -> 0.3300477119 | M150: 0.3354636625 | N150: 7188.247445 | O150: 600.5219252 | P150: 702.3648249 | Q150: =O150*'B2'!$E$41 -> 1903.654503 | R150: ='B2'!$G$41*G150 -> 18929.45715 | S150: ='B2'!$I$41*G150 -> 12056.97908 | T150: ='B2'!$K$41*G150 -> 1205.697908 | U150: =G150*'B2'!$M$41 -> 2411.395815 | V150: ='B1'!H29/60 -> 1.5 | W150: 10782.37117 | X150: 900.7828879 | Y150: 1053.547237 | Z150: 2855.481755 | AA150: 28394.18572 | AB150: 18085.46861 | AC150: 1808.546861 | AD150: 3617.093723 | BF150: Sortland | BG150: ='B1'!D29 -> 0 | BH150: ='B1'!F29 -> 15 | BI150: ='B2'!$K$33 -> 750 | BJ150: 883.2234358 | BK150: 0.1208867795 | BL150: 0.2668769932 | BM150: 3309.477618 | BN150: 276.481004 | BO150: 323.3695953 | BP150: =BN150*'B2'!$E$41 -> 876.4447826 | BQ150: ='B2'!$G$41*BJ150 -> 6933.303971 | BR150: ='B2'!$I$41*BJ150 -> 4416.117179 | BS150: ='B2'!$K$41*BJ150 -> 441.6117179 | BT150: =BJ150*'B2'!$M$41 -> 883.2234358 | BU150: 0.25 | BV150: 827.3694044 | BW150: 69.12025099 | BX150: 80.84239882 | BY150: 219.1111957 | BZ150: 1733.325993 | CA150: 1104.029295 | CB150: 110.4029295 | CC150: 220.805859 | CD150: 187.5
A151: ='B1'!A30 -> Port 19 | B151: ='B1'!B30 -> Risøyhamn | C151: 4088.432391 | D151: 4303.613043 | E151: ='B2'!$K$33 -> 750 | F151: 883.2234358 | G151: 5186.836479 | H151: ='B1'!F30/60 -> 0.25 | I151: ='B1'!D30 -> 0 | J151: 883.2234358 | K151: =J151/'B2'!$C$32 -> 0.1208867795 | L151: =(G151/'B2'!$C$32) -> 0.7099222373 | M151: 0.369707127 | N151: 14029.58207 | O151: 1172.061994 | P151: 1370.832742 | Q151: =O151*'B2'!$E$41 -> 3715.436521 | R151: ='B2'!$G$41*G151 -> 40716.66636 | S151: ='B2'!$I$41*G151 -> 25934.1824 | T151: ='B2'!$K$41*G151 -> 2593.41824 | U151: =G151*'B2'!$M$41 -> 5186.836479 | V151: ='B1'!H30/60 -> 1.25 | W151: 17536.97759 | X151: 1465.077493 | Y151: 1713.540927 | Z151: 4644.295652 | AA151: 50895.83295 | AB151: 32417.728 | AC151: 3241.7728 | AD151: 6483.545599 | AV151: Overall SUM | BF151: Risøyhamn | BG151: ='B1'!D30 -> 0 | BH151: ='B1'!F30 -> 15 | BI151: ='B2'!$K$33 -> 750 | BJ151: 883.2234358 | BK151: 0.1208867795 | BL151: 0.2668769932 | BM151: 3309.477618 | BN151: 276.481004 | BO151: 323.3695953 | BP151: =BN151*'B2'!$E$41 -> 876.4447826 | BQ151: ='B2'!$G$41*BJ151 -> 6933.303971 | BR151: ='B2'!$I$41*BJ151 -> 4416.117179 | BS151: ='B2'!$K$41*BJ151 -> 441.6117179 | BT151: =BJ151*'B2'!$M$41 -> 883.2234358 | BU151: 0.25 | BV151: 827.3694044 | BW151: 69.12025099 | BX151: 80.84239882 | BY151: 219.1111957 | BZ151: 1733.325993 | CA151: 1104.029295 | CB151: 110.4029295 | CC151: 220.805859 | CD151: 187.5
A152: ='B1'!A31 -> Port 20 | B152: ='B1'!B31 -> Harstad | C152: 2413.91936 | D152: 2540.967748 | E152: ='B2'!$K$33 -> 750 | F152: 883.2234358 | G152: 3424.191183 | H152: ='B1'!F31/60 -> 1 | I152: ='B1'!D31 -> 0 | J152: 883.2234358 | K152: =J152/'B2'!$C$32 -> 0.1208867795 | L152: =(G152/'B2'!$C$32) -> 0.468669 | M152: 0.3538805414 | N152: 9676.121693 | O152: 808.3643854 | P152: 945.4554215 | Q152: =O152*'B2'!$E$41 -> 2562.515102 | R152: ='B2'!$G$41*G152 -> 26879.90079 | S152: ='B2'!$I$41*G152 -> 17120.95592 | T152: ='B2'!$K$41*G152 -> 1712.095592 | U152: =G152*'B2'!$M$41 -> 3424.191183 | V152: ='B1'!H31/60 -> 2.25 | W152: 21771.27381 | X152: 1818.819867 | Y152: 2127.274698 | Z152: 5765.658979 | AA152: 60479.77678 | AB152: 38522.15081 | AC152: 3852.215081 | AD152: 7704.430163 | AU152: =AU140 -> Hours | AV152: =AV140 -> kWh | AW152: kg | AX152: liters | AY152: CO2, kg | AZ152: Nox, g | BA152: CO, g | BB152: PM, g | BC152: SO, g | BF152: Harstad | BG152: ='B1'!D31 -> 0 | BH152: ='B1'!F31 -> 60 | BI152: ='B2'!$K$33 -> 750 | BJ152: 883.2234358 | BK152: 0.1208867795 | BL152: 0.2668769932 | BM152: 3309.477618 | BN152: 276.481004 | BO152: 323.3695953 | BP152: =BN152*'B2'!$E$41 -> 876.4447826 | BQ152: ='B2'!$G$41*BJ152 -> 6933.303971 | BR152: ='B2'!$I$41*BJ152 -> 4416.117179 | BS152: ='B2'!$K$41*BJ152 -> 441.6117179 | BT152: =BJ152*'B2'!$M$41 -> 883.2234358 | BU152: 1 | BV152: 3309.477618 | BW152: 276.481004 | BX152: 323.3695953 | BY152: 876.4447826 | BZ152: 6933.303971 | CA152: 4416.117179 | CB152: 441.6117179 | CC152: 883.2234358 | CD152: 750
A153: ='B1'!A32 -> Port 21 | B153: ='B1'!B32 -> Finnsnes | C153: 3326.94331 | D153: 3502.045589 | E153: ='B2'!$K$33 -> 750 | F153: 883.2234358 | G153: 4385.269025 | H153: ='B1'!F32/60 -> 0.5 | I153: ='B1'!D32 -> 0 | J153: 883.2234358 | K153: =J153/'B2'!$C$32 -> 0.1208867795 | L153: =(G153/'B2'!$C$32) -> 0.6002117109 | M153: 0.3646529028 | N153: 12025.8717 | O153: 1004.667644 | P153: 1175.049876 | Q153: =O153*'B2'!$E$41 -> 3184.796432 | R153: ='B2'!$G$41*G153 -> 34424.36185 | S153: ='B2'!$I$41*G153 -> 21926.34512 | T153: ='B2'!$K$41*G153 -> 2192.634512 | U153: =G153*'B2'!$M$41 -> 4385.269025 | V153: ='B1'!H32/60 -> 3.25 | W153: 39084.08303 | X153: 3265.169844 | Y153: 3818.912098 | Z153: 10350.58841 | AA153: 111879.176 | AB153: 71260.62165 | AC153: 7126.062165 | AD153: 14252.12433 | AU153: =V168+AU147+BU168 -> 150.5 | AV153: 1302258.299 | AW153: 108793.5087 | AX153: 127243.8698 | AY153: 344875.4226 | AZ153: 3661643.137 | BA153: 2332256.775 | BB153: 233225.6775 | BC153: 466451.355 | BF153: Finnsnes | BG153: ='B1'!D32 -> 0 | BH153: ='B1'!F32 -> 30 | BI153: ='B2'!$K$33 -> 750 | BJ153: 883.2234358 | BK153: 0.1208867795 | BL153: 0.2668769932 | BM153: 3309.477618 | BN153: 276.481004 | BO153: 323.3695953 | BP153: =BN153*'B2'!$E$41 -> 876.4447826 | BQ153: ='B2'!$G$41*BJ153 -> 6933.303971 | BR153: ='B2'!$I$41*BJ153 -> 4416.117179 | BS153: ='B2'!$K$41*BJ153 -> 441.6117179 | BT153: =BJ153*'B2'!$M$41 -> 883.2234358 | BU153: 0.5 | BV153: 1654.738809 | BW153: 138.240502 | BX153: 161.6847976 | BY153: 438.2223913 | BZ153: 3466.651986 | CA153: 2208.05859 | CB153: 220.805859 | CC153: 441.6117179 | CD153: 375
A154: ='B1'!A33 -> Port 22 | B154: ='B1'!B33 -> Tromsø | C154: 3345.810618 | D154: 3521.905914 | E154: ='B2'!$K$33 -> 750 | F154: 883.2234358 | G154: 4405.12935 | H154: ='B1'!F33/60 -> 4.25 | I154: ='B1'!D33 -> 1400 | J154: 0 | K154: =J154/'B2'!$C$32 -> 0 | L154: =(G154/'B2'!$C$32) -> 0.6029299932 | M154: 0.3648223255 | N154: 12074.72526 | O154: 1008.748978 | P154: 1179.823366 | Q154: =O154*'B2'!$E$41 -> 3197.734259 | R154: ='B2'!$G$41*G154 -> 34580.26539 | S154: ='B2'!$I$41*G154 -> 22025.64675 | T154: ='B2'!$K$41*G154 -> 2202.564675 | U154: =G154*'B2'!$M$41 -> 4405.12935 | V154: ='B1'!H33/60 -> 2.75 | W154: 33205.49447 | X154: 2774.059688 | Y154: 3244.514255 | Z154: 8793.769211 | AA154: 95095.72984 | AB154: 60570.52856 | AC154: 6057.052856 | AD154: 12114.10571 | BF154: Tromsø | BG154: ='B1'!D33 -> 1400 | BH154: ='B1'!F33 -> 255 | BI154: ='B2'!$K$33 -> 750 | BJ154: 0 | BK154: 0 | BL154: 0.1667 | BM154: 0 | BN154: 0 | BO154: 0 | BP154: =BN154*'B2'!$E$41 -> 0 | BQ154: ='B2'!$G$41*BJ154 -> 0 | BR154: ='B2'!$I$41*BJ154 -> 0 | BS154: ='B2'!$K$41*BJ154 -> 0 | BT154: =BJ154*'B2'!$M$41 -> 0 | BU154: 4.25 | BV154: 0 | BW154: 0 | BX154: 0 | BY154: 0 | BZ154: 0 | CA154: 0 | CB154: 0 | CC154: 0 | CD154: 3187.5
A155: ='B1'!A34 -> Port 23 | B155: ='B1'!B34 -> Skjervøy | C155: 3034.639796 | D155: 3194.35768 | E155: ='B2'!$K$33 -> 750 | F155: 883.2234358 | G155: 4077.581116 | H155: ='B1'!F34/60 -> 0.25 | I155: ='B1'!D34 -> 0 | J155: 883.2234358 | K155: =J155/'B2'!$C$32 -> 0.1208867795 | L155: =(G155/'B2'!$C$32) -> 0.558098471 | M155: 0.3617530033 | N155: 11271.72706 | O155: 941.66475 | P155: 1101.362281 | Q155: =O155*'B2'!$E$41 -> 2985.077258 | R155: ='B2'!$G$41*G155 -> 32009.01176 | S155: ='B2'!$I$41*G155 -> 20387.90558 | T155: ='B2'!$K$41*G155 -> 2038.790558 | U155: =G155*'B2'!$M$41 -> 4077.581116 | V155: ='B1'!H34/60 -> 4 | W155: 45086.90823 | X155: 3766.659 | Y155: 4405.449123 | Z155: 11940.30903 | AA155: 128036.047 | AB155: 81551.62232 | AC155: 8155.162232 | AD155: 16310.32446 | BF155: Skjervøy | BG155: ='B1'!D34 -> 0 | BH155: ='B1'!F34 -> 15 | BI155: ='B2'!$K$33 -> 750 | BJ155: 883.2234358 | BK155: 0.1208867795 | BL155: 0.2668769932 | BM155: 3309.477618 | BN155: 276.481004 | BO155: 323.3695953 | BP155: =BN155*'B2'!$E$41 -> 876.4447826 | BQ155: ='B2'!$G$41*BJ155 -> 6933.303971 | BR155: ='B2'!$I$41*BJ155 -> 4416.117179 | BS155: ='B2'!$K$41*BJ155 -> 441.6117179 | BT155: =BJ155*'B2'!$M$41 -> 883.2234358 | BU155: 0.25 | BV155: 827.3694044 | BW155: 69.12025099 | BX155: 80.84239882 | BY155: 219.1111957 | BZ155: 1733.325993 | CA155: 1104.029295 | CB155: 110.4029295 | CC155: 220.805859 | CD155: 187.5
A156: ='B1'!A35 -> Port 24 | B156: ='B1'!B35 -> Øksfjord | C156: 3567.935703 | D156: 3755.721792 | E156: ='B2'!$K$33 -> 750 | F156: 883.2234358 | G156: 4638.945228 | H156: ='B1'!F35/60 -> 0.25 | I156: ='B1'!D35 -> 0 | J156: 883.2234358 | K156: =J156/'B2'!$C$32 -> 0.1208867795 | L156: =(G156/'B2'!$C$32) -> 0.6349323693 | M156: 0.3666511687 | N156: 12652.20358 | O156: 1056.99278 | P156: 1236.248866 | Q156: =O156*'B2'!$E$41 -> 3350.667113 | R156: ='B2'!$G$41*G156 -> 36415.72004 | S156: ='B2'!$I$41*G156 -> 23194.72614 | T156: ='B2'!$K$41*G156 -> 2319.472614 | U156: =G156*'B2'!$M$41 -> 4638.945228 | V156: ='B1'!H35/60 -> 3.25 | W156: 41119.66163 | X156: 3435.226536 | Y156: 4017.808813 | Z156: 10889.66812 | AA156: 118351.0901 | AB156: 75382.85996 | AC156: 7538.285996 | AD156: 15076.57199 | BF156: Øksfjord | BG156: ='B1'!D35 -> 0 | BH156: ='B1'!F35 -> 15 | BI156: ='B2'!$K$33 -> 750 | BJ156: 883.2234358 | BK156: 0.1208867795 | BL156: 0.2668769932 | BM156: 3309.477618 | BN156: 276.481004 | BO156: 323.3695953 | BP156: =BN156*'B2'!$E$41 -> 876.4447826 | BQ156: ='B2'!$G$41*BJ156 -> 6933.303971 | BR156: ='B2'!$I$41*BJ156 -> 4416.117179 | BS156: ='B2'!$K$41*BJ156 -> 441.6117179 | BT156: =BJ156*'B2'!$M$41 -> 883.2234358 | BU156: 0.25 | BV156: 827.3694044 | BW156: 69.12025099 | BX156: 80.84239882 | BY156: 219.1111957 | BZ156: 1733.325993 | CA156: 1104.029295 | CB156: 110.4029295 | CC156: 220.805859 | CD156: 187.5
A157: ='B1'!A36 -> Port 25 | B157: ='B1'!B36 -> Hammerfest | C157: 3465.789479 | D157: 3648.199452 | E157: ='B2'!$K$33 -> 750 | F157: 883.2234358 | G157: 4531.422887 | H157: ='B1'!F36/60 -> 0.75 | I157: ='B1'!D36 -> 0 | J157: 883.2234358 | K157: =J157/'B2'!$C$32 -> 0.1208867795 | L157: =(G157/'B2'!$C$32) -> 0.620215788 | M157: 0.3658483627 | N157: 12386.06852 | O157: 1034.759275 | P157: 1210.244766 | Q157: =O157*'B2'!$E$41 -> 3280.1869 | R157: ='B2'!$G$41*G157 -> 35571.66967 | S157: ='B2'!$I$41*G157 -> 22657.11444 | T157: ='B2'!$K$41*G157 -> 2265.711444 | U157: =G157*'B2'!$M$41 -> 4531.422887 | V157: ='B1'!H36/60 -> 3 | W157: 37158.20555 | X157: 3104.277824 | Y157: 3630.734297 | Z157: 9840.560701 | AA157: 106715.009 | AB157: 67971.34331 | AC157: 6797.134331 | AD157: 13594.26866 | BF157: Hammerfest | BG157: ='B1'!D36 -> 0 | BH157: ='B1'!F36 -> 45 | BI157: ='B2'!$K$33 -> 750 | BJ157: 883.2234358 | BK157: 0.1208867795 | BL157: 0.2668769932 | BM157: 3309.477618 | BN157: 276.481004 | BO157: 323.3695953 | BP157: =BN157*'B2'!$E$41 -> 876.4447826 | BQ157: ='B2'!$G$41*BJ157 -> 6933.303971 | BR157: ='B2'!$I$41*BJ157 -> 4416.117179 | BS157: ='B2'!$K$41*BJ157 -> 441.6117179 | BT157: =BJ157*'B2'!$M$41 -> 883.2234358 | BU157: 0.75 | BV157: 2482.108213 | BW157: 207.360753 | BX157: 242.5271965 | BY157: 657.333587 | BZ157: 5199.977978 | CA157: 3312.087884 | CB157: 331.2087884 | CC157: 662.4175769 | CD157: 562.5
A158: ='B1'!A37 -> Port 26 | B158: ='B1'!B37 -> Havøysund | C158: 3345.810618 | D158: 3521.905914 | E158: ='B2'!$K$33 -> 750 | F158: 883.2234358 | G158: 4405.12935 | H158: ='B1'!F37/60 -> 0.5 | I158: ='B1'!D37 -> 0 | J158: 883.2234358 | K158: =J158/'B2'!$C$32 -> 0.1208867795 | L158: =(G158/'B2'!$C$32) -> 0.6029299932 | M158: 0.3648223255 | N158: 12074.72526 | O158: 1008.748978 | P158: 1179.823366 | Q158: =O158*'B2'!$E$41 -> 3197.734259 | R158: ='B2'!$G$41*G158 -> 34580.26539 | S158: ='B2'!$I$41*G158 -> 22025.64675 | T158: ='B2'!$K$41*G158 -> 2202.564675 | U158: =G158*'B2'!$M$41 -> 4405.12935 | V158: ='B1'!H37/60 -> 2.75 | W158: 33205.49447 | X158: 2774.059688 | Y158: 3244.514255 | Z158: 8793.769211 | AA158: 95095.72984 | AB158: 60570.52856 | AC158: 6057.052856 | AD158: 12114.10571 | BF158: Havøysund | BG158: ='B1'!D37 -> 0 | BH158: ='B1'!F37 -> 30 | BI158: ='B2'!$K$33 -> 750 | BJ158: 883.2234358 | BK158: 0.1208867795 | BL158: 0.2668769932 | BM158: 3309.477618 | BN158: 276.481004 | BO158: 323.3695953 | BP158: =BN158*'B2'!$E$41 -> 876.4447826 | BQ158: ='B2'!$G$41*BJ158 -> 6933.303971 | BR158: ='B2'!$I$41*BJ158 -> 4416.117179 | BS158: ='B2'!$K$41*BJ158 -> 441.6117179 | BT158: =BJ158*'B2'!$M$41 -> 883.2234358 | BU158: 0.5 | BV158: 1654.738809 | BW158: 138.240502 | BX158: 161.6847976 | BY158: 438.2223913 | BZ158: 3466.651986 | CA158: 2208.05859 | CB158: 220.805859 | CC158: 441.6117179 | CD158: 375
A159: ='B1'!A38 -> Port 27 | B159: ='B1'!B38 -> Honningsvåg | C159: 4045.844898 | D159: 4258.784103 | E159: ='B2'!$K$33 -> 750 | F159: 883.2234358 | G159: 5142.007539 | H159: ='B1'!F38/60 -> 3.5 | I159: ='B1'!D38 -> 1400 | J159: 0 | K159: =J159/'B2'!$C$32 -> 0 | L159: =(G159/'B2'!$C$32) -> 0.7037865008 | M159: 0.3695222777 | N159: 13915.28427 | O159: 1162.513306 | P159: 1359.664685 | Q159: =O159*'B2'!$E$41 -> 3685.16718 | R159: ='B2'!$G$41*G159 -> 40364.75918 | S159: ='B2'!$I$41*G159 -> 25710.03769 | T159: ='B2'!$K$41*G159 -> 2571.003769 | U159: =G159*'B2'!$M$41 -> 5142.007539 | V159: ='B1'!H38/60 -> 2 | W159: 27830.56855 | X159: 2325.026612 | Y159: 2719.329371 | Z159: 7370.33436 | AA159: 80729.51836 | AB159: 51420.07539 | AC159: 5142.007539 | AD159: 10284.01508 | BF159: Honningsvåg | BG159: ='B1'!D38 -> 1400 | BH159: ='B1'!F38 -> 210 | BI159: ='B2'!$K$33 -> 750 | BJ159: 0 | BK159: 0 | BL159: 0.1667 | BM159: 0 | BN159: 0 | BO159: 0 | BP159: =BN159*'B2'!$E$41 -> 0 | BQ159: ='B2'!$G$41*BJ159 -> 0 | BR159: ='B2'!$I$41*BJ159 -> 0 | BS159: ='B2'!$K$41*BJ159 -> 0 | BT159: =BJ159*'B2'!$M$41 -> 0 | BU159: 3.5 | BV159: 0 | BW159: 0 | BX159: 0 | BY159: 0 | BZ159: 0 | CA159: 0 | CB159: 0 | CC159: 0 | CD159: 2625
A160: ='B1'!A39 -> Port 28 | B160: ='B1'!B39 -> Kjøllefjord | C160: 3030.213973 | D160: 3189.698919 | E160: ='B2'!$K$33 -> 750 | F160: 883.2234358 | G160: 4072.922355 | H160: ='B1'!F39/60 -> 0.25 | I160: ='B1'!D39 -> 0 | J160: 883.2234358 | K160: =J160/'B2'!$C$32 -> 0.1208867795 | L160: =(G160/'B2'!$C$32) -> 0.5574608264 | M160: 0.3617051648 | N160: 11260.33784 | O160: 940.7132699 | P160: 1100.249438 | Q160: =O160*'B2'!$E$41 -> 2982.061066 | R160: ='B2'!$G$41*G160 -> 31972.44049 | S160: ='B2'!$I$41*G160 -> 20364.61177 | T160: ='B2'!$K$41*G160 -> 2036.461177 | U160: =G160*'B2'!$M$41 -> 4072.922355 | V160: ='B1'!H39/60 -> 2.25 | W160: 25335.76014 | X160: 2116.604857 | Y160: 2475.561237 | Z160: 6709.637397 | AA160: 71937.99109 | AB160: 45820.37649 | AC160: 4582.037649 | AD160: 9164.075298 | BF160: Kjøllefjord | BG160: ='B1'!D39 -> 0 | BH160: ='B1'!F39 -> 15 | BI160: ='B2'!$K$33 -> 750 | BJ160: 883.2234358 | BK160: 0.1208867795 | BL160: 0.2668769932 | BM160: 3309.477618 | BN160: 276.481004 | BO160: 323.3695953 | BP160: =BN160*'B2'!$E$41 -> 876.4447826 | BQ160: ='B2'!$G$41*BJ160 -> 6933.303971 | BR160: ='B2'!$I$41*BJ160 -> 4416.117179 | BS160: ='B2'!$K$41*BJ160 -> 441.6117179 | BT160: =BJ160*'B2'!$M$41 -> 883.2234358 | BU160: 0.25 | BV160: 827.3694044 | BW160: 69.12025099 | BX160: 80.84239882 | BY160: 219.1111957 | BZ160: 1733.325993 | CA160: 1104.029295 | CB160: 110.4029295 | CC160: 220.805859 | CD160: 187.5
A161: ='B1'!A40 -> Port 29 | B161: ='B1'!B40 -> Mehamn | C161: 3194.23547 | D161: 3362.353127 | E161: ='B2'!$K$33 -> 750 | F161: 883.2234358 | G161: 4245.576562 | H161: ='B1'!F40/60 -> 0.25 | I161: ='B1'!D40 -> 0 | J161: 883.2234358 | K161: =J161/'B2'!$C$32 -> 0.1208867795 | L161: =(G161/'B2'!$C$32) -> 0.5810920055 | M161: 0.3634000144 | N161: 11682.92899 | O161: 976.0174594 | P161: 1141.540888 | Q161: =O161*'B2'!$E$41 -> 3093.975346 | R161: ='B2'!$G$41*G161 -> 33327.77602 | S161: ='B2'!$I$41*G161 -> 21227.88281 | T161: ='B2'!$K$41*G161 -> 2122.788281 | U161: =G161*'B2'!$M$41 -> 4245.576562 | V161: ='B1'!H40/60 -> 2 | W161: 23365.85798 | X161: 1952.034919 | Y161: 2283.081776 | Z161: 6187.950693 | AA161: 66655.55203 | AB161: 42455.76562 | AC161: 4245.576562 | AD161: 8491.153125 | BF161: Mehamn | BG161: ='B1'!D40 -> 0 | BH161: ='B1'!F40 -> 15 | BI161: ='B2'!$K$33 -> 750 | BJ161: 883.2234358 | BK161: 0.1208867795 | BL161: 0.2668769932 | BM161: 3309.477618 | BN161: 276.481004 | BO161: 323.3695953 | BP161: =BN161*'B2'!$E$41 -> 876.4447826 | BQ161: ='B2'!$G$41*BJ161 -> 6933.303971 | BR161: ='B2'!$I$41*BJ161 -> 4416.117179 | BS161: ='B2'!$K$41*BJ161 -> 441.6117179 | BT161: =BJ161*'B2'!$M$41 -> 883.2234358 | BU161: 0.25 | BV161: 827.3694044 | BW161: 69.12025099 | BX161: 80.84239882 | BY161: 219.1111957 | BZ161: 1733.325993 | CA161: 1104.029295 | CB161: 110.4029295 | CC161: 220.805859 | CD161: 187.5
A162: ='B1'!A41 -> Port 30 | B162: ='B1'!B41 -> Berlevåg | C162: 4211.524858 | D162: 4433.184061 | E162: ='B2'!$K$33 -> 750 | F162: 883.2234358 | G162: 5316.407497 | H162: ='B1'!F41/60 -> 0.25 | I162: ='B1'!D41 -> 0 | J162: 883.2234358 | K162: =J162/'B2'!$C$32 -> 0.1208867795 | L162: =(G162/'B2'!$C$32) -> 0.7276566207 | M162: 0.3701777574 | N162: 14361.76915 | O162: 1199.81363 | P162: 1403.290795 | Q162: =O162*'B2'!$E$41 -> 3803.409207 | R162: ='B2'!$G$41*G162 -> 41733.79885 | S162: ='B2'!$I$41*G162 -> 26582.03748 | T162: ='B2'!$K$41*G162 -> 2658.203748 | U162: =G162*'B2'!$M$41 -> 5316.407497 | V162: ='B1'!H41/60 -> 2.5 | W162: 35904.42288 | X162: 2999.534075 | Y162: 3508.226988 | Z162: 9508.523018 | AA162: 104334.4971 | AB162: 66455.09371 | AC162: 6645.509371 | AD162: 13291.01874 | BF162: Berlevåg | BG162: ='B1'!D41 -> 0 | BH162: ='B1'!F41 -> 15 | BI162: ='B2'!$K$33 -> 750 | BJ162: 883.2234358 | BK162: 0.1208867795 | BL162: 0.2668769932 | BM162: 3309.477618 | BN162: 276.481004 | BO162: 323.3695953 | BP162: =BN162*'B2'!$E$41 -> 876.4447826 | BQ162: ='B2'!$G$41*BJ162 -> 6933.303971 | BR162: ='B2'!$I$41*BJ162 -> 4416.117179 | BS162: ='B2'!$K$41*BJ162 -> 441.6117179 | BT162: =BJ162*'B2'!$M$41 -> 883.2234358 | BU162: 0.25 | BV162: 827.3694044 | BW162: 69.12025099 | BX162: 80.84239882 | BY162: 219.1111957 | BZ162: 1733.325993 | CA162: 1104.029295 | CB162: 110.4029295 | CC162: 220.805859 | CD162: 187.5
A163: ='B1'!A42 -> Port 31 | B163: ='B1'!B42 -> Båtsfjord | C163: 4872.330114 | D163: 5128.768541 | E163: ='B2'!$K$33 -> 750 | F163: 883.2234358 | G163: 6011.991976 | H163: ='B1'!F42/60 -> 0.5 | I163: ='B1'!D42 -> 0 | J163: 883.2234358 | K163: =J163/'B2'!$C$32 -> 0.1208867795 | L163: =(G163/'B2'!$C$32) -> 0.8228612588 | M163: 0.3713172512 | N163: 16190.98481 | O163: 1352.63031 | P163: 1582.023755 | Q163: =O163*'B2'!$E$41 -> 4287.838084 | R163: ='B2'!$G$41*G163 -> 47194.13702 | S163: ='B2'!$I$41*G163 -> 30059.95988 | T163: ='B2'!$K$41*G163 -> 3005.995988 | U163: =G163*'B2'!$M$41 -> 6011.991976 | V163: ='B1'!H42/60 -> 1.5 | W163: 24286.47722 | X163: 2028.945466 | Y163: 2373.035632 | Z163: 6431.757126 | AA163: 70791.20552 | AB163: 45089.93982 | AC163: 4508.993982 | AD163: 9017.987965 | BF163: =B163 -> Båtsfjord | BG163: ='B1'!D42 -> 0 | BH163: ='B1'!F42 -> 30 | BI163: ='B2'!$K$33 -> 750 | BJ163: 883.2234358 | BK163: 0.1208867795 | BL163: 0.2668769932 | BM163: 3309.477618 | BN163: 276.481004 | BO163: 323.3695953 | BP163: =BN163*'B2'!$E$41 -> 876.4447826 | BQ163: ='B2'!$G$41*BJ163 -> 6933.303971 | BR163: ='B2'!$I$41*BJ163 -> 4416.117179 | BS163: ='B2'!$K$41*BJ163 -> 441.6117179 | BT163: =BJ163*'B2'!$M$41 -> 883.2234358 | BU163: 0.5 | BV163: 1654.738809 | BW163: 138.240502 | BX163: 161.6847976 | BY163: 438.2223913 | BZ163: 3466.651986 | CA163: 2208.05859 | CB163: 220.805859 | CC163: 441.6117179 | CD163: 375
A164: ='B1'!A43 -> Port 32 | B164: ='B1'!B43 -> Vardø | C164: 2964.342088 | D164: 3120.360092 | E164: ='B2'!$K$33 -> 750 | F164: 883.2234358 | G164: 4003.583528 | H164: ='B1'!F43/60 -> 0.25 | I164: ='B1'!D43 -> 0 | J164: 883.2234358 | K164: =J164/'B2'!$C$32 -> 0.1208867795 | L164: =(G164/'B2'!$C$32) -> 0.5479704222 | M164: 0.3609793931 | N164: 11090.89218 | O164: 926.5574085 | P164: 1083.692875 | Q164: =O164*'B2'!$E$41 -> 2937.186985 | R164: ='B2'!$G$41*G164 -> 31428.13069 | S164: ='B2'!$I$41*G164 -> 20017.91764 | T164: ='B2'!$K$41*G164 -> 2001.791764 | U164: =G164*'B2'!$M$41 -> 4003.583528 | V164: ='B1'!H43/60 -> 3 | W164: 33272.67654 | X164: 2779.672225 | Y164: 3251.078626 | Z164: 8811.560955 | AA164: 94284.39208 | AB164: 60053.75292 | AC164: 6005.375292 | AD164: 12010.75058 | BF164: =B164 -> Vardø | BG164: ='B1'!D43 -> 0 | BH164: ='B1'!F43 -> 15 | BI164: ='B2'!$K$33 -> 750 | BJ164: 883.2234358 | BK164: 0.1208867795 | BL164: 0.2668769932 | BM164: 3309.477618 | BN164: 276.481004 | BO164: 323.3695953 | BP164: =BN164*'B2'!$E$41 -> 876.4447826 | BQ164: ='B2'!$G$41*BJ164 -> 6933.303971 | BR164: ='B2'!$I$41*BJ164 -> 4416.117179 | BS164: ='B2'!$K$41*BJ164 -> 441.6117179 | BT164: =BJ164*'B2'!$M$41 -> 883.2234358 | BU164: 0.25 | BV164: 827.3694044 | BW164: 69.12025099 | BX164: 80.84239882 | BY164: 219.1111957 | BZ164: 1733.325993 | CA164: 1104.029295 | CB164: 110.4029295 | CC164: 220.805859 | CD164: 187.5
A165: ='B1'!A44 -> Port 33 | B165: ='B1'!B44 -> Vadsø | C165: 2878.007532 | D165: 3029.481613 | E165: ='B2'!$K$33 -> 750 | F165: 883.2234358 | G165: 3912.705049 | H165: ='B1'!F44/60 -> 0.5 | I165: ='B1'!D44 -> 0 | J165: 883.2234358 | K165: =J165/'B2'!$C$32 -> 0.1208867795 | L165: =(G165/'B2'!$C$32) -> 0.5355318859 | M165: 0.3599890705 | N165: 10868.95511 | O165: 908.0163001 | P165: 1062.007369 | Q165: =O165*'B2'!$E$41 -> 2878.411671 | R165: ='B2'!$G$41*G165 -> 30714.73463 | S165: ='B2'!$I$41*G165 -> 19563.52524 | T165: ='B2'!$K$41*G165 -> 1956.352524 | U165: =G165*'B2'!$M$41 -> 3912.705049 | V165: ='B1'!H44/60 -> 3.25 | W165: 35324.10412 | X165: 2951.052975 | Y165: 3451.523948 | Z165: 9354.837932 | AA165: 99822.88755 | AB165: 63581.45704 | AC165: 6358.145704 | AD165: 12716.29141 | BF165: =B165 -> Vadsø | BG165: ='B1'!D44 -> 0 | BH165: ='B1'!F44 -> 30 | BI165: ='B2'!$K$33 -> 750 | BJ165: 883.2234358 | BK165: 0.1208867795 | BL165: 0.2668769932 | BM165: 3309.477618 | BN165: 276.481004 | BO165: 323.3695953 | BP165: =BN165*'B2'!$E$41 -> 876.4447826 | BQ165: ='B2'!$G$41*BJ165 -> 6933.303971 | BR165: ='B2'!$I$41*BJ165 -> 4416.117179 | BS165: ='B2'!$K$41*BJ165 -> 441.6117179 | BT165: =BJ165*'B2'!$M$41 -> 883.2234358 | BU165: 0.5 | BV165: 1654.738809 | BW165: 138.240502 | BX165: 161.6847976 | BY165: 438.2223913 | BZ165: 3466.651986 | CA165: 2208.05859 | CB165: 220.805859 | CC165: 441.6117179 | CD165: 375
A166: ='B1'!A45 -> Port 34 | B166: ='B1'!B45 -> Kirkenes | C166: 3924.477765 | D166: 4131.029227 | E166: ='B2'!$K$33 -> 750 | F166: 883.2234358 | G166: 5014.252662 | H166: ='B1'!F45/60 -> 3.5 | I166: ='B1'!D45 -> 0 | J166: 883.2234358 | K166: =J166/'B2'!$C$32 -> 0.1208867795 | L166: =(G166/'B2'!$C$32) -> 0.6863006926 | M166: 0.3689321828 | N166: 13591.25849 | O166: 1135.443483 | P166: 1328.004074 | Q166: =O166*'B2'!$E$41 -> 3599.355842 | R166: ='B2'!$G$41*G166 -> 39361.8834 | S166: ='B2'!$I$41*G166 -> 25071.26331 | T166: ='B2'!$K$41*G166 -> 2507.126331 | U166: =G166*'B2'!$M$41 -> 5014.252662 | V166: ='B1'!H45/60 -> 1.75 | W166: 23784.70236 | X166: 1987.026096 | Y166: 2324.007129 | Z166: 6298.872723 | AA166: 68883.29595 | AB166: 43874.7108 | AC166: 4387.47108 | AD166: 8774.942159 | BF166: =B166 -> Kirkenes | BG166: ='B1'!D45 -> 0 | BH166: ='B1'!F45 -> 210 | BI166: ='B2'!$K$33 -> 750 | BJ166: 883.2234358 | BK166: 0.1208867795 | BL166: 0.2668769932 | BM166: 3309.477618 | BN166: 276.481004 | BO166: 323.3695953 | BP166: =BN166*'B2'!$E$41 -> 876.4447826 | BQ166: ='B2'!$G$41*BJ166 -> 6933.303971 | BR166: ='B2'!$I$41*BJ166 -> 4416.117179 | BS166: ='B2'!$K$41*BJ166 -> 441.6117179 | BT166: =BJ166*'B2'!$M$41 -> 883.2234358 | BU166: 3.5 | BV166: 11583.17166 | BW166: 967.6835139 | BX166: 1131.793584 | BY166: 3067.556739 | BZ166: 24266.5639 | CA166: 15456.41013 | CB166: 1545.641013 | CC166: 3091.282025 | CD166: 2625
C168: const | D168: x | E168: x2 | F168: x3 | G168: x4 | H168: x5 | I168: x6 | K168: Diesel oil | U168: SUM | V168: =SUM(V134:V166) -> 100.1666667 | W168: =SUM(W134:W166) -> 1168793.023 | X168: 97643.52737 | Y168: 114202.956 | Z168: 309529.9818 | AA168: 3330458.678 | AB168: 2121311.26 | AC168: 212131.126 | AD168: 424262.252 | BT168: SUM | BU168: =SUM(BU133:BU166) -> 41.83333333 | BV168: =SUM(BV133:BV166) -> 58191.64811 | BW168: 4861.457653 | BX168: 5685.915384 | BY168: 15410.82076 | BZ168: 121910.5948 | CA168: 77650.0604 | CB168: 7765.00604 | CC168: 15530.01208 | CD168: 31375
C169: =F!C30 -> 0.1667 | D169: =F!D30 -> 1.1482 | E169: =F!E30 -> -3.1976 | F169: =F!F30 -> 5.072 | G169: =F!G30 -> -4.1771 | H169: =F!H30 -> 1.3626 | I169: =F!I30 -> 0 | K169: 11.97 | L169: kWh/kg
A172: Diesel electric - constant rpm. The base for this is the same as the one above.
B173: ='B1'!B11 -> Harbour | C173: Shore charging power | D173: Time in port [h] | E173: kWh | F173: For battery cycles | G173: Battery data | J173: Charging incl losses | K173: Propeller power, without battery | L173: Adjusting admiralty coeff | M173: Incl losses | N173: Hotel | O173: Hotel Incl losses | P173: Total Power with sea margin | Q173: Transit time | R173: Power | S173: C-rate | T173: losses | U173: Actual battery power | V173: Left for engine | W173: Relative load | X173: Transit thermal efficiency | Y173: =N132 -> Necessary kW | Z173: kg | AA173: liters | AB173: CO2, kg | AC173: Nox, g | AD173: CO, g | AE173: PM, g | AF173: SO, g | AG173: Hours | AH173: kWh | AI173: kg | AJ173: liters | AK173: CO2, kg | AL173: Nox, g | AM173: CO, g | AN173: PM, g | AO173: SO, g | BC173: Shore power | BD173: Hotel | BE173: Used electricity | BF173: Time in port | BG173: Energy consumed
A174: ='B1'!A12 -> Port 1 | B174: ='B1'!B12 -> Bergen | C174: =IF('B1'!D12-'B2'!$K$33>0,'B1'!D12-'B2'!$K$33,0) -> 650 | D174: ='B1'!F12/60 -> 8 | E174: =IF($H$185>0,IF(D174*C174>$H$185,$H$185,D174*C174),D174*C174) -> 5200 | F174: =IF(C174>1,1,"") -> 1 | G174: Batery lifetime | H174: ='B2'!$K$32 -> 10 | I174: years | J174: =E174*(1-$H$184) -> 5150.6 | N174: 750 | O174: =N174/$L$30 -> 883.2234358 | BA174: =BE133 -> In harbour | BB174: =BF133 -> Bergen | BC174: =BG133 -> 1400 | BD174: =N174 -> 750 | BE174: =IF(BC174>0,BD174,0) -> 750 | BF174: ='B1'!F12/60 -> 8 | BG174: =BF174*BE174 -> 6000
A175: ='B1'!A13 -> Port 2 | B175: ='B1'!B13 -> Florø | C175: =IF('B1'!D13-'B2'!$K$33>0,'B1'!D13-'B2'!$K$33,0) -> 0 | D175: ='B1'!F13/60 -> 0.25 | E175: =IF($H$185>0,IF(D175*C175>$H$185,$H$185,D175*C175),D175*C175) -> 0 | F175: =IF(C175>1,1,"") ->  | G175: Design routes | H175: ='E '!$E$6 -> 60.63122924 | J175: =E175*(1-$H$184) -> 0 | K175: =C134 -> 3998.059825 | L175: =IFERROR(K175*(((H187+H181)/H187)^(2/3)),K175) -> 3998.059825 | M175: =L175/$L$19 -> 5266.78246 | N175: 750 | O175: =N175/$L$30 -> 883.2234358 | P175: =(M175)+O175 -> 6150.005896 | Q175: ='B1'!H13/60 -> 6 | R175: =J174/Q175 -> 858.4333333 | S175: =R175/$H$180 -> 0.1320666667 | T175: =IF(S175<=0.5,"0,95%",IF(AND(S175<=1,S175>0.5),"1,75%",IF(AND(S175<=1.5,S175>1),"2,55%",IF(AND(S175<=2,S175>1.5),"3,5%",IF(AND(S175<=2.5,S175>2),"4,3%",IF(S175>=2.5,"5,25","")))))) -> 0,95% | U175: =R175-(R175*T175) -> 850.2782167 | V175: =P175-U175 -> 5299.727679 | W175: =V175/'B2'!$C$32 -> 0.7253736543 | X175: =$C$169+($D$169*W175)+($E$169*(W175^2))+($F$169*(W175^3))+($G$169*(W175^4))+($H$169*(W175^5))+($I$169*(W175^6)) -> 0.3701224029 | Y175: =V175/X175 -> 14318.85138 | Z175: =Y175/$K$169 -> 1196.228185 | AA175: =Z175/0.855 -> 1399.097293 | AB175: =Z175*'B2'!$E$41 -> 3792.043348 | AC175: ='B2'!$G$41*V175 -> 41602.86228 | AD175: ='B2'!$I$41*V175 -> 26498.6384 | AE175: ='B2'!$K$41*V175 -> 2649.86384 | AF175: =V175*'B2'!$M$41 -> 5299.727679 | AG175: ='B1'!H13/60 -> 6 | AH175: =$Y175*AG175 -> 85913.10827 | AI175: =$AG175*Z175 -> 7177.369112 | AJ175: =$AG175*AA175 -> 8394.583757 | AK175: 22752.26009 | AL175: =$AG175*AC175 -> 249617.1737 | AM175: 158991.8304 | AN175: 15899.18304 | AO175: 31798.36608 | BB175: =BF134 -> Florø | BC175: =BG134 -> 0 | BD175: =N175 -> 750 | BE175: =IF(BC175>0,BD175,0) -> 0 | BF175: ='B1'!F13/60 -> 0.25 | BG175: =BF175*BE175 -> 0
A176: ='B1'!A14 -> Port 3 | B176: ='B1'!B14 -> Måløy | C176: =IF('B1'!D14-'B2'!$K$33>0,'B1'!D14-'B2'!$K$33,0) -> 0 | D176: ='B1'!F14/60 -> 0.25 | E176: 0 | G176: Ports with charging | H176: =F209 -> 5 | J176: 0 | K176: =C135 -> 1903.600549 | L176: =IFERROR(K176*(((H188+H182)/H188)^(2/3)),K176) -> 1903.600549 | M176: =L176/$L$19 -> 2507.678829 | N176: 750 | O176: 883.2234358 | P176: =(M176)+O176 -> 3390.902265 | Q176: ='B1'!H14/60 -> 2.5 | R176: =J175/Q176 -> 0 | S176: =R176/$H$180 -> 0 | T176: =IF(S176<=0.5,"0,95%",IF(AND(S176<=1,S176>0.5),"1,75%",IF(AND(S176<=1.5,S176>1),"2,55%",IF(AND(S176<=2,S176>1.5),"3,5%",IF(AND(S176<=2.5,S176>2),"4,3%",IF(S176>=2.5,"5,25","")))))) -> 0,95% | U176: =R176-(R176*T176) -> 0 | V176: =P176-U176 -> 3390.902265 | W176: =V176/'B2'!$C$32 -> 0.4641127462 | X176: =$C$169+($D$169*W176)+($E$169*(W176^2))+($F$169*(W176^3))+($G$169*(W176^4))+($H$169*(W176^5))+($I$169*(W176^6)) -> 0.3534129428 | Y176: =V176/X176 -> 9594.731416 | Z176: =Y176/$K$169 -> 801.5648635 | AA176: =Z176/0.855 -> 937.5027643 | AB176: =Z176*'B2'!$E$41 -> 2540.960617 | AC176: ='B2'!$G$41*V176 -> 26618.58278 | AD176: ='B2'!$I$41*V176 -> 16954.51132 | AE176: ='B2'!$K$41*V176 -> 1695.451132 | AF176: =V176*'B2'!$M$41 -> 3390.902265 | AG176: ='B1'!H14/60 -> 2.5 | AH176: =$Y176*AG176 -> 23986.82854 | AI176: =$AG176*Z176 -> 2003.912159 | AJ176: =$AG176*AA176 -> 2343.756911 | AK176: =$AG176*AB176 -> 6352.401543 | AL176: =$AG176*AC176 -> 66546.45695 | AM176: =$AG176*AD176 -> 42386.27831 | AN176: =$AG176*AE176 -> 4238.627831 | AO176: =$AG176*AF176 -> 8477.255662 | BB176: Måløy | BC176: 0 | BD176: 750 | BE176: 0 | BF176: ='B1'!F14/60 -> 0.25 | BG176: 0
A177: ='B1'!A15 -> Port 4 | B177: ='B1'!B15 -> Torvik | C177: =IF('B1'!D15-'B2'!$K$33>0,'B1'!D15-'B2'!$K$33,0) -> 0 | D177: ='B1'!F15/60 -> 0.25 | E177: 0 | G177: Lifetime cycles | H177: =H174*H175*H176 -> 3031.561462 | J177: 0 | K177: 2964.342088 | L177: 2964.342088 | M177: 3905.030339 | N177: 750 | O177: 883.2234358 | P177: 4788.253774 | Q177: ='B1'!H15/60 -> 3 | R177: 0 | S177: 0 | T177: 0,95% | U177: 0 | V177: =P177-U177 -> 4788.253774 | W177: =V177/'B2'!$C$32 -> 0.655368228 | X177: 0.3676563556 | Y177: =V177/X177 -> 13023.72093 | Z177: 1088.030153 | AA177: 1272.549887 | AB177: =Z177*'B2'!$E$41 -> 3449.055585 | AC177: ='B2'!$G$41*V177 -> 37587.79213 | AD177: ='B2'!$I$41*V177 -> 23941.26887 | AE177: ='B2'!$K$41*V177 -> 2394.126887 | AF177: =V177*'B2'!$M$41 -> 4788.253774 | AG177: ='B1'!H15/60 -> 3 | AH177: 39071.1628 | AI177: 3264.090459 | AJ177: 3817.64966 | AK177: 10347.16676 | AL177: 112763.3764 | AM177: 71823.80662 | AN177: 7182.380662 | AO177: 14364.76132 | AQ177: We assume that there are no battery usage during entering and leaving harbour | BB177: Torvik | BC177: 0 | BD177: 750 | BE177: 0 | BF177: ='B1'!F15/60 -> 0.25 | BG177: 0
A178: ='B1'!A16 -> Port 5 | B178: ='B1'!B16 -> Ålesund | C178: =IF('B1'!D16-'B2'!$K$33>0,'B1'!D16-'B2'!$K$33,0) -> 0 | D178: ='B1'!F16/60 -> 3 | E178: 0 | G178: DoD | H178: =IF(H177<6000,"80%",IF(AND(H177<=9000,H177>=6000),"60%",IF(AND(H177<=14000,H177>=9000),"50%",IF(AND(H177<=22000,H177>=14000),"40%",IF(AND(H177<=41000,H177>=22000),"30%",IF(AND(H177<=95000,H177>=41000),"20%",IF(AND(H177<=160000,H177>=95000),"15%",IF(AND(H177<=360000,H177>=160000),"10%","")))))))) -> 80% | J178: 0 | K178: 2835.476094 | L178: 2835.476094 | M178: 3735.27071 | N178: 750 | O178: 883.2234358 | P178: 4618.494145 | Q178: ='B1'!H16/60 -> 1.25 | R178: 0 | S178: 0 | T178: 0,95% | U178: 0 | V178: =P178-U178 -> 4618.494145 | W178: =V178/'B2'!$C$32 -> 0.6321332299 | X178: 0.3665035294 | Y178: 12601.49978 | Z178: 1052.756874 | AA178: 1231.294589 | AB178: =Z178*'B2'!$E$41 -> 3337.23929 | AC178: ='B2'!$G$41*V178 -> 36255.17904 | AD178: ='B2'!$I$41*V178 -> 23092.47073 | AE178: ='B2'!$K$41*V178 -> 2309.247073 | AF178: =V178*'B2'!$M$41 -> 4618.494145 | AG178: ='B1'!H16/60 -> 1.25 | AH178: 15751.87473 | AI178: 1315.946092 | AJ178: 1539.118237 | AK178: 4171.549113 | AL178: 45318.9738 | AM178: 28865.58841 | AN178: 2886.558841 | AO178: 5773.117682 | BB178: Ålesund | BC178: 0 | BD178: 750 | BE178: 0 | BF178: ='B1'!F16/60 -> 3 | BG178: 0
A179: ='B1'!A17 -> Port 6 | B179: ='B1'!B17 -> Molde | C179: =IF('B1'!D17-'B2'!$K$33>0,'B1'!D17-'B2'!$K$33,0) -> 0 | D179: ='B1'!F17/60 -> 0.5 | E179: 0 | G179: Max kWh | H179: =MAX(E174:E207) -> 5200 | J179: 0 | K179: 2111.31442 | L179: 2111.31442 | M179: 2781.307495 | N179: 750 | O179: 883.2234358 | P179: 3664.530931 | Q179: ='B1'!H17/60 -> 3 | R179: 0 | S179: 0 | T179: 0,95% | U179: 0 | V179: 3664.530931 | W179: =V179/'B2'!$C$32 -> 0.5015642979 | X179: 0.3570558288 | Y179: 10263.18753 | Z179: 857.4091506 | AA179: 1002.81772 | AB179: =Z179*'B2'!$E$41 -> 2717.987007 | AC179: ='B2'!$G$41*V179 -> 28766.56781 | AD179: ='B2'!$I$41*V179 -> 18322.65465 | AE179: ='B2'!$K$41*V179 -> 1832.265465 | AF179: =V179*'B2'!$M$41 -> 3664.530931 | AG179: ='B1'!H17/60 -> 3 | AH179: 30789.5626 | AI179: 2572.227452 | AJ179: 3008.45316 | AK179: 8153.961022 | AL179: 86299.70342 | AM179: 54967.96396 | AN179: 5496.796396 | AO179: 10993.59279 | AQ179: Summarize from above | BB179: Molde | BC179: 0 | BD179: 750 | BE179: 0 | BF179: ='B1'!F17/60 -> 0.5 | BG179: 0
A180: ='B1'!A18 -> Port 7 | B180: ='B1'!B18 -> Kristiansund | C180: =IF('B1'!D18-'B2'!$K$33>0,'B1'!D18-'B2'!$K$33,0) -> 0 | D180: ='B1'!F18/60 -> 0.75 | E180: 0 | G180: Battery capacity | H180: =H179/H178 -> 6500 | J180: 0 | K180: 2745.752601 | L180: 2745.752601 | M180: 3617.074849 | N180: 750 | O180: 883.2234358 | P180: 4500.298285 | Q180: ='B1'!H18/60 -> 3.75 | R180: 0 | S180: 0 | T180: 0,95% | U180: 0 | V180: 4500.298285 | W180: =V180/'B2'!$C$32 -> 0.6159557641 | X180: 0.3656037811 | Y180: 12309.22249 | Z180: 1028.339389 | AA180: 1202.736128 | AB180: =Z180*'B2'!$E$41 -> 3259.835864 | AC180: ='B2'!$G$41*V180 -> 35327.34154 | AD180: ='B2'!$I$41*V180 -> 22501.49142 | AE180: ='B2'!$K$41*V180 -> 2250.149142 | AF180: =V180*'B2'!$M$41 -> 4500.298285 | AG180: ='B1'!H18/60 -> 3.75 | AH180: 46159.58434 | AI180: 3856.27271 | AJ180: 4510.26048 | AK180: 12224.38449 | AL180: 132477.5308 | AM180: 84380.59284 | AN180: 8438.059284 | AO180: 16876.11857 | AQ180: =AU140 -> Hours | AR180: kWh | AS180: kg | AT180: liters | AU180: CO2, kg | AV180: Nox, g | AW180: CO, g | AX180: PM, g | AY180: SO, g | BB180: Kristiansund | BC180: 0 | BD180: 750 | BE180: 0 | BF180: ='B1'!F18/60 -> 0.75 | BG180: 0
A181: ='B1'!A19 -> Port 8 | B181: ='B1'!B19 -> Trondheim | C181: =IF('B1'!D19-'B2'!$K$33>0,'B1'!D19-'B2'!$K$33,0) -> 650 | D181: ='B1'!F19/60 -> 6 | E181: 3900 | F181: 1 | G181: Battery weight, tonnes | H181: =(H180*13)/1000 -> 84.5 | J181: 3862.95 | K181: 2737.870062 | L181: 2737.870062 | M181: 3606.690908 | N181: 750 | O181: 883.2234358 | P181: 4489.914344 | Q181: ='B1'!H19/60 -> 7 | R181: 0 | S181: 0 | T181: 0,95% | U181: 0 | V181: 4489.914344 | W181: =V181/'B2'!$C$32 -> 0.6145345143 | X181: 0.3655209728 | Y181: 12283.60252 | Z181: 1026.199041 | AA181: 1200.232797 | AB181: =Z181*'B2'!$E$41 -> 3253.050961 | AC181: ='B2'!$G$41*V181 -> 35245.8276 | AD181: ='B2'!$I$41*V181 -> 22449.57172 | AE181: ='B2'!$K$41*V181 -> 2244.957172 | AF181: =V181*'B2'!$M$41 -> 4489.914344 | AG181: ='B1'!H19/60 -> 7 | AH181: 85985.21767 | AI181: 7183.393289 | AJ181: 8401.629578 | AK181: 22771.35673 | AL181: 246720.7932 | AM181: 157147.002 | AN181: 15714.7002 | AO181: 31429.40041 | AQ181: =AU147 -> 8.5 | AR181: =AV147 -> 75273.62864 | AS181: 6288.523696 | AT181: 7354.998475 | AU181: 19934.62012 | AV181: 209273.8636 | AW181: 133295.4545 | AX181: 13329.54545 | AY181: 26659.09091 | BB181: Trondheim | BC181: 1400 | BD181: 750 | BE181: 750 | BF181: ='B1'!F19/60 -> 6 | BG181: 4500
A182: ='B1'!A20 -> Port 9 | B182: ='B1'!B20 -> Rørvik | C182: =IF('B1'!D20-'B2'!$K$33>0,'B1'!D20-'B2'!$K$33,0) -> 0 | D182: ='B1'!F20/60 -> 0.5 | E182: 0 | G182: Maximum Charge | H182: =MAX(C174:C207) -> 650 | J182: 0 | K182: 3605.788896 | L182: 3605.788896 | M182: 4750.030401 | N182: 750 | O182: 883.2234358 | P182: 5633.253836 | Q182: ='B1'!H20/60 -> 8.75 | R182: 441.48 | S182: 0.06792 | T182: 0,95% | U182: 437.28594 | V182: 5195.967896 | W182: =V182/'B2'!$C$32 -> 0.7111720542 | X182: 0.3697433788 | Y182: 14052.90316 | Z182: 1174.010289 | AA182: 1373.111449 | AB182: =Z182*'B2'!$E$41 -> 3721.612617 | AC182: ='B2'!$G$41*V182 -> 40788.34799 | AD182: ='B2'!$I$41*V182 -> 25979.83948 | AE182: ='B2'!$K$41*V182 -> 2597.983948 | AF182: =V182*'B2'!$M$41 -> 5195.967896 | AG182: ='B1'!H20/60 -> 8.75 | AH182: 122962.9027 | AI182: 10272.59003 | AJ182: 12014.72518 | AK182: 32564.1104 | AL182: 356898.0449 | AM182: 227323.5955 | AN182: 22732.35955 | AO182: 45464.71909 | BB182: Rørvik | BC182: 0 | BD182: 750 | BE182: 0 | BF182: ='B1'!F20/60 -> 0.5 | BG182: 0
A183: ='B1'!A21 -> Port 10 | B183: ='B1'!B21 -> Brønnøysund | C183: =IF('B1'!D21-'B2'!$K$33>0,'B1'!D21-'B2'!$K$33,0) -> 0 | D183: ='B1'!F21/60 -> 0.25 | E183: 0 | G183: C-rate | H183: =H182/H180 -> 0.1 | J183: 0 | K183: 3004.764381 | L183: 3004.764381 | M183: 3958.280024 | N183: 750 | O183: 883.2234358 | P183: 4841.50346 | Q183: ='B1'!H21/60 -> 3.5 | R183: 0 | S183: 0 | T183: 0,95% | U183: 0 | V183: 4841.50346 | W183: =V183/'B2'!$C$32 -> 0.6626565117 | X183: 0.3679837001 | Y183: 13156.84216 | Z183: 1099.151392 | AA183: 1285.557183 | AB183: =Z183*'B2'!$E$41 -> 3484.309912 | AC183: ='B2'!$G$41*V183 -> 38005.80216 | AD183: ='B2'!$I$41*V183 -> 24207.5173 | AE183: ='B2'!$K$41*V183 -> 2420.75173 | AF183: =V183*'B2'!$M$41 -> 4841.50346 | AG183: ='B1'!H21/60 -> 3.5 | AH183: 46048.94756 | AI183: 3847.029871 | AJ183: 4499.450142 | AK183: 12195.08469 | AL183: 133020.3076 | AM183: 84726.31054 | AN183: 8472.631054 | AO183: 16945.26211 | AQ183: Also have to include the shore power, but this is the same as above. We have to include the energy used in port from chargin to hotel | BB183: Brønnøysund | BC183: 0 | BD183: 750 | BE183: 0 | BF183: ='B1'!F21/60 -> 0.25 | BG183: 0
A184: ='B1'!A22 -> Port 11 | B184: ='B1'!B22 -> Sandnessjøen | C184: =IF('B1'!D22-'B2'!$K$33>0,'B1'!D22-'B2'!$K$33,0) -> 0 | D184: ='B1'!F22/60 -> 0.5 | E184: 0 | G184: Charging losses | H184: =IF(H183<=0.5,"0,95%",IF(AND(H183<=1,H183>0.5),"1,75%",IF(AND(H183<=1.5,H183>1),"2,55%",IF(AND(H183<=2,H183>1.5),"3,5%",IF(AND(H183<=2.5,H183>2),"4,3%",IF(H183>=2.5,"5,25","")))))) -> 0,95% | J184: 0 | K184: 3070.201622 | L184: 3070.201622 | M184: 4044.482763 | N184: 750 | O184: 883.2234358 | P184: 4927.706199 | Q184: ='B1'!H22/60 -> 2.75 | R184: 0 | S184: 0 | T184: 0,95% | U184: 0 | V184: 4927.706199 | W184: =V184/'B2'!$C$32 -> 0.6744550794 | X184: 0.3684786969 | Y184: 13373.11015 | Z184: 1117.218893 | AA184: 1306.688763 | AB184: =Z184*'B2'!$E$41 -> 3541.58389 | AC184: ='B2'!$G$41*V184 -> 38682.49366 | AD184: ='B2'!$I$41*V184 -> 24638.531 | AE184: ='B2'!$K$41*V184 -> 2463.8531 | AF184: =V184*'B2'!$M$41 -> 4927.706199 | AG184: ='B1'!H22/60 -> 2.75 | AH184: 36776.0529 | AI184: 3072.351955 | AJ184: 3593.394099 | AK184: 9739.355697 | AL184: 106376.8576 | AM184: 67755.96024 | AN184: 6775.596024 | AO184: 13551.19205 | BB184: Sandnessjøen | BC184: 0 | BD184: 750 | BE184: 0 | BF184: ='B1'!F22/60 -> 0.5 | BG184: 0
A185: ='B1'!A23 -> Port 12 | B185: ='B1'!B23 -> Nesna | C185: =IF('B1'!D23-'B2'!$K$33>0,'B1'!D23-'B2'!$K$33,0) -> 0 | D185: ='B1'!F23/60 -> 0.08333333333 | E185: 0 | G185: Max battery | H185: ='B1'!K6 -> 0 | J185: 0 | K185: 3681.219152 | L185: 3681.219152 | M185: 4849.397285 | N185: 750 | O185: 883.2234358 | P185: 5732.620721 | Q185: ='B1'!H23/60 -> 1.166666667 | R185: 0 | S185: 0 | T185: 0,95% | U185: 0 | V185: 5732.620721 | W185: =V185/'B2'!$C$32 -> 0.7846237189 | X185: 0.3710991536 | Y185: 15447.67932 | Z185: 1290.532942 | AA185: 1509.395254 | AB185: =Z185*'B2'!$E$41 -> 4090.989427 | AC185: ='B2'!$G$41*V185 -> 45001.07266 | AD185: ='B2'!$I$41*V185 -> 28663.1036 | AE185: ='B2'!$K$41*V185 -> 2866.31036 | AF185: =V185*'B2'!$M$41 -> 5732.620721 | AG185: ='B1'!H23/60 -> 1.166666667 | AH185: 18022.29254 | AI185: 1505.621766 | AJ185: 1760.96113 | AK185: 4772.820998 | AL185: 52501.25143 | AM185: 33440.28754 | AN185: 3344.028754 | AO185: 6688.057507 | BB185: Nesna | BC185: 0 | BD185: 750 | BE185: 0 | BF185: ='B1'!F23/60 -> 0.08333333333 | BG185: 0
A186: ='B1'!A24 -> Port 13 | B186: ='B1'!B24 -> Ørnes | C186: =IF('B1'!D24-'B2'!$K$33>0,'B1'!D24-'B2'!$K$33,0) -> 0 | D186: ='B1'!F24/60 -> 0.25 | E186: 0 | G186: Battery Size | H186: =IF(H185>0,H185,H180) -> 6500 | J186: 0 | K186: 3313.510177 | L186: 3313.510177 | M186: 4365.001537 | N186: 750 | O186: 883.2234358 | P186: 5248.224972 | Q186: ='B1'!H24/60 -> 3.75 | R186: 0 | S186: 0 | T186: 0,95% | U186: 0 | V186: 5248.224972 | W186: =V186/'B2'!$C$32 -> 0.7183244795 | X186: 0.3699417885 | Y186: 14186.62378 | Z186: 1185.181602 | AA186: 1386.177312 | AB186: =Z186*'B2'!$E$41 -> 3757.025678 | AC186: ='B2'!$G$41*V186 -> 41198.56603 | AD186: ='B2'!$I$41*V186 -> 26241.12486 | AE186: ='B2'!$K$41*V186 -> 2624.112486 | AF186: =V186*'B2'!$M$41 -> 5248.224972 | AG186: ='B1'!H24/60 -> 3.75 | AH186: 53199.83916 | AI186: 4444.431008 | AJ186: 5198.164921 | AK186: 14088.84629 | AL186: 154494.6226 | AM186: 98404.21823 | AN186: 9840.421823 | AO186: 19680.84365 | AQ186: Overall | BB186: Ørnes | BC186: 0 | BD186: 750 | BE186: 0 | BF186: ='B1'!F24/60 -> 0.25 | BG186: 0
A187: ='B1'!A25 -> Port 14 | B187: ='B1'!B25 -> Bodø | C187: =IF('B1'!D25-'B2'!$K$33>0,'B1'!D25-'B2'!$K$33,0) -> 650 | D187: ='B1'!F25/60 -> 2.5 | E187: 1625 | F187: 1 | G187: Displacement | H187: =IFERROR('B2'!I10+'B2'!J10,"Not filled in, use sheet B2") -> Not filled in, use sheet B2 | J187: 1609.5625 | K187: 2964.342088 | L187: 2964.342088 | M187: 3905.030339 | N187: 750 | O187: 883.2234358 | P187: 4788.253774 | Q187: ='B1'!H25/60 -> 3 | R187: 0 | S187: 0 | T187: 0,95% | U187: 0 | V187: 4788.253774 | W187: =V187/'B2'!$C$32 -> 0.655368228 | X187: 0.3676563556 | Y187: 13023.72093 | Z187: 1088.030153 | AA187: 1272.549887 | AB187: =Z187*'B2'!$E$41 -> 3449.055585 | AC187: ='B2'!$G$41*V187 -> 37587.79213 | AD187: ='B2'!$I$41*V187 -> 23941.26887 | AE187: ='B2'!$K$41*V187 -> 2394.126887 | AF187: =V187*'B2'!$M$41 -> 4788.253774 | AG187: ='B1'!H25/60 -> 3 | AH187: 39071.1628 | AI187: 3264.090459 | AJ187: 3817.64966 | AK187: 10347.16676 | AL187: 112763.3764 | AM187: 71823.80662 | AN187: 7182.380662 | AO187: 14364.76132 | BB187: Bodø | BC187: 1400 | BD187: 750 | BE187: 750 | BF187: ='B1'!F25/60 -> 2.5 | BG187: 1875
A188: ='B1'!A26 -> Port 15 | B188: ='B1'!B26 -> Stamsund | C188: =IF('B1'!D26-'B2'!$K$33>0,'B1'!D26-'B2'!$K$33,0) -> 0 | D188: ='B1'!F26/60 -> 0.5 | E188: 0 | J188: 0 | K188: 3402.840264 | L188: 3402.840264 | M188: 4482.67915 | N188: 750 | O188: 883.2234358 | P188: 5365.902586 | Q188: ='B1'!H26/60 -> 4 | R188: 402.390625 | S188: 0.06190625 | T188: 0,95% | U188: 398.5679141 | V188: 4967.334671 | W188: =V188/'B2'!$C$32 -> 0.6798790279 | X188: 0.3686917475 | Y188: 13472.86644 | Z188: 1125.552752 | AA188: 1316.435967 | AB188: =Z188*'B2'!$E$41 -> 3568.002223 | AC188: ='B2'!$G$41*V188 -> 38993.57717 | AD188: ='B2'!$I$41*V188 -> 24836.67336 | AE188: ='B2'!$K$41*V188 -> 2483.667336 | AF188: =V188*'B2'!$M$41 -> 4967.334671 | AG188: ='B1'!H26/60 -> 4 | AH188: 53891.46576 | AI188: 4502.211008 | AJ188: 5265.743868 | AK188: 14272.00889 | AL188: 155974.3087 | AM188: 99346.69343 | AN188: 9934.669343 | AO188: 19869.33869 | AQ188: =AQ180 -> Hours | AR188: =AR180 -> kWh | AS188: =AS180 -> kg | AT188: liters | AU188: CO2, kg | AV188: Nox, g | AW188: CO, g | AX188: PM, g | AY188: SO, g | BB188: Stamsund | BC188: 0 | BD188: 750 | BE188: 0 | BF188: ='B1'!F26/60 -> 0.5 | BG188: 0
A189: ='B1'!A27 -> Port 16 | B189: ='B1'!B27 -> Svolvær | C189: =IF('B1'!D27-'B2'!$K$33>0,'B1'!D27-'B2'!$K$33,0) -> 0 | D189: ='B1'!F27/60 -> 1 | E189: 0 | J189: 0 | K189: 3758.677161 | L189: 3758.677161 | M189: 4951.435399 | N189: 750 | O189: 883.2234358 | P189: 5834.658835 | Q189: ='B1'!H27/60 -> 1.5 | R189: 0 | S189: 0 | T189: 0,95% | U189: 0 | V189: 5834.658835 | W189: =V189/'B2'!$C$32 -> 0.7985896741 | X189: 0.3712077096 | Y189: 15718.04325 | Z189: 1313.119737 | AA189: 1535.812558 | AB189: =Z189*'B2'!$E$41 -> 4162.589566 | AC189: ='B2'!$G$41*V189 -> 45802.07185 | AD189: ='B2'!$I$41*V189 -> 29173.29417 | AE189: ='B2'!$K$41*V189 -> 2917.329417 | AF189: =V189*'B2'!$M$41 -> 5834.658835 | AG189: ='B1'!H27/60 -> 1.5 | AH189: 23577.06488 | AI189: 1969.679605 | AJ189: 2303.718837 | AK189: 6243.884349 | AL189: 68703.10778 | AM189: 43759.94126 | AN189: 4375.994126 | AO189: 8751.988252 | AQ189: =AQ181+AG209+BU168 -> 150.5 | AR189: =AR181+AH209+BG209+BV168 -> 1493316.733 | AS189: =AS181+AI209+BW168 -> 123235.5249 | AT189: =AT181+AJ209+BX168 -> 144135.1168 | AU189: =AU181+AK209+BY168 -> 390656.6139 | AV189: =AV181+AL209+BZ168 -> 4203109.719 | AW189: =AW181+BY168+AM209 -> 2614900.709 | AX189: =AX181+AN209+CB168 -> 267713.9948 | AY189: =AY181+CC168+AO209 -> 535427.9897 | BB189: Svolvær | BC189: 0 | BD189: 750 | BE189: 0 | BF189: ='B1'!F27/60 -> 1 | BG189: 0
A190: ='B1'!A28 -> Port 17 | B190: ='B1'!B28 -> Stokmarknes | C190: =IF('B1'!D28-'B2'!$K$33>0,'B1'!D28-'B2'!$K$33,0) -> 0 | D190: ='B1'!F28/60 -> 0.25 | E190: 0 | J190: 0 | K190: 2111.31442 | L190: 2111.31442 | M190: 2781.307495 | N190: 750 | O190: 883.2234358 | P190: 3664.530931 | Q190: ='B1'!H28/60 -> 3 | R190: 0 | S190: 0 | T190: 0,95% | U190: 0 | V190: 3664.530931 | W190: =V190/'B2'!$C$32 -> 0.5015642979 | X190: 0.3570558288 | Y190: 10263.18753 | Z190: 857.4091506 | AA190: 1002.81772 | AB190: =Z190*'B2'!$E$41 -> 2717.987007 | AC190: ='B2'!$G$41*V190 -> 28766.56781 | AD190: ='B2'!$I$41*V190 -> 18322.65465 | AE190: ='B2'!$K$41*V190 -> 1832.265465 | AF190: =V190*'B2'!$M$41 -> 3664.530931 | AG190: ='B1'!H28/60 -> 3 | AH190: 30789.5626 | AI190: 2572.227452 | AJ190: 3008.45316 | AK190: 8153.961022 | AL190: 86299.70342 | AM190: 54967.96396 | AN190: 5496.796396 | AO190: 10993.59279 | BB190: Stokmarknes | BC190: 0 | BD190: 750 | BE190: 0 | BF190: ='B1'!F28/60 -> 0.25 | BG190: 0
A191: ='B1'!A29 -> Port 18 | B191: ='B1'!B29 -> Sortland | C191: =IF('B1'!D29-'B2'!$K$33>0,'B1'!D29-'B2'!$K$33,0) -> 0 | D191: ='B1'!F29/60 -> 0.25 | E191: 0 | J191: 0 | K191: 1451.76376 | L191: 1451.76376 | M191: 1912.458603 | N191: 750 | O191: 883.2234358 | P191: 2795.682039 | Q191: ='B1'!H29/60 -> 1.5 | R191: 0 | S191: 0 | T191: 0,95% | U191: 0 | V191: 2795.682039 | W191: =V191/'B2'!$C$32 -> 0.3826449621 | X191: 0.3436612065 | Y191: 8134.994541 | Z191: 679.6152499 | AA191: 794.8716373 | AB191: =Z191*'B2'!$E$41 -> 2154.380342 | AC191: ='B2'!$G$41*V191 -> 21946.10401 | AD191: ='B2'!$I$41*V191 -> 13978.4102 | AE191: ='B2'!$K$41*V191 -> 1397.84102 | AF191: =V191*'B2'!$M$41 -> 2795.682039 | AG191: ='B1'!H29/60 -> 1.5 | AH191: 12202.49181 | AI191: 1019.422875 | AJ191: 1192.307456 | AK191: 3231.570513 | AL191: 32919.15601 | AM191: 20967.61529 | AN191: 2096.761529 | AO191: 4193.523059 | BB191: Sortland | BC191: 0 | BD191: 750 | BE191: 0 | BF191: ='B1'!F29/60 -> 0.25 | BG191: 0
A192: ='B1'!A30 -> Port 19 | B192: ='B1'!B30 -> Risøyhamn | C192: =IF('B1'!D30-'B2'!$K$33>0,'B1'!D30-'B2'!$K$33,0) -> 0 | D192: ='B1'!F30/60 -> 0.25 | E192: 0 | J192: 0 | K192: 4088.432391 | L192: 4088.432391 | M192: 5385.833367 | N192: 750 | O192: 883.2234358 | P192: 6269.056803 | Q192: ='B1'!H30/60 -> 1.25 | R192: 0 | S192: 0 | T192: 0,95% | U192: 0 | V192: 6269.056803 | W192: =V192/'B2'!$C$32 -> 0.858045718 | X192: 0.3713765293 | Y192: 16880.59505 | Z192: 1410.241859 | AA192: 1649.405683 | AB192: =Z192*'B2'!$E$41 -> 4470.466693 | AC192: ='B2'!$G$41*V192 -> 49212.0959 | AD192: ='B2'!$I$41*V192 -> 31345.28401 | AE192: ='B2'!$K$41*V192 -> 3134.528401 | AF192: =V192*'B2'!$M$41 -> 6269.056803 | AG192: ='B1'!H30/60 -> 1.25 | AH192: 21100.74381 | AI192: 1762.802324 | AJ192: 2061.757104 | AK192: 5588.083366 | AL192: 61515.11988 | AM192: 39181.60502 | AN192: 3918.160502 | AO192: 7836.321003 | BB192: Risøyhamn | BC192: 0 | BD192: 750 | BE192: 0 | BF192: ='B1'!F30/60 -> 0.25 | BG192: 0
A193: ='B1'!A31 -> Port 20 | B193: ='B1'!B31 -> Harstad | C193: =IF('B1'!D31-'B2'!$K$33>0,'B1'!D31-'B2'!$K$33,0) -> 0 | D193: ='B1'!F31/60 -> 1 | E193: 0 | J193: 0 | K193: 2413.91936 | L193: 2413.91936 | M193: 3179.939446 | N193: 750 | O193: 883.2234358 | P193: 4063.162882 | Q193: ='B1'!H31/60 -> 2.25 | R193: 0 | S193: 0 | T193: 0,95% | U193: 0 | V193: 4063.162882 | W193: =V193/'B2'!$C$32 -> 0.5561250476 | X193: 0.3616045721 | Y193: 11236.48094 | Z193: 938.7202122 | AA193: 1097.918377 | AB193: =Z193*'B2'!$E$41 -> 2975.743073 | AC193: ='B2'!$G$41*V193 -> 31895.82863 | AD193: ='B2'!$I$41*V193 -> 20315.81441 | AE193: ='B2'!$K$41*V193 -> 2031.581441 | AF193: =V193*'B2'!$M$41 -> 4063.162882 | AG193: ='B1'!H31/60 -> 2.25 | AH193: 25282.08212 | AI193: 2112.120478 | AJ193: 2470.316348 | AK193: 6695.421914 | AL193: 71765.61441 | AM193: 45710.58243 | AN193: 4571.058243 | AO193: 9142.116485 | BB193: Harstad | BC193: 0 | BD193: 750 | BE193: 0 | BF193: ='B1'!F31/60 -> 1 | BG193: 0
A194: ='B1'!A32 -> Port 21 | B194: ='B1'!B32 -> Finnsnes | C194: =IF('B1'!D32-'B2'!$K$33>0,'B1'!D32-'B2'!$K$33,0) -> 0 | D194: ='B1'!F32/60 -> 0.5 | E194: 0 | J194: 0 | K194: 3326.94331 | L194: 3326.94331 | M194: 4382.697467 | N194: 750 | O194: 883.2234358 | P194: 5265.920903 | Q194: ='B1'!H32/60 -> 3.25 | R194: 0 | S194: 0 | T194: 0,95% | U194: 0 | V194: 5265.920903 | W194: =V194/'B2'!$C$32 -> 0.7207465213 | X194: 0.3700055067 | Y194: 14232.00684 | Z194: 1188.973003 | AA194: 1390.611699 | AB194: =Z194*'B2'!$E$41 -> 3769.044418 | AC194: ='B2'!$G$41*V194 -> 41337.47909 | AD194: ='B2'!$I$41*V194 -> 26329.60452 | AE194: ='B2'!$K$41*V194 -> 2632.960452 | AF194: =V194*'B2'!$M$41 -> 5265.920903 | AG194: ='B1'!H32/60 -> 3.25 | AH194: 46254.02224 | AI194: 3864.162259 | AJ194: 4519.488022 | AK194: 12249.39436 | AL194: 134346.807 | AM194: 85571.21468 | AN194: 8557.121468 | AO194: 17114.24294 | BB194: Finnsnes | BC194: 0 | BD194: 750 | BE194: 0 | BF194: ='B1'!F32/60 -> 0.5 | BG194: 0
A195: ='B1'!A33 -> Port 22 | B195: ='B1'!B33 -> Tromsø | C195: =IF('B1'!D33-'B2'!$K$33>0,'B1'!D33-'B2'!$K$33,0) -> 650 | D195: ='B1'!F33/60 -> 4.25 | E195: 2762.5 | F195: 1 | J195: 2736.25625 | K195: 3345.810618 | L195: 3345.810618 | M195: 4407.552025 | N195: 750 | O195: 883.2234358 | P195: 5290.775461 | Q195: ='B1'!H33/60 -> 2.75 | R195: 0 | S195: 0 | T195: 0,95% | U195: 0 | V195: 5290.775461 | W195: =V195/'B2'!$C$32 -> 0.7241483643 | X195: 0.370092063 | Y195: 14295.83606 | Z195: 1194.305435 | AA195: 1396.848463 | AB195: =Z195*'B2'!$E$41 -> 3785.94823 | AC195: ='B2'!$G$41*V195 -> 41532.58737 | AD195: ='B2'!$I$41*V195 -> 26453.87731 | AE195: ='B2'!$K$41*V195 -> 2645.387731 | AF195: =V195*'B2'!$M$41 -> 5290.775461 | AG195: ='B1'!H33/60 -> 2.75 | AH195: 39313.54917 | AI195: 3284.339947 | AJ195: 3841.333272 | AK195: 10411.35763 | AL195: 114214.6153 | AM195: 72748.16259 | AN195: 7274.816259 | AO195: 14549.63252 | BB195: Tromsø | BC195: 1400 | BD195: 750 | BE195: 750 | BF195: ='B1'!F33/60 -> 4.25 | BG195: 3187.5
A196: ='B1'!A34 -> Port 23 | B196: ='B1'!B34 -> Skjervøy | C196: =IF('B1'!D34-'B2'!$K$33>0,'B1'!D34-'B2'!$K$33,0) -> 0 | D196: ='B1'!F34/60 -> 0.25 | E196: 0 | J196: 0 | K196: 3034.639796 | L196: 3034.639796 | M196: 3997.635941 | N196: 750 | O196: 883.2234358 | P196: 4880.859377 | Q196: ='B1'!H34/60 -> 4 | R196: 684.0640625 | S196: 0.105240625 | T196: 0,95% | U196: 677.5654539 | V196: 4203.293923 | W196: =V196/'B2'!$C$32 -> 0.5753047812 | X196: 0.362999822 | Y196: 11579.32778 | Z196: 967.3623876 | AA196: 1131.417997 | AB196: =Z196*'B2'!$E$41 -> 3066.538769 | AC196: ='B2'!$G$41*V196 -> 32995.8573 | AD196: ='B2'!$I$41*V196 -> 21016.46961 | AE196: ='B2'!$K$41*V196 -> 2101.646961 | AF196: =V196*'B2'!$M$41 -> 4203.293923 | AG196: ='B1'!H34/60 -> 4 | AH196: 46317.31112 | AI196: 3869.44955 | AJ196: 4525.671989 | AK196: 12266.15507 | AL196: 131983.4292 | AM196: 84065.87846 | AN196: 8406.587846 | AO196: 16813.17569 | BB196: Skjervøy | BC196: 0 | BD196: 750 | BE196: 0 | BF196: ='B1'!F34/60 -> 0.25 | BG196: 0
A197: ='B1'!A35 -> Port 24 | B197: ='B1'!B35 -> Øksfjord | C197: =IF('B1'!D35-'B2'!$K$33>0,'B1'!D35-'B2'!$K$33,0) -> 0 | D197: ='B1'!F35/60 -> 0.25 | E197: 0 | J197: 0 | K197: 3567.935703 | L197: 3567.935703 | M197: 4700.16508 | N197: 750 | O197: 883.2234358 | P197: 5583.388516 | Q197: ='B1'!H35/60 -> 3.25 | R197: 0 | S197: 0 | T197: 0,95% | U197: 0 | V197: 5583.388516 | W197: =V197/'B2'!$C$32 -> 0.7641983091 | X197: 0.3708644308 | Y197: 15055.06609 | Z197: 1257.733174 | AA197: 1471.032952 | AB197: =Z197*'B2'!$E$41 -> 3987.01416 | AC197: ='B2'!$G$41*V197 -> 43829.59985 | AD197: ='B2'!$I$41*V197 -> 27916.94258 | AE197: ='B2'!$K$41*V197 -> 2791.694258 | AF197: =V197*'B2'!$M$41 -> 5583.388516 | AG197: ='B1'!H35/60 -> 3.25 | AH197: 48928.96479 | AI197: 4087.632814 | AJ197: 4780.857093 | AK197: 12957.79602 | AL197: 142446.1995 | AM197: 90730.06338 | AN197: 9073.006338 | AO197: 18146.01268 | BB197: Øksfjord | BC197: 0 | BD197: 750 | BE197: 0 | BF197: ='B1'!F35/60 -> 0.25 | BG197: 0
A198: ='B1'!A36 -> Port 25 | B198: ='B1'!B36 -> Hammerfest | C198: =IF('B1'!D36-'B2'!$K$33>0,'B1'!D36-'B2'!$K$33,0) -> 0 | D198: ='B1'!F36/60 -> 0.75 | E198: 0 | J198: 0 | K198: 3465.789479 | L198: 3465.789479 | M198: 4565.604328 | N198: 750 | O198: 883.2234358 | P198: 5448.827763 | Q198: ='B1'!H36/60 -> 3 | R198: 0 | S198: 0 | T198: 0,95% | U198: 0 | V198: 5448.827763 | W198: =V198/'B2'!$C$32 -> 0.7457809807 | X198: 0.3705640678 | Y198: 14704.14494 | Z198: 1228.416453 | AA198: 1436.744389 | AB198: =Z198*'B2'!$E$41 -> 3894.080156 | AC198: ='B2'!$G$41*V198 -> 42773.29794 | AD198: ='B2'!$I$41*V198 -> 27244.13882 | AE198: ='B2'!$K$41*V198 -> 2724.413882 | AF198: =V198*'B2'!$M$41 -> 5448.827763 | AG198: ='B1'!H36/60 -> 3 | AH198: 44112.43483 | AI198: 3685.249359 | AJ198: 4310.233168 | AK198: 11682.24047 | AL198: 128319.8938 | AM198: 81732.41645 | AN198: 8173.241645 | AO198: 16346.48329 | BB198: Hammerfest | BC198: 0 | BD198: 750 | BE198: 0 | BF198: ='B1'!F36/60 -> 0.75 | BG198: 0
A199: ='B1'!A37 -> Port 26 | B199: ='B1'!B37 -> Havøysund | C199: =IF('B1'!D37-'B2'!$K$33>0,'B1'!D37-'B2'!$K$33,0) -> 0 | D199: ='B1'!F37/60 -> 0.5 | E199: 0 | J199: 0 | K199: 3345.810618 | L199: 3345.810618 | M199: 4407.552025 | N199: 750 | O199: 883.2234358 | P199: 5290.775461 | Q199: ='B1'!H37/60 -> 2.75 | R199: 0 | S199: 0 | T199: 0,95% | U199: 0 | V199: 5290.775461 | W199: =V199/'B2'!$C$32 -> 0.7241483643 | X199: 0.370092063 | Y199: 14295.83606 | Z199: 1194.305435 | AA199: 1396.848463 | AB199: =Z199*'B2'!$E$41 -> 3785.94823 | AC199: ='B2'!$G$41*V199 -> 41532.58737 | AD199: ='B2'!$I$41*V199 -> 26453.87731 | AE199: ='B2'!$K$41*V199 -> 2645.387731 | AF199: =V199*'B2'!$M$41 -> 5290.775461 | AG199: ='B1'!H37/60 -> 2.75 | AH199: 39313.54917 | AI199: 3284.339947 | AJ199: 3841.333272 | AK199: 10411.35763 | AL199: 114214.6153 | AM199: 72748.16259 | AN199: 7274.816259 | AO199: 14549.63252 | BB199: Havøysund | BC199: 0 | BD199: 750 | BE199: 0 | BF199: ='B1'!F37/60 -> 0.5 | BG199: 0
A200: ='B1'!A38 -> Port 27 | B200: ='B1'!B38 -> Honningsvåg | C200: =IF('B1'!D38-'B2'!$K$33>0,'B1'!D38-'B2'!$K$33,0) -> 650 | D200: ='B1'!F38/60 -> 3.5 | E200: 2275 | F200: 1 | J200: 2253.3875 | K200: 4045.844898 | L200: 4045.844898 | M200: 5329.731389 | N200: 750 | O200: 883.2234358 | P200: 6212.954825 | Q200: ='B1'!H38/60 -> 2 | R200: 0 | S200: 0 | T200: 0,95% | U200: 0 | V200: 6212.954825 | W200: =V200/'B2'!$C$32 -> 0.8503670411 | X200: 0.3713670002 | Y200: 16729.95937 | Z200: 1397.657425 | AA200: 1634.687046 | AB200: =Z200*'B2'!$E$41 -> 4430.574036 | AC200: ='B2'!$G$41*V200 -> 48771.69538 | AD200: ='B2'!$I$41*V200 -> 31064.77412 | AE200: ='B2'!$K$41*V200 -> 3106.477412 | AF200: =V200*'B2'!$M$41 -> 6212.954825 | AG200: ='B1'!H38/60 -> 2 | AH200: 33459.91874 | AI200: 2795.314849 | AJ200: 3269.374093 | AK200: 8861.148072 | AL200: 97543.39075 | AM200: 62129.54825 | AN200: 6212.954825 | AO200: 12425.90965 | BB200: Honningsvåg | BC200: 1400 | BD200: 750 | BE200: 750 | BF200: ='B1'!F38/60 -> 3.5 | BG200: 2625
A201: ='B1'!A39 -> Port 28 | B201: ='B1'!B39 -> Kjøllefjord | C201: =IF('B1'!D39-'B2'!$K$33>0,'B1'!D39-'B2'!$K$33,0) -> 0 | D201: ='B1'!F39/60 -> 0.25 | E201: 0 | J201: 0 | K201: 3030.213973 | L201: 3030.213973 | M201: 3991.805651 | N201: 750 | O201: 883.2234358 | P201: 4875.029087 | Q201: ='B1'!H39/60 -> 2.25 | R201: 1001.505556 | S201: 0.1540777778 | T201: 0,95% | U201: 991.9912528 | V201: 3883.037834 | W201: =V201/'B2'!$C$32 -> 0.5314713348 | X201: 0.3596561485 | Y201: 10796.52844 | Z201: 901.965617 | AA201: 1054.930546 | AB201: =Z201*'B2'!$E$41 -> 2859.231006 | AC201: ='B2'!$G$41*V201 -> 30481.847 | AD201: ='B2'!$I$41*V201 -> 19415.18917 | AE201: ='B2'!$K$41*V201 -> 1941.518917 | AF201: =V201*'B2'!$M$41 -> 3883.037834 | AG201: ='B1'!H39/60 -> 2.25 | AH201: 24292.18898 | AI201: 2029.422638 | AJ201: 2373.593729 | AK201: 6433.269764 | AL201: 68584.15575 | AM201: 43684.17564 | AN201: 4368.417564 | AO201: 8736.835127 | BB201: Kjøllefjord | BC201: 0 | BD201: 750 | BE201: 0 | BF201: ='B1'!F39/60 -> 0.25 | BG201: 0
A202: ='B1'!A40 -> Port 29 | B202: ='B1'!B40 -> Mehamn | C202: =IF('B1'!D40-'B2'!$K$33>0,'B1'!D40-'B2'!$K$33,0) -> 0 | D202: ='B1'!F40/60 -> 0.25 | E202: 0 | J202: 0 | K202: 3194.23547 | L202: 3194.23547 | M202: 4207.876842 | N202: 750 | O202: 883.2234358 | P202: 5091.100277 | Q202: ='B1'!H40/60 -> 2 | R202: 0 | S202: 0 | T202: 0,95% | U202: 0 | V202: 5091.100277 | W202: =V202/'B2'!$C$32 -> 0.6968188246 | X202: 0.3692984206 | Y202: 13785.8707 | Z202: 1151.701813 | AA202: 1347.019664 | AB202: =Z202*'B2'!$E$41 -> 3650.894747 | AC202: ='B2'!$G$41*V202 -> 39965.13718 | AD202: ='B2'!$I$41*V202 -> 25455.50139 | AE202: ='B2'!$K$41*V202 -> 2545.550139 | AF202: =V202*'B2'!$M$41 -> 5091.100277 | AG202: ='B1'!H40/60 -> 2 | AH202: 27571.7414 | AI202: 2303.403626 | AJ202: 2694.039329 | AK202: 7301.789495 | AL202: 79930.27435 | AM202: 50911.00277 | AN202: 5091.100277 | AO202: 10182.20055 | BB202: =BF161 -> Mehamn | BC202: 0 | BD202: 750 | BE202: 0 | BF202: ='B1'!F40/60 -> 0.25 | BG202: 0
A203: ='B1'!A41 -> Port 30 | B203: ='B1'!B41 -> Berlevåg | C203: =IF('B1'!D41-'B2'!$K$33>0,'B1'!D41-'B2'!$K$33,0) -> 0 | D203: ='B1'!F41/60 -> 0.25 | E203: 0 | J203: 0 | K203: 4211.524858 | L203: 4211.524858 | M203: 5547.98733 | N203: 750 | O203: 883.2234358 | P203: 6431.210766 | Q203: ='B1'!H41/60 -> 2.5 | R203: 0 | S203: 0 | T203: 0,95% | U203: 0 | V203: 6431.210766 | W203: =V203/'B2'!$C$32 -> 0.8802397287 | X203: 0.3714213157 | Y203: 17315.13646 | Z203: 1446.5444 | AA203: 1691.864795 | AB203: =Z203*'B2'!$E$41 -> 4585.545746 | AC203: ='B2'!$G$41*V203 -> 50485.00451 | AD203: ='B2'!$I$41*V203 -> 32156.05383 | AE203: ='B2'!$K$41*V203 -> 3215.605383 | AF203: =V203*'B2'!$M$41 -> 6431.210766 | AG203: ='B1'!H41/60 -> 2.5 | AH203: 43287.84116 | AI203: 3616.360999 | AJ203: 4229.661987 | AK203: 11463.86437 | AL203: 126212.5113 | AM203: 80390.13457 | AN203: 8039.013457 | AO203: 16078.02691 | BB203: Berlevåg | BC203: 0 | BD203: 750 | BE203: 0 | BF203: ='B1'!F41/60 -> 0.25 | BG203: 0
A204: ='B1'!A42 -> Port 31 | B204: ='B1'!B42 -> Båtsfjord | C204: =IF('B1'!D42-'B2'!$K$33>0,'B1'!D42-'B2'!$K$33,0) -> 0 | D204: ='B1'!F42/60 -> 0.5 | E204: 0 | J204: 0 | K204: 4872.330114 | L204: 4872.330114 | M204: 6418.488944 | N204: 750 | O204: 883.2234358 | P204: 7301.712379 | Q204: ='B1'!H42/60 -> 1.5 | R204: 0 | S204: 0 | T204: 0,95% | U204: 0 | V204: 7301.712379 | W204: =V204/'B2'!$C$32 -> 0.9993852725 | X204: 0.3747549755 | Y204: 19483.96381 | Z204: 1627.732983 | AA204: 1903.781267 | AB204: =Z204*'B2'!$E$41 -> 5159.913557 | AC204: ='B2'!$G$41*V204 -> 57318.44218 | AD204: ='B2'!$I$41*V204 -> 36508.5619 | AE204: ='B2'!$K$41*V204 -> 3650.85619 | AF204: =V204*'B2'!$M$41 -> 7301.712379 | AG204: ='B1'!H42/60 -> 1.5 | AH204: 29225.94572 | AI204: 2441.599475 | AJ204: 2855.671901 | AK204: 7739.870336 | AL204: 85977.66327 | AM204: 54762.84285 | AN204: 5476.284285 | AO204: 10952.56857 | BB204: Båtsfjord | BC204: 0 | BD204: 750 | BE204: 0 | BF204: ='B1'!F42/60 -> 0.5 | BG204: 0
A205: ='B1'!A43 -> Port 32 | B205: ='B1'!B43 -> Vardø | C205: =IF('B1'!D43-'B2'!$K$33>0,'B1'!D43-'B2'!$K$33,0) -> 0 | D205: ='B1'!F43/60 -> 0.25 | E205: 0 | J205: 0 | K205: 2964.342088 | L205: 2964.342088 | M205: 3905.030339 | N205: 750 | O205: 883.2234358 | P205: 4788.253774 | Q205: ='B1'!H43/60 -> 3 | R205: 0 | S205: 0 | T205: 0,95% | U205: 0 | V205: 4788.253774 | W205: =V205/'B2'!$C$32 -> 0.655368228 | X205: 0.3676563556 | Y205: 13023.72093 | Z205: 1088.030153 | AA205: 1272.549887 | AB205: =Z205*'B2'!$E$41 -> 3449.055585 | AC205: ='B2'!$G$41*V205 -> 37587.79213 | AD205: ='B2'!$I$41*V205 -> 23941.26887 | AE205: ='B2'!$K$41*V205 -> 2394.126887 | AF205: =V205*'B2'!$M$41 -> 4788.253774 | AG205: ='B1'!H43/60 -> 3 | AH205: 39071.1628 | AI205: 3264.090459 | AJ205: 3817.64966 | AK205: 10347.16676 | AL205: 112763.3764 | AM205: 71823.80662 | AN205: 7182.380662 | AO205: 14364.76132 | BB205: Vardø | BC205: 0 | BD205: 750 | BE205: 0 | BF205: ='B1'!F43/60 -> 0.25 | BG205: 0
A206: ='B1'!A44 -> Port 33 | B206: ='B1'!B44 -> Vadsø | C206: =IF('B1'!D44-'B2'!$K$33>0,'B1'!D44-'B2'!$K$33,0) -> 0 | D206: ='B1'!F44/60 -> 0.5 | E206: 0 | J206: 0 | K206: 2878.007532 | L206: 2878.007532 | M206: 3791.298843 | N206: 750 | O206: 883.2234358 | P206: 4674.522279 | Q206: ='B1'!H44/60 -> 3.25 | R206: 0 | S206: 0 | T206: 0,95% | U206: 0 | V206: 4674.522279 | W206: =V206/'B2'!$C$32 -> 0.6398017998 | X206: 0.3669023107 | Y206: 12740.50924 | Z206: 1064.370028 | AA206: 1244.877226 | AB206: =Z206*'B2'!$E$41 -> 3374.05299 | AC206: ='B2'!$G$41*V206 -> 36694.99989 | AD206: ='B2'!$I$41*V206 -> 23372.6114 | AE206: ='B2'!$K$41*V206 -> 2337.26114 | AF206: =V206*'B2'!$M$41 -> 4674.522279 | AG206: ='B1'!H44/60 -> 3.25 | AH206: 41406.65503 | AI206: 3459.202592 | AJ206: 4045.850985 | AK206: 10965.67222 | AL206: 119258.7496 | AM206: 75960.98704 | AN206: 7596.098704 | AO206: 15192.19741 | BB206: Vadsø | BC206: 0 | BD206: 750 | BE206: 0 | BF206: ='B1'!F44/60 -> 0.5 | BG206: 0
A207: ='B1'!A45 -> Port 34 | B207: ='B1'!B45 -> Kirkenes | C207: =IF('B1'!D45-'B2'!$K$33>0,'B1'!D45-'B2'!$K$33,0) -> 0 | D207: ='B1'!F45/60 -> 3.5 | E207: 0 | J207: 0 | K207: 3924.477765 | L207: 3924.477765 | M207: 5169.850268 | N207: 750 | O207: 883.2234358 | P207: 6053.073704 | Q207: ='B1'!H45/60 -> 1.75 | R207: 0 | S207: 0 | T207: 0,95% | U207: 0 | V207: 6053.073704 | W207: =V207/'B2'!$C$32 -> 0.8284841143 | X207: 0.3713317768 | Y207: 16300.98495 | Z207: 1361.819962 | AA207: 1592.771886 | AB207: =Z207*'B2'!$E$41 -> 4316.969281 | AC207: ='B2'!$G$41*V207 -> 47516.62858 | AD207: ='B2'!$I$41*V207 -> 30265.36852 | AE207: ='B2'!$K$41*V207 -> 3026.536852 | AF207: =V207*'B2'!$M$41 -> 6053.073704 | AG207: ='B1'!H45/60 -> 1.75 | AH207: 28526.72366 | AI207: 2383.184934 | AJ207: 2787.3508 | AK207: 7554.696241 | AL207: 83154.10001 | AM207: 52964.39491 | AN207: 5296.439491 | AO207: 10592.87898 | BB207: Kirkenes | BC207: 0 | BD207: 750 | BE207: 0 | BF207: ='B1'!F45/60 -> 3.5 | BG207: 0
E209: Number of ch. Ports: | F209: =SUM(F174:F207) -> 5 | AF209: SUM | AG209: =SUM(AG174:AG207) -> 100.1666667 | AH209: =SUM(AH174:AH207) -> 1341663.956 | AI209: 112085.5436 | AJ209: 131094.203 | AK209: 355311.1731 | AL209: 3871925.26 | AM209: 2466194.433 | AN209: 246619.4433 | AO209: 493238.8867 | BF209: SUM | BG209: =SUM(BG174:BG207) -> 18187.5
D210: SUM Charged | E210: =SUM(E174:E207) -> 15762.5
A213: LNG constant rpm
B214: =B132 -> Harbour | C214: =C132 -> Propulsion | D214: Propulsion incl losses | E214: Hotel | F214: Hotel Incl Losses | G214: Total Power | H214: Time in harbour [h] | I214: Shore Charging | J214: Shore engine power | K214: Relative load | L214: Transit relative load, sea margin | M214: Transit thermal efficiency | N214: Necessary kW | O214: kg | P214: liters | Q214: CO2, kg | R214: Nox, g | S214: CO, g | T214: PM, g | U214: SO, g | V214: Hours | W214: kWh | X214: kg | Y214: liters | Z214: CO2, kg | AA214: Nox, g | AB214: CO, g | AC214: PM, g | AD214: SO, g | BG214: Available shore connection | BH214: Time in port | BI214: Hotel Power | BJ214: Harbour engine power | BK214: Relative load | BL214: Thermal Efficiency | BM214: Thermodynamic kW | BN214: =O214 -> kg | BO214: liters | BP214: CO2, kg | BQ214: Nox, g | BR214: CO, g | BS214: PM, g | BT214: SO, g | BU214: Hours | BV214: kWh | BW214: kg | BX214: liters | BY214: CO2, kg | BZ214: Nox, g | CA214: CO, g | CB214: PM, g | CC214: SO, g | CD214: Shore connection
A215: =A174 -> Port 1 | B215: =B133 -> Bergen | E215: ='B2'!$K$33 -> 750 | F215: =E215/$N$30 -> 883.2234358 | G215: =F215+D215 -> 883.2234358 | H215: ='B1'!F12/60 -> 8 | I215: ='B1'!D12 -> 1400 | J215: =IF(I215-(F215)<0,I215-(-F215),"0") -> 0 | K215: =J215/'B2'!$C$32 -> 0 | AG215: =AG133 -> Time [s] | AH215: =AH133 -> kW | AI215: =AI133 -> kWh | BE215: In harbour | BF215: =B215 -> Bergen | BG215: ='B1'!D12 -> 1400 | BH215: ='B1'!F12 -> 480 | BI215: ='B2'!$K$33 -> 750 | BJ215: =IF(I215-(F215)<0,I215-(-F215),0) -> 0 | BK215: =K215 -> 0 | BL215: =$C$251+($D$251*BK215)+($E$251*(BK215^2))+($F$251*(BK215^3))+($G$251*(BK215^4))+($H$251*(BK215^5))+($I$251*(BK215^6)) -> 0.1406 | BM215: =BJ215/BL215 -> 0 | BN215: =BM215/$K$251 -> 0 | BP215: =BN215*'B2'!$E$42 -> 0 | BQ215: ='B2'!$G$42*BJ215 -> 0 | BR215: ='B2'!$I$42*BJ215 -> 0 | BS215: ='B2'!$K$42*BJ215 -> 0 | BT215: =BJ215*'B2'!$M$42 -> 0 | BU215: =BH215/60 -> 8 | BV215: =$BU215*BM215 -> 0 | BW215: =$BU215*BN215 -> 0 | BX215: =$BU215*BO215 -> 0 | BY215: =$BU215*BP215 -> 0 | BZ215: =$BU215*BQ215 -> 0 | CA215: =$BU215*BR215 -> 0 | CB215: =$BU215*BS215 -> 0 | CC215: =$BU215*BT215 -> 0 | CD215: =IF(BJ215=0,BI215*(BH215/60),BM215*(BH215/60)) -> 6000
A216: =A175 -> Port 2 | B216: Florø | C216: =K51 -> 3998.059825 | D216: =C216/$N$19 -> 5266.78246 | E216: ='B2'!$K$33 -> 750 | F216: =E216/$N$30 -> 883.2234358 | G216: =F216+D216 -> 6150.005896 | H216: ='B1'!F13/60 -> 0.25 | I216: ='B1'!D13 -> 0 | J216: =IF(I216-(F216)<0,I216-(-F216),"0") -> 883.2234358 | K216: =J216/'B2'!$C$32 -> 0.1208867795 | L216: =(G216/'B2'!$C$32) -> 0.841751222 | M216: =$C$251+($D$251*L216)+($E$251*(L216^2))+($F$251*(L216^3))+($G$251*(L216^4))+($H$251*(L216^5))+($I$251*(L216^6)) -> 0.4942224645 | N216: =G216/M216 -> 12443.80079 | O216: =N216/$K$251 -> 908.9701092 | Q216: =O216*'B2'!$E$42 -> 2505.121621 | R216: ='B2'!$G$42*G216 -> 9225.008844 | S216: ='B2'!$I$42*G216 -> 307.5002948 | T216: ='B2'!$K$42*G216 -> 30.75002948 | U216: =G216*'B2'!$M$42 -> 61.50005896 | V216: =V134 -> 6 | W216: =$V216*N216 -> 74662.80477 | X216: 5453.820655 | Y216: 0 | Z216: 15030.72973 | AA216: 55350.05306 | AB216: 1845.001769 | AC216: 184.5001769 | AD216: 369.0003538 | AF216: Leaving harbour | AG216: =AG134 -> 60 | AH216: 1500 | AI216: 25 | BF216: =B216 -> Florø | BG216: ='B1'!D13 -> 0 | BH216: ='B1'!F13 -> 15 | BI216: ='B2'!$K$33 -> 750 | BJ216: =IF(I216-(F216)<0,I216-(-F216),0) -> 883.2234358 | BK216: =K216 -> 0.1208867795 | BL216: =$C$251+($D$251*BK216)+($E$251*(BK216^2))+($F$251*(BK216^3))+($G$251*(BK216^4))+($H$251*(BK216^5))+($I$251*(BK216^6)) -> 0.3030630785 | BM216: =BJ216/BL216 -> 2914.322128 | BN216: =BM216/$K$251 -> 212.8796295 | BP216: =BN216*'B2'!$E$42 -> 586.6962589 | BQ216: ='B2'!$G$42*BJ216 -> 1324.835154 | BR216: ='B2'!$I$42*BJ216 -> 44.16117179 | BS216: ='B2'!$K$42*BJ216 -> 4.416117179 | BT216: =BJ216*'B2'!$M$42 -> 8.832234358 | BU216: =BH216/60 -> 0.25 | BV216: =$BU216*BM216 -> 728.580532 | BW216: =$BU216*BN216 -> 53.21990738 | BX216: 0 | BY216: 146.6740647 | BZ216: 331.2087884 | CA216: =$BU216*BR216 -> 11.04029295 | CB216: =$BU216*BS216 -> 1.104029295 | CC216: =$BU216*BT216 -> 2.20805859 | CD216: =IF(BJ216=0,BI216*(BH216/60),BM216*(BH216/60)) -> 728.580532
A217: Port 3 | B217: Måløy | C217: =K52 -> 1903.600549 | D217: =C217/$N$19 -> 2507.678829 | E217: ='B2'!$K$33 -> 750 | F217: 883.2234358 | G217: =F217+D217 -> 3390.902265 | H217: ='B1'!F14/60 -> 0.25 | I217: ='B1'!D14 -> 0 | J217: 883.2234358 | K217: =J217/'B2'!$C$32 -> 0.1208867795 | L217: =(G217/'B2'!$C$32) -> 0.4641127462 | M217: =$C$251+($D$251*L217)+($E$251*(L217^2))+($F$251*(L217^3))+($G$251*(L217^4))+($H$251*(L217^5))+($I$251*(L217^6)) -> 0.4506612409 | N217: =G217/M217 -> 7524.282005 | O217: =N217/$K$251 -> 549.6188463 | Q217: =O217*'B2'!$E$42 -> 1514.74954 | R217: ='B2'!$G$42*G217 -> 5086.353397 | S217: ='B2'!$I$42*G217 -> 169.5451132 | T217: ='B2'!$K$42*G217 -> 16.95451132 | U217: =G217*'B2'!$M$42 -> 33.90902265 | V217: =V135 -> 2.5 | W217: =$V217*N217 -> 18810.70501 | X217: =$V217*O217 -> 1374.047116 | Y217: =$V217*P217 -> 0 | Z217: =$V217*Q217 -> 3786.873851 | AA217: =$V217*R217 -> 12715.88349 | AB217: =$V217*S217 -> 423.8627831 | AC217: =$V217*T217 -> 42.38627831 | AD217: =$V217*U217 -> 84.77255662 | AF217: acceleration | AG217: 240 | AH217: 4000 | AI217: 266.6666667 | AK217: There are 34 harbour to enter and leave | BF217: Måløy | BG217: ='B1'!D14 -> 0 | BH217: ='B1'!F14 -> 15 | BI217: ='B2'!$K$33 -> 750 | BJ217: 883.2234358 | BK217: =K217 -> 0.1208867795 | BL217: 0.3030630785 | BM217: =BJ217/BL217 -> 2914.322128 | BN217: 212.8796295 | BP217: =BN217*'B2'!$E$42 -> 586.6962589 | BQ217: ='B2'!$G$42*BJ217 -> 1324.835154 | BR217: ='B2'!$I$42*BJ217 -> 44.16117179 | BS217: ='B2'!$K$42*BJ217 -> 4.416117179 | BT217: =BJ217*'B2'!$M$42 -> 8.832234358 | BU217: 0.25 | BV217: =$BU217*BM217 -> 728.580532 | BW217: 53.21990738 | BX217: 0 | BY217: 146.6740647 | BZ217: 331.2087884 | CA217: 11.04029295 | CB217: 1.104029295 | CC217: 2.20805859 | CD217: =IF(BJ217=0,BI217*(BH217/60),BM217*(BH217/60)) -> 728.580532
A218: Port 4 | B218: Torvik | C218: 2964.342088 | D218: 3905.030339 | E218: ='B2'!$K$33 -> 750 | F218: 883.2234358 | G218: 4788.253774 | H218: ='B1'!F15/60 -> 0.25 | I218: ='B1'!D15 -> 0 | J218: 883.2234358 | K218: =J218/'B2'!$C$32 -> 0.1208867795 | L218: =(G218/'B2'!$C$32) -> 0.655368228 | M218: 0.4730221579 | N218: 10122.68388 | O218: 739.4217592 | Q218: =O218*'B2'!$E$42 -> 2037.846368 | R218: ='B2'!$G$42*G218 -> 7182.380662 | S218: ='B2'!$I$42*G218 -> 239.4126887 | T218: ='B2'!$K$42*G218 -> 23.94126887 | U218: =G218*'B2'!$M$42 -> 47.88253774 | V218: 3 | W218: 30368.05165 | X218: 2218.265278 | Y218: 0 | Z218: 6113.539105 | AA218: 21547.14199 | AB218: 718.2380662 | AC218: 71.82380662 | AD218: 143.6476132 | AF218: passive retardation | AG218: 120 | AH218: 1000 | AI218: 33.33333333 | BF218: Torvik | BG218: ='B1'!D15 -> 0 | BH218: ='B1'!F15 -> 15 | BI218: ='B2'!$K$33 -> 750 | BJ218: 883.2234358 | BK218: 0.1208867795 | BL218: 0.3030630785 | BM218: 2914.322128 | BN218: 212.8796295 | BP218: =BN218*'B2'!$E$42 -> 586.6962589 | BQ218: ='B2'!$G$42*BJ218 -> 1324.835154 | BR218: ='B2'!$I$42*BJ218 -> 44.16117179 | BS218: ='B2'!$K$42*BJ218 -> 4.416117179 | BT218: =BJ218*'B2'!$M$42 -> 8.832234358 | BU218: 0.25 | BV218: 728.580532 | BW218: 53.21990738 | BX218: 0 | BY218: 146.6740647 | BZ218: 331.2087884 | CA218: 11.04029295 | CB218: 1.104029295 | CC218: 2.20805859 | CD218: 728.580532
... 188 more rows
